Workbook

Sheet INTRODUCCIÓN
B2: MODELO DE ESTIMACIÓN DE COSTOS NACIONALES DE LOS OBJETIVOS DE DESARROLLO SOSTENIBLE EN MATERIA DE WASH
B4: Contenidos del modelo
B5: 1. Hoja de introducción (a continuación)
B6: 2. Hoja de verificación de datos, donde pueden revisarse y ajustarse los datos proporcionados para un país específico
B7: 3. Informe de resumen de estimación de costos de los ODS, en el que se presenta un resumen de los resultados del país seleccionado, tanto en forma de gráfico como de cuadro, en dólares estadounidenses o en moneda local
B9: Introducción
B10: A principios de 2016, el Banco Mundial publicó un informe sobre lo que le costaría al mundo alcanzar las metas 6.1 y 6.2 de los ODS relativas al abastecimiento de agua potable, el saneamiento y la higiene. Si bien las estimaciones sin desglosar se basaban en datos de 140 países de ingresos medianos y bajos, los datos subyacentes eran necesariamente débiles y el análisis de sensibilidad indicaba las horquillas probables de las estimaciones de costos a escala mundial y regional. Por consiguiente, las estimaciones de costos recogidas en el informe resultaban útiles para disponer de estimaciones aproximadas sobre lo que costaría a escala mundial y regional alcanzar las metas 6.1 y 6.2, y para determinar las diferencias probables en general entre las áreas rurales y las urbanas y entre los diferentes niveles de servicio obtenidos. Las estimaciones de costos no tienen por objeto ser utilizadas a nivel nacional, en el que se necesita una evaluación más detallada de los valores utilizados en el modelo de costos. Por consiguiente, las instrucciones de esta nota permiten al usuario saber cómo personalizar el análisis de costos para su país. El usuario debe recordar que, incluso después de haber validado los valores específicos para un país, los resultados deberían interpretarse con cautela debido a la sencillez del modelo de costos y a la incertidumbre que rodea a los valores subyacentes.
B12: Métodos de costos y cómo personalizar los datos aportados para su país (en la HOJA DE VERIFICACIÓN DE DATOS)
B13: Servicios para los que se han determinado los costos
B14: En este modelo de costos se han determinado los costos para los siguientes servicios y niveles de servicios:
B15: 1. Agua
B16: 1.1 Abastecimiento de agua básico: una fuente "mejorada" de agua que esté situada de modo que el trayecto de ida y vuelta sea como máximo de 30 minutos
B17: 1.2 Abastecimiento de agua gestionado de forma segura: abastecimiento de agua segura de fuente mejorada, en instalaciones y disponible
B18: 2. Saneamiento
B19: 2.1 Cualquier punto fijo para la defecación: que dé lugar a comunidades sin defecación al aire libre
B20: 2.2 Saneamiento básico: una instalación de saneamiento "mejorada" para el uso exclusivo de una única familia
B21: 2.3 Saneamiento gestionado de forma segura: una instalación mejorada en la que se realicen con seguridad la extracción, el transporte, el tratamiento y la
B22: eliminación o reutilización de excretas humanas
B23: 3. Higiene
B24: 3.1 Lavado de manos: presencia de una estación de lavado de manos, agua y jabón (u otro material de limpieza adecuado)
B26: Método de estimación de costos
B27: El modelo de costos calcula la población que debe recibir cada tipo y nivel de servicio basándose en la cobertura de 2015 y en los cambios previstos en la población entre 2015 y 2030, año de finalización de los ODS. Se ha agregado una nueva personalización que permite al usuario cambiar el año de referencia, es decir, después de 2015. Esto permite estimar valores anuales más realistas para alcanzar los objetivos nacionales. Las previsiones demográficas se han extraído de las estimaciones de las Naciones Unidas utilizando la variante media, teniendo en cuenta los cambios generales en la población, así como la migración de las zonas rurales a las urbanas que se produce en numerosos países. Las estimaciones de costos se obtienen multiplicando la población que debe recibir un servicio por el costo per cápita alcanzado. Se diferencia entre inversiones de capital, mantenimiento del capital y costos de prestar el servicio de. Los costos del programa también se incluyen como un costo separado, bajo Costos de capital. Del mismo modo que los niveles de servicio, las cifras de cobertura y las estimaciones de costos se desglosan por zonas rurales y urbanas.
B29: Variables aportadas (en la HOJA DE VERIFICACIÓN DE DATOS)
B30: En primer lugar, para elaborar un cuadro de los valores y los resultados para su país, vaya a la celda E4 de la HOJA DE VERIFICACIÓN DE DATOS y use el menú desplegable para seleccionar su país.
B31: En segundo lugar, elija su año de referencia. Este puede ser el año actual o el último año para el que tiene las entradas de datos necesarias (por ejemplo, cobertura, costos unitarios). Si elige el año actual, es factible proyectar los últimos números de cobertura para el año actual en función de las tendencias recientes.\
B32: Tercero, revise las tablas de la HOJA DE VERIFICACIÓN DE DATOS y, si lo considera necesario, modifique los valores utilizados para su país. Las variables que pueden cambiarse se abordan a continuación.
B33: Cuarto, haga clic en el botón "RESTAURAR VALORES POR DEFECTO" en la esquina superior derecha de la Hoja de verificación de datos si desea restablecer los valores predeterminados originales para las variables en la Hoja de verificación de datos.
B35: Nivel de cobertura de los servicios en 2015
B36: Las estimaciones están basadas en el Programa Conjunto de Monitoreo (JMP) de 2015 para un abastecimiento de agua y un saneamiento mejorados. Este valor es importante para actualizar al último año disponible. El JMP ha realizado un ajuste a un abastecimiento de agua básico a partir de los datos disponibles de la encuesta. La presencia de estaciones de lavado de manos con jabón y agua se basa en informes de encuestas disponibles compilados por el JMP. Las estimaciones correspondientes al abastecimiento de agua gestionado de forma segura y al saneamiento gestionado de forma segura se basan en documentación y supuestos disponibles que se recogen en el informe de costos mundiales del Banco Mundial.
B37: El usuario puede ajustar la cobertura actual basándose en fuentes de datos más recientes o más fiables.
B39: Cobertura en el año meta
B40: El estudio de costos mundiales determina los costos de lograr acceso universal (100%) en 2030 para satisfacer las metas 6.1 y 6.2 de los ODS. Sin embargo, si esta meta no es realista para su país, puede ajustar la cobertura meta a menos del 100%.
B42: Elección de tecnología
B43: El estudio de costos mundiales calcula los costos basándose en una o dos opciones tecnológicas, en función del servicio. En el caso del abastecimiento de agua y el saneamiento básicos y del saneamiento gestionado de forma segura, hay dos opciones. Por tanto, el usuario puede ajustar la proporción de población que recibe cada una de estas dos opciones. Cuando se realiza un ajuste en la columna F, el total debe sumar el 100% (por ejemplo, 70 + 30, o 20 + 80). El nombre de la tecnología en sí puede modificarse en la columna E, lo que significa que debe indicarse el costo unitario correcto para la opción tecnológica seleccionada.
B45: Costos
B46: El usuario puede ajustar los costos unitarios para cada tipo de servicio de WASH y para zonas urbanas/zonas rurales, por separado. Dado el aumento del clima y otros riesgos en muchos países, el usuario debe tratar de reflejar los precios unitarios de los servicios WASH que son más resistentes para soportar estos riesgos. Se pueden revisar y ajustar las siguientes variables si se dispone de valores alternativos y más precisos para su país. Todos los valores de costos deben presentarse en valores de 2016. Por tanto, si se dispone de datos de costos de un año anterior, deberían ajustarse de modo que reflejen la tasa de inflación de los precios. Los valores de costo unitario deben inflarse para representar los niveles de precios en el año de referencia seleccionado del análisis.
B47: 1. Costo de capital (CapEx). Los costos de capital se presentan en términos del costo por persona total alcanzado. Si se dispone de datos de costos locales disponibles para toda una zona o por familia, deberán dividirse los costos entre la población correspondiente cubierta para determinar el costo por persona alcanzado. Pueden ajustarse las tres variables siguientes:
B48: i. Costo de capital por persona alcanzado. Suele incluir los fondos gastados en equipos físicos o infraestructuras, y los costos de su instalación física (mano de obra, equipamiento, etc.).
B49: ii. Costo de software por persona alcanzado con los equipos físicos. Estos costos son necesarios para sensibilizar a las poblaciones en relación con la intervención y/o el cambio en su comportamiento y/o para generar demanda del servicio. También puede incluir otros costos de programas, gestión o administrativos, si no se han incluido en los costos de equipos físicos en el apartado 1.i.
B50: iii. Duración de vida (vida útil) de los equipos físicos de capital, en años, antes de que sea necesario sustituirlos por completo. El modelo exige que se introduzca un número negativo (es decir, con "-"); de lo contrario, el modelo no funcionará.
B51: 2. Costo de mantenimiento del capital (CapManEx). Estos costos representan la rehabilitación o la renovación de infraestructuras para prolongar su vida útil hasta alcanzar la duración indicada en el apartado 1.iii.
B52: i. Costo de mantenimiento por persona alcanzado. Suele incluir los fondos gastados en equipos físicos (piezas), y los costos de su instalación física (mano de obra, etc.).
B53: ii. Duración de vida (vida útil) de los equipos físicos de capital, en años, antes de que sea necesario llevar a cabo tareas de mantenimiento de capital para prolongar su duración hasta agotar toda su vida útil indicada en el apartado 1.iii. Las cifras del modelo se basan en el supuesto de que hay que volver a gastar el 30% del costo de capital (en 1.i) una vez transcurrida la mitad de la vida útil prevista de los equipos físicos (en 1.iii).
B54: 3. Costo de explotación (OpEx) por persona alcanzado, al año. Refleja los costos recurrentes de la prestación del servicio, entre los que se incluyen la mano de obra, los materiales, los productos químicos, la energía, el transporte y los gastos fijos.
B56: Recuperación de costos
B57: Con el fin de estimar la financiación requerida de fuentes públicas para ampliar la cobertura a las personas sin servicio y mantener operativos los servicios existentes, es necesario identificar el ratio de costos que deberán sufragar directamente los consumidores (mediante tarifas y otros honorarios por bienes y productos) frente a los costos financiados a través de subsidios públicos. Estos últimos pueden incluir donaciones no reembolsables realizadas por gobiernos y otros socios (por ejemplo, donantes bilaterales, ONG y otras organizaciones benéficas), lo que reduce el precio sufragado por los consumidores. Por consiguiente, aquí debe introducirse la división de costos prevista entre fuentes públicas y consumidores. En la medida de lo posible, los valores introducidos para la recuperación de costos deberían reflejar la política nacional actual o, si no la hay, una opción política realista de reparto de costos entre consumidores y sector público. Los valores del reparto de costos pueden alterarse para ver cómo repercuten en las necesidades del presupuesto público. Las partes pública y privada deben sumar el 100% por fila (por ejemplo, 30% público y 70% privado, o 10% público y 90% privado) para garantizar que los costos estén financiados en su totalidad.
B59: Tipo de descuento
B60: El modelo de costos original supone que una quinceava parte (1/15) de la población sin servicio obtendrá acceso a cada tipo de servicio de WASH entre 2016 y 2030, de modo que en el año 2030 se alcance la cobertura universal de los servicios. Si ha ingresado un año de referencia posterior, los costos anuales serán 1 / n de los costos totales estimados hasta 2030, siendo 'n' el número de años restantes desde el año de referencia hasta 2030. Por consiguiente, se incurrirá en la mayoría de los costos en algún momento en el futuro. El tipo de descuento se emplea para estimar el valor actual de los costos futuros y se basa en la teoría económica de la preferencia temporal del dinero (confirmada por el hecho de que los tipos de interés ofrecidos por los bancos para las cuentas de ahorro suelen ser positivos). Cuanto mayor es el tipo de descuento, más costos futuros tendrán un descuento al valorarlos en el momento actual. El tipo de descuento por defecto es del 5%, que refleja un valor elegido habitualmente por los gobiernos al evaluar económicamente los proyectos del sector público. Sin embargo, este valor puede modificarse para diferentes condiciones en cualquier contexto nacional específico.
B62: Tipo de cambio de moneda local
B63: Para habilitar la tabulación de resultados en moneda local es posible ingresar el tipo de cambio con el dólar estadounidense. Sin embargo, todos los valores de moneda introducidos en la "Hoja de verificación de datos" deben convertirse a dólares estadounidenses.
B65: Gasto en WASH
B66: Estos valores reflejan el gasto total en concepto de WASH realizado en el último año fiscal para el que se dispone de datos; preferiblemente, que abarque 2015. Todos los valores deberían convertirse a US$ utilizando los tipos de cambio vigentes. Dentro de lo posible, deberían recopilarse datos de financiación sobre cuatro fuentes de financiación principales: presupuesto del gobierno nacional; presupuesto del gobierno descentralizado; asistencia oficial para el desarrollo actual y otras contribuciones no gubernamentales (diferenciadas entre préstamos reembolsables y donaciones no reembolsables). Preferiblemente, deberían usarse datos de gastos en lugar de datos de presupuestos. Las cifras de gastos obtenidas suelen incluir los gastos de equipos físicos y software, y abarcan la cobertura de nuevos servicios y la explotación, el mantenimiento y la sustitución de servicios existentes. Los valores que deben introducirse pueden extraerse directamente de la sección sobre financiación de la encuesta del GLAAS (apartado D), si se ha cumplimentado. Si no se han recopilado datos para la encuesta del GLAAS, se recomienda introducir cifras aproximadas basadas en documentación y entrevistas disponibles. Es preferible que varias partes interesadas (representantes gubernamentales, peritos, etc.) puedan validar los valores.
B68: Visualización de resultados (en el INFORME RESUMIDO DE ESTIMACIÓN DE COSTOS DE LOS ODS)
B69: Los siguientes conjuntos de resultados pueden verse en los gráficos y los cuadros. En la celda H3 se puede elegir la moneda preferida para ver los resultados (moneda local o dólares estadounidenses).
B70: 1. Resumen de costos de capital, anualizados, tanto para la ampliación de servicios como para el mantenimiento de los servicios existentes
B71: 2. Tamaño de la población en áreas urbanas y rurales, desde el año de referencia seleccionado hasta 2030 y la cobertura de los servicios de WASH en el año de referencia seleccionado
B72: 3. Población a la que hay que prestar servicios, basada en el tamaño de la población y la proporción de población sin servicios
B73: 4. Costos de capital de extender los servicios a los no alcanzados, por año desde el año de referencia seleccionado hasta 2030
B74: 5. Costos de capital anuales como porcentaje del PIB, tanto para la ampliación de servicios como para el mantenimiento de los servicios existentes (el modelo estima el PIB para el año de referencia seleccionado)
B75: 6. Desglose de costos por capital, mantenimiento del capital y costos de explotación, tanto para la ampliación de servicios como para el mantenimiento de los servicios existentes
B76: 7. Financiación pública disponible para WASH en el último año fiscal disponible
B77: 8. Financiación anual necesaria de fuentes públicas y de los consumidores, basada en los ratios de reparto de costos
B78: 9. Déficit de financiación basado en la financiación pública disponible y el reparto de costos necesario de fuentes públicas

Sheet HOJA DE VERIFICACIÓN DE DATOS
C1: INPUTS - SHEET TO ADJUST MODEL VALUES
B2: HOJA DE VERIFICACIÓN DE DATOS
C4: PASO 1: SELECCIONAR PAÍS --> | E4: Kenya
C6: PASO 2: SELECCIONAR AÑO BASE --> | E6: 2020
C8: PASO 3: VERIFICAR Y AJUSTAR LOS DATOS PARA EL PAÍS A CONTINUACIÓN
C10: Verifique los datos a continuación y, si lo considera necesario, ajuste las cifras para reflejar los datos del país eliminando la fórmula e introduciendo una cifra revisada. En la hoja INTRODUCCIÓN encontrará instrucciones.
C12: The cells in the table are colour coded according to the variable type, as follows:
C14: TECNOLOGÍA
C15: NIVEL DE COBERTURA EN 2015
C16: COBERTURA EN EL AÑO META
C17: COSTOS
C18: RECUPERACIÓN DE COSTOS
C19: TIPO DE DESCUENTO
C20: TIPO DE CAMBIO DE MONEDA LOCAL
L21: ERROR: COST RECOVERY MUST ADD UP TO 100% FOR EACH COST TYPE
C22: SERVICIO | D22: ZONAS RURALES / ZONAS URBANAS | E22: TECNOLOGÍA | F22: HOGARES CON OPCIÓN TEC. | G22: NIVEL DE COBERTURA DE LOS SERVICIOS EN 2015 | H22: META DE COBERTURA EN 2030 | I22: COSTO FINANCIERO PER CÁPITA (US$ en 2016) con DISTRIBUCIÓN DE LA RECUPERACIÓN DE COSTOS
I23: COSTOS DE CAPITAL (TOTALES) | N23: COSTOS DE MANTENIMIENTO (TOTALES) | R23: COSTOS DE OPERACIÓN (ANUALES)
I24: COSTOS | L24: RECUPERACIÓN DE COSTOS (%) | N24: COSTOS | P24: RECUPERACIÓN DE COSTOS (%) | R24: COSTOS | S24: RECUPERACIÓN DE COSTOS (%)
I25: CapEx | J25: Software | K25: Duración | L25: Cliente | M25: Subsidio | N25: CapManEx | O25: Duración | P25: Cliente | Q25: Subsidio | R25: OpEx | S25: Cliente | T25: Subsidio
C26: Abastecimiento de agua básico | D26: Zonas urbanas | E26: Pozo entubado | F26: =INDIRECT("SOURCE!AXG" & MATCH(E4,Countries,FALSE)+6) -> 0.5 | G26: =INDIRECT("SOURCE!AJ" & MATCH(E4,Countries,FALSE)+6) -> 0.6921229553 | H26: =INDIRECT("SOURCE!AQ" & MATCH(E4,Countries,FALSE)+6) -> 1 | I26: =INDIRECT("SOURCE!AON" & MATCH(E4,Countries,FALSE)+6) -> 62.50716099 | J26: =INDIRECT("SOURCE!AOO" & MATCH(E4,Countries,FALSE)+6) -> 3.125358049 | K26: =INDIRECT("SOURCE!AOQ" & MATCH(E4,Countries,FALSE)+6) -> -20 | L26: 0.2 | M26: 0.8 | N26: =INDIRECT("SOURCE!AOT" & MATCH(E4,Countries,FALSE)+6) -> 18.7521483 | O26: =INDIRECT("SOURCE!AOU" & MATCH(E4,Countries,FALSE)+6) -> -10 | P26: 0.2 | Q26: 0.8 | R26: =INDIRECT("SOURCE!AOW" & MATCH(E4,Countries,FALSE)+6) -> 2.300263524 | S26: 0.8 | T26: 0.2
E27: Pozo excavado | F27: =INDIRECT("SOURCE!AXL" & MATCH(E4,Countries,FALSE)+6) -> 0.5 | I27: =INDIRECT("SOURCE!APA" & MATCH(E4,Countries,FALSE)+6) -> 29.77683069 | J27: =INDIRECT("SOURCE!APB" & MATCH(E4,Countries,FALSE)+6) -> 1.488841535 | K27: =INDIRECT("SOURCE!APD" & MATCH(E4,Countries,FALSE)+6) -> -10 | N27: =INDIRECT("SOURCE!APG" & MATCH(E4,Countries,FALSE)+6) -> 8.933049208 | O27: =INDIRECT("SOURCE!APH" & MATCH(E4,Countries,FALSE)+6) -> -5 | R27: =INDIRECT("SOURCE!APJ" & MATCH(E4,Countries,FALSE)+6) -> 1.447153972
D28: Zonas rurales | E28: Pozo entubado | F28: =INDIRECT("SOURCE!AXQ" & MATCH(E4,Countries,FALSE)+6) -> 0.5 | G28: =INDIRECT("SOURCE!AR" & MATCH(E4,Countries,FALSE)+6) -> 0.4930696869 | H28: =INDIRECT("SOURCE!AY" & MATCH(E4,Countries,FALSE)+6) -> 1 | I28: =INDIRECT("SOURCE!APN" & MATCH(E4,Countries,FALSE)+6) -> 42.8 | J28: =INDIRECT("SOURCE!APO" & MATCH(E4,Countries,FALSE)+6) -> 2.14 | K28: =INDIRECT("SOURCE!APQ" & MATCH(E4,Countries,FALSE)+6) -> -20 | L28: 0.2 | M28: 0.8 | N28: =INDIRECT("SOURCE!APT" & MATCH(E4,Countries,FALSE)+6) -> 12.84 | O28: =INDIRECT("SOURCE!APU" & MATCH(E4,Countries,FALSE)+6) -> -10 | P28: 0.2 | Q28: 0.8 | R28: =INDIRECT("SOURCE!APW" & MATCH(E4,Countries,FALSE)+6) -> 2.3112 | S28: 0.8 | T28: 0.2
E29: Pozo excavado | F29: =INDIRECT("SOURCE!AXV" & MATCH(E4,Countries,FALSE)+6) -> 0.5 | I29: =INDIRECT("SOURCE!AQA" & MATCH(E4,Countries,FALSE)+6) -> 8.1 | J29: =INDIRECT("SOURCE!AQB" & MATCH(E4,Countries,FALSE)+6) -> 0.405 | K29: =INDIRECT("SOURCE!AQD" & MATCH(E4,Countries,FALSE)+6) -> -10 | N29: =INDIRECT("SOURCE!AQG" & MATCH(E4,Countries,FALSE)+6) -> 2.43 | O29: =INDIRECT("SOURCE!AQH" & MATCH(E4,Countries,FALSE)+6) -> -5 | R29: =INDIRECT("SOURCE!AQJ" & MATCH(E4,Countries,FALSE)+6) -> 0.39366
C30: Abastecimiento de agua gestionado de forma segura | D30: Zonas urbanas | E30: Abastecimiento de agua gestionado de forma segura | F30: 1 | G30: =INDIRECT("SOURCE!AZ" & MATCH(E4,Countries,FALSE)+6) -> 0.31141195 | H30: =INDIRECT("SOURCE!BG" & MATCH(E4,Countries,FALSE)+6) -> 1 | I30: =INDIRECT("SOURCE!AQN" & MATCH(E4,Countries,FALSE)+6) -> 116.1 | J30: =INDIRECT("SOURCE!AQO" & MATCH(E4,Countries,FALSE)+6) -> 11.61 | K30: =INDIRECT("SOURCE!AQQ" & MATCH(E4,Countries,FALSE)+6) -> -20 | L30: 0.2 | M30: 0.8 | N30: =INDIRECT("SOURCE!AQT" & MATCH(E4,Countries,FALSE)+6) -> 34.83 | O30: =INDIRECT("SOURCE!AQU" & MATCH(E4,Countries,FALSE)+6) -> -10 | P30: 0.2 | Q30: 0.8 | R30: =INDIRECT("SOURCE!AQW" & MATCH(E4,Countries,FALSE)+6) -> 20.7 | S30: 0.8 | T30: 0.2
D31: Zonas rurales | E31: Abastecimiento de agua gestionado de forma segura | F31: 1 | G31: =INDIRECT("SOURCE!BH" & MATCH(E4,Countries,FALSE)+6) -> 0.03721528104 | H31: =INDIRECT("SOURCE!BO" & MATCH(E4,Countries,FALSE)+6) -> 1 | I31: =INDIRECT("SOURCE!ARA" & MATCH(E4,Countries,FALSE)+6) -> 43.9 | J31: =INDIRECT("SOURCE!ARB" & MATCH(E4,Countries,FALSE)+6) -> 4.39 | K31: =INDIRECT("SOURCE!ARD" & MATCH(E4,Countries,FALSE)+6) -> -20 | L31: 0.2 | M31: 0.8 | N31: =INDIRECT("SOURCE!ARG" & MATCH(E4,Countries,FALSE)+6) -> 13.17 | O31: =INDIRECT("SOURCE!AQU" & MATCH(E4,Countries,FALSE)+6) -> -10 | P31: 0.2 | Q31: 0.8 | R31: =INDIRECT("SOURCE!ARJ" & MATCH(E4,Countries,FALSE)+6) -> 15.525 | S31: 0.8 | T31: 0.2
C32: Saneamiento básico (in situ únicamente) | D32: Zonas urbanas | E32: Tanque séptico | F32: =INDIRECT("SOURCE!AYA" & MATCH(E4,Countries,FALSE)+6) -> 0.5 | G32: =INDIRECT("SOURCE!BP" & MATCH(E4,Countries,FALSE)+6) -> 0.3130431517 | H32: =INDIRECT("SOURCE!BW" & MATCH(E4,Countries,FALSE)+6) -> 1 | I32: =INDIRECT("SOURCE!ARO" & MATCH(E4,Countries,FALSE)+6) -> 671 | J32: =INDIRECT("SOURCE!ARP" & MATCH(E4,Countries,FALSE)+6) -> 134.2 | K32: =INDIRECT("SOURCE!ARR" & MATCH(E4,Countries,FALSE)+6) -> -20 | L32: 0.2 | M32: 0.8 | N32: =INDIRECT("SOURCE!ARU" & MATCH(E4,Countries,FALSE)+6) -> 201.3 | O32: =INDIRECT("SOURCE!ARV" & MATCH(E4,Countries,FALSE)+6) -> -10 | P32: 0.2 | Q32: 0.8 | R32: =INDIRECT("SOURCE!ARX" & MATCH(E4,Countries,FALSE)+6) -> 51.8012 | S32: 0.8 | T32: 0.2
E33: Letrina de pozo | F33: =INDIRECT("SOURCE!AYF" & MATCH(E4,Countries,FALSE)+6) -> 0.5 | I33: =INDIRECT("SOURCE!ASC" & MATCH(E4,Countries,FALSE)+6) -> 43.62579761 | J33: =INDIRECT("SOURCE!ASD" & MATCH(E4,Countries,FALSE)+6) -> 4.362579761 | K33: =INDIRECT("SOURCE!ASF" & MATCH(E4,Countries,FALSE)+6) -> -8 | N33: =INDIRECT("SOURCE!ASI" & MATCH(E4,Countries,FALSE)+6) -> 13.08773928 | O33: =INDIRECT("SOURCE!ASJ" & MATCH(E4,Countries,FALSE)+6) -> -4 | R33: =INDIRECT("SOURCE!ASL" & MATCH(E4,Countries,FALSE)+6) -> 2.857489744
D34: Zonas rurales | E34: Letrina de pozo húmedo | F34: =INDIRECT("SOURCE!AYK" & MATCH(E4,Countries,FALSE)+6) -> 0.5 | G34: =INDIRECT("SOURCE!BX" & MATCH(E4,Countries,FALSE)+6) -> 0.290555603 | H34: =INDIRECT("SOURCE!CE" & MATCH(E4,Countries,FALSE)+6) -> 1 | I34: =INDIRECT("SOURCE!ASQ" & MATCH(E4,Countries,FALSE)+6) -> 43.62579761 | J34: =INDIRECT("SOURCE!ASR" & MATCH(E4,Countries,FALSE)+6) -> 4.362579761 | K34: =INDIRECT("SOURCE!AST" & MATCH(E4,Countries,FALSE)+6) -> -8 | L34: 0.2 | M34: 0.8 | N34: =INDIRECT("SOURCE!ASW" & MATCH(E4,Countries,FALSE)+6) -> 13.08773928 | O34: =INDIRECT("SOURCE!ASX" & MATCH(E4,Countries,FALSE)+6) -> -4 | P34: 0.2 | Q34: 0.8 | R34: =INDIRECT("SOURCE!ASZ" & MATCH(E4,Countries,FALSE)+6) -> 3.494426389 | S34: 0.8 | T34: 0.2
E35: Letrina de pozo seco | F35: =INDIRECT("SOURCE!AYP" & MATCH(E4,Countries,FALSE)+6) -> 0.5 | I35: =INDIRECT("SOURCE!ATE" & MATCH(E4,Countries,FALSE)+6) -> 24.4 | J35: =INDIRECT("SOURCE!ATF" & MATCH(E4,Countries,FALSE)+6) -> 4.362579761 | K35: =INDIRECT("SOURCE!ATH" & MATCH(E4,Countries,FALSE)+6) -> -8 | N35: =INDIRECT("SOURCE!ATK" & MATCH(E4,Countries,FALSE)+6) -> 7.32 | O35: =INDIRECT("SOURCE!ATL" & MATCH(E4,Countries,FALSE)+6) -> -4 | R35: =INDIRECT("SOURCE!ATN" & MATCH(E4,Countries,FALSE)+6) -> 1.6348
C36: Cualquier punto fijo para la defecación | D36: Zonas rurales | E36: Pozo no mejorado | F36: 1 | G36: =INDIRECT("SOURCE!CF" & MATCH(E4,Countries,FALSE)+6) -> 0.8472459656 | H36: =INDIRECT("SOURCE!CM" & MATCH(E4,Countries,FALSE)+6) -> 1 | I36: =INDIRECT("SOURCE!ATR" & MATCH(E4,Countries,FALSE)+6) -> 24.4 | J36: =INDIRECT("SOURCE!ATS" & MATCH(E4,Countries,FALSE)+6) -> 2.181289881 | K36: =INDIRECT("SOURCE!ATU" & MATCH(E4,Countries,FALSE)+6) -> -2 | L36: 0.2 | M36: 0.8 | N36: =INDIRECT("SOURCE!ATX" & MATCH(E4,Countries,FALSE)+6) -> 7.32 | O36: =INDIRECT("SOURCE!ATY" & MATCH(E4,Countries,FALSE)+6) -> -1 | P36: 0.2 | Q36: 0.8 | R36: =INDIRECT("SOURCE!AUA" & MATCH(E4,Countries,FALSE)+6) -> 1.6348 | S36: 0.8 | T36: 0.2
C37: Saneamiento gestionado de forma segura (gestión de residuos fecales o alcantarillado únicamente) | D37: Zonas urbanas | E37: Alcantarillado con tratamiento | F37: =INDIRECT("SOURCE!AYU" & MATCH(E4,Countries,FALSE)+6) -> 0.5 | G37: =INDIRECT("SOURCE!CQ" & MATCH(E4,Countries,FALSE)+6) -> 0.316614 | H37: =INDIRECT("SOURCE!CS" & MATCH(E4,Countries,FALSE)+6) -> 1 | I37: =INDIRECT("SOURCE!AUE" & MATCH(E4,Countries,FALSE)+6) -> 158.6 | J37: =INDIRECT("SOURCE!AUF" & MATCH(E4,Countries,FALSE)+6) -> 15.86 | K37: =INDIRECT("SOURCE!AUH" & MATCH(E4,Countries,FALSE)+6) -> -20 | L37: 0.2 | M37: 0.8 | N37: =INDIRECT("SOURCE!AUK" & MATCH(E4,Countries,FALSE)+6) -> 47.58 | O37: =INDIRECT("SOURCE!AUL" & MATCH(E4,Countries,FALSE)+6) -> -10 | P37: 0.2 | Q37: 0.8 | R37: =INDIRECT("SOURCE!AUN" & MATCH(E4,Countries,FALSE)+6) -> 9.65874 | S37: 0.8 | T37: 0.2
E38: Tanque séptico con tratamiento (gestión de residuos fecales) | F38: =INDIRECT("SOURCE!AYZ" & MATCH(E4,Countries,FALSE)+6) -> 0.5 | I38: =INDIRECT("SOURCE!AUR" & MATCH(E4,Countries,FALSE)+6) -> 70.27972149 | J38: =INDIRECT("SOURCE!AUS" & MATCH(E4,Countries,FALSE)+6) -> 7.027972149 | K38: =INDIRECT("SOURCE!AUU" & MATCH(E4,Countries,FALSE)+6) -> -20 | N38: =INDIRECT("SOURCE!AUX" & MATCH(E4,Countries,FALSE)+6) -> 21.08391645 | O38: =INDIRECT("SOURCE!AUY" & MATCH(E4,Countries,FALSE)+6) -> -10 | R38: =INDIRECT("SOURCE!AVA" & MATCH(E4,Countries,FALSE)+6) -> 5.025000087
D39: Zonas rurales | E39: Letrina de pozo con tratamiento (gestión de residuos fecales) | F39: =INDIRECT("SOURCE!AZE" & MATCH(E4,Countries,FALSE)+6) -> 0.5 | G39: =INDIRECT("SOURCE!CW" & MATCH(E4,Countries,FALSE)+6) -> 0.338 | H39: =INDIRECT("SOURCE!CY" & MATCH(E4,Countries,FALSE)+6) -> 1 | I39: =INDIRECT("SOURCE!AVE" & MATCH(E4,Countries,FALSE)+6) -> 56.30536944 | J39: =INDIRECT("SOURCE!AVF" & MATCH(E4,Countries,FALSE)+6) -> 5.630536944 | K39: =INDIRECT("SOURCE!AVH" & MATCH(E4,Countries,FALSE)+6) -> -20 | L39: 0.2 | M39: 0.8 | N39: =INDIRECT("SOURCE!AVK" & MATCH(E4,Countries,FALSE)+6) -> 16.89161083 | O39: =INDIRECT("SOURCE!AVL" & MATCH(E4,Countries,FALSE)+6) -> -10 | P39: 0.2 | Q39: 0.8 | R39: =INDIRECT("SOURCE!AVN" & MATCH(E4,Countries,FALSE)+6) -> 2.719549344 | S39: 0.8 | T39: 0.2
E40: Alcantarillado con tratamiento | F40: =INDIRECT("SOURCE!AZJ" & MATCH(E4,Countries,FALSE)+6) -> 0.5 | I40: =INDIRECT("SOURCE!AVR" & MATCH(E4,Countries,FALSE)+6) -> 392.0580894 | J40: =INDIRECT("SOURCE!AVS" & MATCH(E4,Countries,FALSE)+6) -> 39.20580894 | K40: =INDIRECT("SOURCE!AVU" & MATCH(E4,Countries,FALSE)+6) -> -20 | N40: =INDIRECT("SOURCE!AVX" & MATCH(E4,Countries,FALSE)+6) -> 117.6174268 | O40: =INDIRECT("SOURCE!AVY" & MATCH(E4,Countries,FALSE)+6) -> -10 | R40: =INDIRECT("SOURCE!AWA" & MATCH(E4,Countries,FALSE)+6) -> 8.546866348
C41: Lavado de manos con jabón | D41: Zonas urbanas | E41: Estación con jabón y agua | F41: 1 | G41: =INDIRECT("SOURCE!CZ" & MATCH(E4,Countries,FALSE)+6) -> 0.131 | H41: =INDIRECT("SOURCE!DG" & MATCH(E4,Countries,FALSE)+6) -> 1 | I41: =INDIRECT("SOURCE!AWE" & MATCH(E4,Countries,FALSE)+6) -> 8.7 | J41: =INDIRECT("SOURCE!AWF" & MATCH(E4,Countries,FALSE)+6) -> 15.39027204 | K41: =INDIRECT("SOURCE!AWH" & MATCH(E4,Countries,FALSE)+6) -> -6 | L41: 0.2 | M41: 0.8 | N41: =INDIRECT("SOURCE!AWL" & MATCH(E4,Countries,FALSE)+6) -> 2.61 | O41: =INDIRECT("SOURCE!AWM" & MATCH(E4,Countries,FALSE)+6) -> -3 | P41: 0.2 | Q41: 0.8 | R41: =INDIRECT("SOURCE!AWO" & MATCH(E4,Countries,FALSE)+6) -> 1.4 | S41: 0.8 | T41: 0.2
D42: Zonas rurales | E42: Estación con jabón y agua | F42: 1 | G42: =INDIRECT("SOURCE!DH" & MATCH(E4,Countries,FALSE)+6) -> 0.066 | H42: =INDIRECT("SOURCE!DO" & MATCH(E4,Countries,FALSE)+6) -> 1 | I42: =INDIRECT("SOURCE!AWS" & MATCH(E4,Countries,FALSE)+6) -> 1.1 | J42: =INDIRECT("SOURCE!AWT" & MATCH(E4,Countries,FALSE)+6) -> 7.529327138 | K42: =INDIRECT("SOURCE!AWV" & MATCH(E4,Countries,FALSE)+6) -> -10 | L42: 0.2 | M42: 0.8 | N42: =INDIRECT("SOURCE!AWZ" & MATCH(E4,Countries,FALSE)+6) -> 0.33 | O42: =INDIRECT("SOURCE!AXA" & MATCH(E4,Countries,FALSE)+6) -> -5 | P42: 0.2 | Q42: 0.8 | R42: =INDIRECT("SOURCE!AXC" & MATCH(E4,Countries,FALSE)+6) -> 1.4 | S42: 0.8 | T42: 0.2
C43: TIPO DE DESCUENTO | D43: =SOURCE!BAI5 -> 0.05
C44: MONEDA LOCAL POR US$ | D44: 1000
C45: MONEDA LOCAL (FORMA CORTO) | D45: KSH
D46: USD
C47: PASO 4: INTRODUCIR DATOS FINANCIEROS SOBRE LOS GASTOS EN WASH A CONTINUACIÓN
C49: Ubicación y subsector | E49: US$ en 2016
E50: VALOR DEL GASTO / PRESUPUESTO
C51: SUBSECTOR | D51: ZONAS RURALES / ZONAS URBANAS | E51: PRESUPUESTOS NACIONALES GASTADOS | F51: PRESUPUESTOS SUBNACIONALES GASTADOS | G51: ASISTENCIA OFICIAL PARA EL DESARROLLO ACTUAL (préstamos o financiación reembolsable) | H51: ASISTENCIA OFICIAL PARA EL DESARROLLO ACTUAL (donaciones y transferencias voluntarias)
C52: Abastecimiento de agua | D52: Zonas urbanas
D53: Zonas rurales
C54: Saneamiento e higiene | D54: Zonas urbanas
D55: Zonas rurales
C56: Gasto en WASH, no desglosado | D56: Zonas urbanas
D57: Zonas rurales
C58: Total | D58: Zonas urbanas | E58: =E52+E54+E56 -> 0 | F58: =F52+F54+F56 -> 0 | G58: 0 | H58: 0
D59: Zonas rurales | E59: =E53+E55+E57 -> 0 | F59: 0 | G59: 0 | H59: 0

Sheet INFORME RESUMIDO DE LOS COSTOS
A1: 2
B2: =" INFORME DE RESUMEN DE ESTIMACIÓN DE COSTOS DE LOS ODS PARA " & UPPER('HOJA DE VERIFICACIÓN DE DATOS'!$E$4) -> INFORME DE RESUMEN DE ESTIMACIÓN DE COSTOS DE LOS ODS PARA KENYA | AD2: SUMMARY TABLES
H3: USD | AD3: ="Millón " & $H$3 -> Millón USD
AD4: =H3 -> USD | AE4: =IF(AD4="USD",1,'HOJA DE VERIFICACIÓN DE DATOS'!$D$44) -> 1
B5: 1. COSTOS GLOBALES
C6: ="1a. " & 'HOJA DE VERIFICACIÓN DE DATOS'!E4 & " necesitará " & $H$3 & " " & TEXT(ROUND(($J$78+$J$79),0),"#,#") & " millones para establecer y mantener la cobertura básica universal y un adicional de " & $H$3 & " " & TEXT(ROUND(($M$78+$M$79),0),"#,#") & " millones para crear y mantener servicios gestionados de forma segura cada año hasta 2030" -> 1a. Kenya necesitará USD 1,201 millones para establecer y mantener la cobertura básica universal y un adicional de USD 1,625 millones para crear y mantener servicios gestionados de forma segura cada año hasta 2030
D8: ="Figura 1a. Costos de capital anuales de conseguir que toda la población logre acceso universal a diferentes niveles de servicio en 2030, en millones de " & H3 -> Figura 1a. Costos de capital anuales de conseguir que toda la población logre acceso universal a diferentes niveles de servicio en 2030, en millones de USD
D26: Nota: las metas 6.1 y 6.2 son un 50% de abastecimiento de agua básico + 100% de WASH gestionado de forma segura + 100% de saneamiento básico + 100% de saneamiento gestionado de forma segura + 100% de higiene básica.
D27: Los costos de mantener lugares sin defecación al aire libre suelen ser elevados debido a la sustitución regular de las letrinas de pozo tradicionales. Para lograr la meta 6.2 de los ODS, se supone que las poblaciones han recibido una instalación de saneamiento adecuada.
D28: Los costos de los servicios de agua y saneamiento para que estos sean gestionados de forma segura son típicamente adicionales a los costos para lograr acceso básico.
C30: ="1b. El gasto de capital ascenderá a "&$H$3&" "&TEXT(ROUND($J$78,0),"#,#")&" millones para la cobertura básica universal y un adicional de "&$H$3&" "&TEXT(ROUND($M$78,0),"#,#")&" millones para servicios gestionados de forma segura cada año hasta 2030" -> 1b. El gasto de capital ascenderá a USD 1,069 millones para la cobertura básica universal y un adicional de USD 1,423 millones para servicios gestionados de forma segura cada año hasta 2030
D32: ="Figura 1b. Costos de capital anuales de conseguir que la población sin servicio logre acceso universal a diferentes niveles de servicio en 2030, en millones de " & $H$3 -> Figura 1b. Costos de capital anuales de conseguir que la población sin servicio logre acceso universal a diferentes niveles de servicio en 2030, en millones de USD
D47: Nota: las metas 6.1 y 6.2 son un 50% de abastecimiento de agua básico + 100% de WASH gestionado de forma segura + 100% de saneamiento básico + 100% de saneamiento gestionado de forma segura + 100% de higiene básica.
D48: Los costos de mantener lugares sin defecación al aire libre suelen ser elevados debido a la sustitución regular de las letrinas de pozo tradicionales. Para lograr la meta 6.2 de los ODS, se supone que las poblaciones han recibido una instalación de saneamiento adecuada.
D49: Los costos de los servicios de agua y saneamiento para que estos sean gestionados de forma segura son típicamente adicionales a los costos para lograr acceso básico.
C51: ="1c. Los gastos de mantenimiento supondrán otros " & $H$3 & " " & ROUND($J$79,0) & " millones para la cobertura básica universal y un adicional de " & $H$3 & " " & ROUND($M$79,0) & " millones para servicios gestionados de forma segura cada año hasta 2030" -> 1c. Los gastos de mantenimiento supondrán otros USD 132 millones para la cobertura básica universal y un adicional de USD 202 millones para servicios gestionados de forma segura cada año hasta 2030
D53: ="Figura 1c. Costos de capital anuales de conseguir que la población que ya tiene servicio (en 2015) mantenga diferentes niveles de servicio en 2030, en millones de " & $H$3 -> Figura 1c. Costos de capital anuales de conseguir que la población que ya tiene servicio (en 2015) mantenga diferentes niveles de servicio en 2030, en millones de USD
D67: Nota: los costos de mantener lugares sin defecación al aire libre pueden ser considerablemente más elevados que los de otros servicios debido a la sustitución regular de las letrinas de pozo (cada 1 o 2 años).
D68: Por consiguiente, las metas 6.1 y 6.2 de los ODS incluyen los costos de que las poblaciones obtengan saneamiento básico en lugar de los que conllevaría poner fin a la defecación al aire libre con una letrina no mejorada.
D69: Los costos de los servicios de agua y saneamiento para que estos sean gestionados de forma segura son típicamente adicionales a los costos para lograr acceso básico.
C71: 1d. Resumen de datos
D73: ="Cuadro 1a. Costos de capital anuales de conseguir que la población sin servicio logre acceso universal a diferentes niveles de servicio en 2030, en millones de " & $H$3 -> Cuadro 1a. Costos de capital anuales de conseguir que la población sin servicio logre acceso universal a diferentes niveles de servicio en 2030, en millones de USD
D74: Population group served | E74: Output | G74: Universal Basic Service | K74: Universal Safely Managed Service
F75: Ending OD | G75: Water | H75: Sanitation | I75: Hygiene | J75: WASH | K75: Water | L75: Sanitation | M75: WatSan | N75: Targets 6.1 + 6.2
D76: Grupo de población atendido | E76: Resultado | G76: Servicio básico universal | K76: Servicio universal administrado de forma segura
F77: Poner fin a la DAL | G77: Agua | H77: Saneamiento | I77: Higiene | J77: WASH | K77: Agua | L77: Saneamiento | M77: Higiene | N77: ODS Objetivo 6.1 et 6.2
D78: ="Ampliación a las personas sin servicio de " & 'HOJA DE VERIFICACIÓN DE DATOS'!E6 & " a 2030" -> Ampliación a las personas sin servicio de 2020 a 2030 | E78: Costo total | F78: =HLOOKUP("Ending OD",CALCULATIONS!$III$6:$IIQ$140,'INFORME RESUMIDO DE LOS COSTOS '!$A$1+1,FALSE)*$AE$4 -> 48.24416698 | G78: =HLOOKUP(G$75,CALCULATIONS!$III$6:$IIM$140,'INFORME RESUMIDO DE LOS COSTOS '!$A$1+1,FALSE)*$AE$4 -> 124.7686397 | H78: =HLOOKUP(H$75,CALCULATIONS!$III$6:$IIM$140,'INFORME RESUMIDO DE LOS COSTOS '!$A$1+1,FALSE)*$AE$4 -> 860.115716 | I78: =HLOOKUP(I$75,CALCULATIONS!$III$6:$IIM$140,'INFORME RESUMIDO DE LOS COSTOS '!$A$1+1,FALSE)*$AE$4 -> 84.04660146 | J78: =SUM(G78:I78) -> 1068.930957 | K78: =HLOOKUP(K$75,CALCULATIONS!$IIN$6:$IIQ$140,'INFORME RESUMIDO DE LOS COSTOS '!$A$1+1,FALSE)*$AE$4 -> 427.5929723 | L78: =HLOOKUP(L$75,CALCULATIONS!$IIN$6:$IIQ$140,'INFORME RESUMIDO DE LOS COSTOS '!$A$1+1,FALSE)*$AE$4 -> 995.4735696 | M78: =SUM(K78:L78) -> 1423.066542 | N78: =G78*0.5+H78+I78+K78+L78 -> 2429.613179
D79: ="Mantenimiento de servicios para personas con servicio en " & 'HOJA DE VERIFICACIÓN DE DATOS'!E6 -> Mantenimiento de servicios para personas con servicio en 2020 | F79: =HLOOKUP("Ending OD",CALCULATIONS!$INM$6:$INU$140,'INFORME RESUMIDO DE LOS COSTOS '!$A$1+1,FALSE)*$AE$4 -> 271.2939445 | G79: =HLOOKUP(G$75,CALCULATIONS!$INM$6:$INQ$140,'INFORME RESUMIDO DE LOS COSTOS '!$A$1+1,FALSE)*$AE$4 -> 30.38249546 | H79: =HLOOKUP(H$75,CALCULATIONS!$INM$6:$INQ$140,'INFORME RESUMIDO DE LOS COSTOS '!$A$1+1,FALSE)*$AE$4 -> 95.74979854 | I79: =HLOOKUP(I$75,CALCULATIONS!$INM$6:$INQ$140,'INFORME RESUMIDO DE LOS COSTOS '!$A$1+1,FALSE)*$AE$4 -> 5.737561081 | J79: =SUM(G79:I79) -> 131.8698551 | K79: =HLOOKUP(K$75,CALCULATIONS!$INR$6:$INU$140,'INFORME RESUMIDO DE LOS COSTOS '!$A$1+1,FALSE)*$AE$4 -> 18.66899644 | L79: =HLOOKUP(L$75,CALCULATIONS!$INR$6:$INU$140,'INFORME RESUMIDO DE LOS COSTOS '!$A$1+1,FALSE)*$AE$4 -> 183.7336475 | M79: =SUM(K79:L79) -> 202.402644 | N79: =G79*0.5+H79+I79+K79+L79 -> 319.0812513
D80: ="Ampliación a las personas sin servicio de " & 'HOJA DE VERIFICACIÓN DE DATOS'!E6 & " a 2030" -> Ampliación a las personas sin servicio de 2020 a 2030 | E80: Porcentaje del PIB | F80: =HLOOKUP("Ending OD",CALCULATIONS!$IIR$6:$IIZ$140,'INFORME RESUMIDO DE LOS COSTOS '!$A$1+1,FALSE) -> 0.0004938372745 | G80: =HLOOKUP(G$75,CALCULATIONS!$IIR$6:$IIV$140,'INFORME RESUMIDO DE LOS COSTOS '!$A$1+1,FALSE) -> 0.001277157609 | H80: =HLOOKUP(H$75,CALCULATIONS!$IIR$6:$IIV$140,'INFORME RESUMIDO DE LOS COSTOS '!$A$1+1,FALSE) -> 0.008804322419 | I80: =HLOOKUP(I$75,CALCULATIONS!$IIR$6:$IIV$140,'INFORME RESUMIDO DE LOS COSTOS '!$A$1+1,FALSE) -> 0.000860318401 | J80: =SUM(G80:I80) -> 0.01094179843 | K80: =HLOOKUP(K$75,CALCULATIONS!$IIW$6:$IIZ$140,'INFORME RESUMIDO DE LOS COSTOS '!$A$1+1,FALSE) -> 0.004376930129 | L80: =HLOOKUP(L$75,CALCULATIONS!$IIW$6:$IIZ$140,'INFORME RESUMIDO DE LOS COSTOS '!$A$1+1,FALSE) -> 0.01018987341 | M80: =SUM(K80:L80) -> 0.01456680354 | N80: =G80*0.5+H80+I80+K80+L80 -> 0.02487002317
D81: ="Mantenimiento de servicios para personas con servicio en " & 'HOJA DE VERIFICACIÓN DE DATOS'!E6 -> Mantenimiento de servicios para personas con servicio en 2020 | F81: =HLOOKUP("Ending OD",CALCULATIONS!$INV$6:$IOD$140,'INFORME RESUMIDO DE LOS COSTOS '!$A$1+1,FALSE) -> 0.002777020943 | G81: =HLOOKUP(G$75,CALCULATIONS!$INV$6:$INZ$140,'INFORME RESUMIDO DE LOS COSTOS '!$A$1+1,FALSE) -> 0.0003110015094 | H81: =HLOOKUP(H$75,CALCULATIONS!$INV$6:$INZ$140,'INFORME RESUMIDO DE LOS COSTOS '!$A$1+1,FALSE) -> 0.0009801147475 | I81: =HLOOKUP(I$75,CALCULATIONS!$INV$6:$INZ$140,'INFORME RESUMIDO DE LOS COSTOS '!$A$1+1,FALSE) -> 5.873086228e-05 | J81: =SUM(G81:I81) -> 0.001349847119 | K81: =HLOOKUP(K$75,CALCULATIONS!$IOA$6:$IOD$140,'INFORME RESUMIDO DE LOS COSTOS '!$A$1+1,FALSE) -> 0.00019109971 | L81: =HLOOKUP(L$75,CALCULATIONS!$IOA$6:$IOD$140,'INFORME RESUMIDO DE LOS COSTOS '!$A$1+1,FALSE) -> 0.001880735629 | M81: =SUM(K81:L81) -> 0.002071835339 | N81: =G81*0.5+H81+I81+K81+L81 -> 0.003266181703
D82: Los costos de los servicios de agua y saneamiento para que estos sean gestionados de forma segura son típicamente adicionales a los costos para lograr acceso básico.
B84: 2. DATOS DEMOGRÁFICOS Y ESTADÍSTICAS SOBRE WASH
C85: ="2a. Está previsto que la población urbana y rural de "&'HOJA DE VERIFICACIÓN DE DATOS'!$E$4 & " crezca un " & ROUND(((INDIRECT(HLOOKUP("x",AE91:AT95,5,FALSE)&93)/$AE$93)-1)*100,0) &"% y un "&ROUND(((INDIRECT(HLOOKUP("x",AE91:AT95,5,FALSE)&94)/$AE$94)-1)*100,0) & "%, respectivamente, entre " & AE92 & " y 2030" -> 2a. Está previsto que la población urbana y rural de Kenya crezca un 48% y un 17%, respectivamente, entre 2020 y 2030
D87: ="Figura 2a. Tamaño de la población en " & AE92 & " y proyecciones para 2030, en zonas rurales y urbanas" -> Figura 2a. Tamaño de la población en 2020 y proyecciones para 2030, en zonas rurales y urbanas
AD90: Cuadro 1. Tamaño de la población en 2015 y proyecciones para 2030, en zonas rurales y urbanas (población en miles)
AE91: =IF(AE92=2030,"x","") ->  | AF91: =IF(AF92=2030,"x","") ->  | AG91: =IF(AG92=2030,"x","") ->  | AO91: x
AE92: ='HOJA DE VERIFICACIÓN DE DATOS'!$E$6 -> 2020 | AF92: =IFERROR(IF(AE92=2030,"",AE92+1),"") -> 2021 | AG92: =IFERROR(IF(AF92=2030,"",AF92+1),"") -> 2022 | AH92: 2023 | AI92: 2024 | AJ92: 2025 | AK92: 2026 | AL92: 2027 | AM92: 2028 | AN92: 2029 | AO92: 2030
AD93: Zonas urbanas | AE93: =HLOOKUP(AE92,CALCULATIONS!$B$6:$Q$140,'INFORME RESUMIDO DE LOS COSTOS '!$A$1+1,FALSE) -> 14737.72 | AF93: =HLOOKUP(AF92,CALCULATIONS!$B$6:$Q$140,'INFORME RESUMIDO DE LOS COSTOS '!$A$1+1,FALSE) -> 15344.459 | AG93: =HLOOKUP(AG92,CALCULATIONS!$B$6:$Q$140,'INFORME RESUMIDO DE LOS COSTOS '!$A$1+1,FALSE) -> 15970.474 | AH93: =HLOOKUP(AH92,CALCULATIONS!$B$6:$Q$140,'INFORME RESUMIDO DE LOS COSTOS '!$A$1+1,FALSE) -> 16616.637 | AI93: =HLOOKUP(AI92,CALCULATIONS!$B$6:$Q$140,'INFORME RESUMIDO DE LOS COSTOS '!$A$1+1,FALSE) -> 17284.004 | AJ93: =HLOOKUP(AJ92,CALCULATIONS!$B$6:$Q$140,'INFORME RESUMIDO DE LOS COSTOS '!$A$1+1,FALSE) -> 17973.485 | AK93: =HLOOKUP(AK92,CALCULATIONS!$B$6:$Q$140,'INFORME RESUMIDO DE LOS COSTOS '!$A$1+1,FALSE) -> 18685.608 | AL93: =HLOOKUP(AL92,CALCULATIONS!$B$6:$Q$140,'INFORME RESUMIDO DE LOS COSTOS '!$A$1+1,FALSE) -> 19420.67 | AM93: =HLOOKUP(AM92,CALCULATIONS!$B$6:$Q$140,'INFORME RESUMIDO DE LOS COSTOS '!$A$1+1,FALSE) -> 20179.064 | AN93: =HLOOKUP(AN92,CALCULATIONS!$B$6:$Q$140,'INFORME RESUMIDO DE LOS COSTOS '!$A$1+1,FALSE) -> 20961.083 | AO93: =HLOOKUP(AO92,CALCULATIONS!$B$6:$Q$140,'INFORME RESUMIDO DE LOS COSTOS '!$A$1+1,FALSE) -> 21766.907 | AP93: =HLOOKUP(AP92,CALCULATIONS!$B$6:$Q$140,'INFORME RESUMIDO DE LOS COSTOS '!$A$1+1,FALSE) ->  | AQ93: =HLOOKUP(AQ92,CALCULATIONS!$B$6:$Q$140,'INFORME RESUMIDO DE LOS COSTOS '!$A$1+1,FALSE) ->  | AR93: =HLOOKUP(AR92,CALCULATIONS!$B$6:$Q$140,'INFORME RESUMIDO DE LOS COSTOS '!$A$1+1,FALSE) ->  | AS93: =HLOOKUP(AS92,CALCULATIONS!$B$6:$Q$140,'INFORME RESUMIDO DE LOS COSTOS '!$A$1+1,FALSE) ->  | AT93: =HLOOKUP(AT92,CALCULATIONS!$B$6:$Q$140,'INFORME RESUMIDO DE LOS COSTOS '!$A$1+1,FALSE) -> 
AD94: Zonas rurales | AE94: =HLOOKUP(AE92,CALCULATIONS!$S$6:$AH$140,'INFORME RESUMIDO DE LOS COSTOS '!$A$1+1,FALSE) -> 38167.886 | AF94: =HLOOKUP(AF92,CALCULATIONS!$S$6:$AH$140,'INFORME RESUMIDO DE LOS COSTOS '!$A$1+1,FALSE) -> 38828.595 | AG94: =HLOOKUP(AG92,CALCULATIONS!$S$6:$AH$140,'INFORME RESUMIDO DE LOS COSTOS '!$A$1+1,FALSE) -> 39482.435 | AH94: =HLOOKUP(AH92,CALCULATIONS!$S$6:$AH$140,'INFORME RESUMIDO DE LOS COSTOS '!$A$1+1,FALSE) -> 40130.266 | AI94: =HLOOKUP(AI92,CALCULATIONS!$S$6:$AH$140,'INFORME RESUMIDO DE LOS COSTOS '!$A$1+1,FALSE) -> 40773.324 | AJ94: =HLOOKUP(AJ92,CALCULATIONS!$S$6:$AH$140,'INFORME RESUMIDO DE LOS COSTOS '!$A$1+1,FALSE) -> 41412.423 | AK94: =HLOOKUP(AK92,CALCULATIONS!$S$6:$AH$140,'INFORME RESUMIDO DE LOS COSTOS '!$A$1+1,FALSE) -> 42047.467 | AL94: =HLOOKUP(AL92,CALCULATIONS!$S$6:$AH$140,'INFORME RESUMIDO DE LOS COSTOS '!$A$1+1,FALSE) -> 42677.922 | AM94: =HLOOKUP(AM92,CALCULATIONS!$S$6:$AH$140,'INFORME RESUMIDO DE LOS COSTOS '!$A$1+1,FALSE) -> 43303.572 | AN94: =HLOOKUP(AN92,CALCULATIONS!$S$6:$AH$140,'INFORME RESUMIDO DE LOS COSTOS '!$A$1+1,FALSE) -> 43924.107 | AO94: =HLOOKUP(AO92,CALCULATIONS!$S$6:$AH$140,'INFORME RESUMIDO DE LOS COSTOS '!$A$1+1,FALSE) -> 44539.156 | AP94: =HLOOKUP(AP92,CALCULATIONS!$S$6:$AH$140,'INFORME RESUMIDO DE LOS COSTOS '!$A$1+1,FALSE) ->  | AQ94: =HLOOKUP(AQ92,CALCULATIONS!$S$6:$AH$140,'INFORME RESUMIDO DE LOS COSTOS '!$A$1+1,FALSE) ->  | AR94: =HLOOKUP(AR92,CALCULATIONS!$S$6:$AH$140,'INFORME RESUMIDO DE LOS COSTOS '!$A$1+1,FALSE) ->  | AS94: =HLOOKUP(AS92,CALCULATIONS!$S$6:$AH$140,'INFORME RESUMIDO DE LOS COSTOS '!$A$1+1,FALSE) ->  | AT94: =HLOOKUP(AT92,CALCULATIONS!$S$6:$AH$140,'INFORME RESUMIDO DE LOS COSTOS '!$A$1+1,FALSE) -> 
AD95: AD | AE95: AE | AF95: AF | AG95: AG | AH95: AH | AI95: AI | AJ95: AJ | AK95: AK | AL95: AL | AM95: AM | AN95: AN | AO95: AO | AP95: AP | AQ95: AQ | AR95: AR | AS95: AS | AT95: AT
AE96: =HLOOKUP("x",AE91:AT95,5,FALSE) -> AO
C102: ="2b. Cobertura de servicios de WASH" -> 2b. Cobertura de servicios de WASH
D104: =" Figura 2b. Cobertura de servicios de WASH " & 'HOJA DE VERIFICACIÓN DE DATOS'!E6 & ", desglosada por nivel de servicio y zonas rurales/zonas urbanas" -> Figura 2b. Cobertura de servicios de WASH 2020, desglosada por nivel de servicio y zonas rurales/zonas urbanas
D118: ="Cuadro 2a. Cobertura de servicios de WASH " & 'HOJA DE VERIFICACIÓN DE DATOS'!E6 & ", desglosada por nivel de servicio y zonas rurales/zonas urbanas" -> Cuadro 2a. Cobertura de servicios de WASH 2020, desglosada por nivel de servicio y zonas rurales/zonas urbanas
D120: Servicio | E120: Proporción
E121: Zonas urbanas | F121: Zonas rurales
D122: Abastecimiento de agua básico | E122: =CALCULATIONS!AJ8 -> 0.6921229553 | F122: =CALCULATIONS!AR8 -> 0.4930696869
D123: Abastecimiento de agua gestionado de forma segura | E123: =CALCULATIONS!AZ8 -> 0.31141195 | F123: =CALCULATIONS!BH8 -> 0.03721528104
D124: Saneamiento básico | E124: =CALCULATIONS!BP8 -> 0.3130431517 | F124: =CALCULATIONS!BX8 -> 0.290555603
D125: Punto fijo para la defecación | F125: =CALCULATIONS!CF8 -> 0.8472459656
D126: Saneamiento gestionado de forma segura | E126: =CALCULATIONS!CQ8 -> 0.316614 | F126: =CALCULATIONS!CW8 -> 0.338
D127: Estación de lavado de manos con jabón y agua | E127: =CALCULATIONS!CZ8 -> 0.131 | F127: =CALCULATIONS!DH8 -> 0.066
B131: 3. POBLACIÓN A LA QUE LLEVAR EL SERVICIO
D133: Figura 3. Población nueva total a la que llevar el servicio para que logre acceso universal a diferentes niveles de servicio en 2030, por zonas rurales y urbanas
AD135: Cuadro 3. Población nueva total a la que llevar el servicio para que logre acceso universal a diferentes niveles de servicio en 2030, por zonas rurales y urbanas (población en miles)
AE137: Zonas urbanas con abastecimiento de agua básico | AF137: Zonas rurales con abastecimiento de agua básico | AG137: Zonas rurales sin defecación al aire libre | AH137: Zonas urbanas con saneamiento básico | AI137: Zonas rurales con saneamiento básico | AJ137: Zonas urbanas con higiene básica | AK137: Zonas rurales con higiene básica | AL137: Zonas urbanas con abastecimiento de agua gestionado de forma segura | AM137: Zonas rurales con abastecimiento de agua gestionado de forma segura | AN137: Zonas urbanas con saneamiento gestionado de forma segura | AO137: Zonas rurales con saneamiento gestionado de forma segura
AD138: Población cubierta (por servicio) | AE138: =CALCULATIONS!HY8 -> 11566.59268 | AF138: =CALCULATIONS!MI8 -> 25719.7284 | AG138: =HLOOKUP("Annual until target year",CALCULATIONS!$MO$6:$MO$140,'INFORME RESUMIDO DE LOS COSTOS '!$A$1+1,FALSE) -> 1814.967114 | AH138: =CALCULATIONS!QZ8 -> 17153.36468 | AI138: =CALCULATIONS!VJ8 -> 33449.26287 | AJ138: =CALCULATIONS!$ZT$8 -> 19836.26568 | AK138: =CALCULATIONS!$AED$8 -> 42020.07552 | AL138: =CALCULATIONS!$AIN$8 -> 17177.40488 | AM138: =CALCULATIONS!$AMX$8 -> 43118.7274 | AN138: =CALCULATIONS!$ANQ$8 -> 17100.73852 | AO138: =CALCULATIONS!$AOJ$8 -> 31638.41053
B154: 4. COSTOS POR AÑO
AD155: 1000
D156: ="Figura 4a. Costos de capital totales en zonas urbanas para que las personas sin servicio tengan servicio para el año 2030, en millones de " & $H$3 -> Figura 4a. Costos de capital totales en zonas urbanas para que las personas sin servicio tengan servicio para el año 2030, en millones de USD | AD156: Cuadro 4. Costos totales en zonas urbanas para que las personas sin servicio tengan servicio para el año 2030, en millones de US$
AE157: Costos de 2015 al año meta (millones de US$)
AE158: Zonas urbanas | AT158: Zonas rurales
AE159: ='HOJA DE VERIFICACIÓN DE DATOS'!$E$6 -> 2020 | AF159: =IFERROR(IF(AE159=2030,"",AE159+1),"") -> 2021 | AG159: =IFERROR(IF(AF159=2030,"",AF159+1),"") -> 2022 | AH159: 2023 | AI159: 2024 | AJ159: 2025 | AK159: 2026 | AL159: 2027 | AM159: 2028 | AN159: 2029 | AO159: 2030 | AT159: =AE159 -> 2020 | AU159: 2021 | AV159: 2022 | AW159: 2023 | AX159: 2024 | AY159: 2025 | AZ159: 2026 | BA159: 2027 | BB159: 2028 | BC159: 2029 | BD159: 2030
AD160: Abastecimiento de agua básico | AE160: =(HLOOKUP(AE$159,CALCULATIONS!$BEM$6:$BFA$140,'INFORME RESUMIDO DE LOS COSTOS '!$A$1+1,FALSE))/1000*$AE$4 -> 60.8040781 | AF160: =(HLOOKUP(AF$159,CALCULATIONS!$BEM$6:$BFA$140,'INFORME RESUMIDO DE LOS COSTOS '!$A$1+1,FALSE))/1000*$AE$4 -> 62.44672449 | AG160: =(HLOOKUP(AG$159,CALCULATIONS!$BEM$6:$BFA$140,'INFORME RESUMIDO DE LOS COSTOS '!$A$1+1,FALSE))/1000*$AE$4 -> 63.79505064 | AH160: =(HLOOKUP(AH$159,CALCULATIONS!$BEM$6:$BFA$140,'INFORME RESUMIDO DE LOS COSTOS '!$A$1+1,FALSE))/1000*$AE$4 -> 64.87336223 | AI160: =(HLOOKUP(AI$159,CALCULATIONS!$BEM$6:$BFA$140,'INFORME RESUMIDO DE LOS COSTOS '!$A$1+1,FALSE))/1000*$AE$4 -> 65.70431749 | AJ160: =(HLOOKUP(AJ$159,CALCULATIONS!$BEM$6:$BFA$140,'INFORME RESUMIDO DE LOS COSTOS '!$A$1+1,FALSE))/1000*$AE$4 -> 66.30902903 | AK160: =(HLOOKUP(AK$159,CALCULATIONS!$BEM$6:$BFA$140,'INFORME RESUMIDO DE LOS COSTOS '!$A$1+1,FALSE))/1000*$AE$4 -> 66.70715961 | AL160: =(HLOOKUP(AL$159,CALCULATIONS!$BEM$6:$BFA$140,'INFORME RESUMIDO DE LOS COSTOS '!$A$1+1,FALSE))/1000*$AE$4 -> 66.91701239 | AM160: =(HLOOKUP(AM$159,CALCULATIONS!$BEM$6:$BFA$140,'INFORME RESUMIDO DE LOS COSTOS '!$A$1+1,FALSE))/1000*$AE$4 -> 66.95561578 | AN160: =(HLOOKUP(AN$159,CALCULATIONS!$BEM$6:$BFA$140,'INFORME RESUMIDO DE LOS COSTOS '!$A$1+1,FALSE))/1000*$AE$4 -> 66.8388034 | AO160: =(HLOOKUP(AO$159,CALCULATIONS!$BEM$6:$BFA$140,'INFORME RESUMIDO DE LOS COSTOS '!$A$1+1,FALSE))/1000*$AE$4 -> 0 | AP160: =(HLOOKUP(AP$159,CALCULATIONS!$BEM$6:$BFA$140,'INFORME RESUMIDO DE LOS COSTOS '!$A$1+1,FALSE))/1000*$AE$4 ->  | AQ160: =(HLOOKUP(AQ$159,CALCULATIONS!$BEM$6:$BFA$140,'INFORME RESUMIDO DE LOS COSTOS '!$A$1+1,FALSE))/1000*$AE$4 ->  | AR160: =(HLOOKUP(AR$159,CALCULATIONS!$BEM$6:$BFA$140,'INFORME RESUMIDO DE LOS COSTOS '!$A$1+1,FALSE))/1000*$AE$4 ->  | AS160: =(HLOOKUP(AS$159,CALCULATIONS!$BEM$6:$BFA$140,'INFORME RESUMIDO DE LOS COSTOS '!$A$1+1,FALSE))/1000*$AE$4 ->  | AT160: =(HLOOKUP(AT$159,CALCULATIONS!$BJI$6:$BJW$140,'INFORME RESUMIDO DE LOS COSTOS '!$A$1+1,FALSE))/1000*$AE$4 -> 76.05274532 | AU160: =(HLOOKUP(AU$159,CALCULATIONS!$BJI$6:$BJW$140,'INFORME RESUMIDO DE LOS COSTOS '!$A$1+1,FALSE))/1000*$AE$4 -> 79.40566325 | AV160: =(HLOOKUP(AV$159,CALCULATIONS!$BJI$6:$BJW$140,'INFORME RESUMIDO DE LOS COSTOS '!$A$1+1,FALSE))/1000*$AE$4 -> 82.26680047 | AW160: =(HLOOKUP(AW$159,CALCULATIONS!$BJI$6:$BJW$140,'INFORME RESUMIDO DE LOS COSTOS '!$A$1+1,FALSE))/1000*$AE$4 -> 84.67539023 | AX160: =(HLOOKUP(AX$159,CALCULATIONS!$BJI$6:$BJW$140,'INFORME RESUMIDO DE LOS COSTOS '!$A$1+1,FALSE))/1000*$AE$4 -> 86.66804446 | AY160: =(HLOOKUP(AY$159,CALCULATIONS!$BJI$6:$BJW$140,'INFORME RESUMIDO DE LOS COSTOS '!$A$1+1,FALSE))/1000*$AE$4 -> 88.27891441 | AZ160: =(HLOOKUP(AZ$159,CALCULATIONS!$BJI$6:$BJW$140,'INFORME RESUMIDO DE LOS COSTOS '!$A$1+1,FALSE))/1000*$AE$4 -> 89.53984199 | BA160: =(HLOOKUP(BA$159,CALCULATIONS!$BJI$6:$BJW$140,'INFORME RESUMIDO DE LOS COSTOS '!$A$1+1,FALSE))/1000*$AE$4 -> 90.48050229 | BB160: =(HLOOKUP(BB$159,CALCULATIONS!$BJI$6:$BJW$140,'INFORME RESUMIDO DE LOS COSTOS '!$A$1+1,FALSE))/1000*$AE$4 -> 91.1285377 | BC160: =(HLOOKUP(BC$159,CALCULATIONS!$BJI$6:$BJW$140,'INFORME RESUMIDO DE LOS COSTOS '!$A$1+1,FALSE))/1000*$AE$4 -> 91.50968425 | BD160: =(HLOOKUP(BD$159,CALCULATIONS!$BJI$6:$BJW$140,'INFORME RESUMIDO DE LOS COSTOS '!$A$1+1,FALSE))/1000*$AE$4 -> 18.32957809 | BE160: =(HLOOKUP(BE$159,CALCULATIONS!$BJI$6:$BJW$140,'INFORME RESUMIDO DE LOS COSTOS '!$A$1+1,FALSE))/1000*$AE$4 ->  | BF160: =(HLOOKUP(BF$159,CALCULATIONS!$BJI$6:$BJW$140,'INFORME RESUMIDO DE LOS COSTOS '!$A$1+1,FALSE))/1000*$AE$4 ->  | BG160: =(HLOOKUP(BG$159,CALCULATIONS!$BJI$6:$BJW$140,'INFORME RESUMIDO DE LOS COSTOS '!$A$1+1,FALSE))/1000*$AE$4 ->  | BH160: =(HLOOKUP(BH$159,CALCULATIONS!$BJI$6:$BJW$140,'INFORME RESUMIDO DE LOS COSTOS '!$A$1+1,FALSE))/1000*$AE$4 -> 
AD161: Abastecimiento de agua gestionado de forma segura | AE161: =(HLOOKUP(AE$159,CALCULATIONS!$DAY$6:$DBM$140,'INFORME RESUMIDO DE LOS COSTOS '!$A$1+1,FALSE))/1000*$AE$4 -> 262.6779822 | AF161: =(HLOOKUP(AF$159,CALCULATIONS!$DAY$6:$DBM$140,'INFORME RESUMIDO DE LOS COSTOS '!$A$1+1,FALSE))/1000*$AE$4 -> 291.4126921 | AG161: =(HLOOKUP(AG$159,CALCULATIONS!$DAY$6:$DBM$140,'INFORME RESUMIDO DE LOS COSTOS '!$A$1+1,FALSE))/1000*$AE$4 -> 316.8151213 | AH161: =(HLOOKUP(AH$159,CALCULATIONS!$DAY$6:$DBM$140,'INFORME RESUMIDO DE LOS COSTOS '!$A$1+1,FALSE))/1000*$AE$4 -> 339.1374717 | AI161: =(HLOOKUP(AI$159,CALCULATIONS!$DAY$6:$DBM$140,'INFORME RESUMIDO DE LOS COSTOS '!$A$1+1,FALSE))/1000*$AE$4 -> 358.6154824 | AJ161: =(HLOOKUP(AJ$159,CALCULATIONS!$DAY$6:$DBM$140,'INFORME RESUMIDO DE LOS COSTOS '!$A$1+1,FALSE))/1000*$AE$4 -> 375.4694253 | AK161: =(HLOOKUP(AK$159,CALCULATIONS!$DAY$6:$DBM$140,'INFORME RESUMIDO DE LOS COSTOS '!$A$1+1,FALSE))/1000*$AE$4 -> 389.9050436 | AL161: =(HLOOKUP(AL$159,CALCULATIONS!$DAY$6:$DBM$140,'INFORME RESUMIDO DE LOS COSTOS '!$A$1+1,FALSE))/1000*$AE$4 -> 402.1144366 | AM161: =(HLOOKUP(AM$159,CALCULATIONS!$DAY$6:$DBM$140,'INFORME RESUMIDO DE LOS COSTOS '!$A$1+1,FALSE))/1000*$AE$4 -> 412.2768919 | AN161: =(HLOOKUP(AN$159,CALCULATIONS!$DAY$6:$DBM$140,'INFORME RESUMIDO DE LOS COSTOS '!$A$1+1,FALSE))/1000*$AE$4 -> 420.5596701 | AO161: =(HLOOKUP(AO$159,CALCULATIONS!$DAY$6:$DBM$140,'INFORME RESUMIDO DE LOS COSTOS '!$A$1+1,FALSE))/1000*$AE$4 -> 0 | AP161: =(HLOOKUP(AP$159,CALCULATIONS!$DAY$6:$DBM$140,'INFORME RESUMIDO DE LOS COSTOS '!$A$1+1,FALSE))/1000*$AE$4 ->  | AQ161: =(HLOOKUP(AQ$159,CALCULATIONS!$DAY$6:$DBM$140,'INFORME RESUMIDO DE LOS COSTOS '!$A$1+1,FALSE))/1000*$AE$4 ->  | AR161: =(HLOOKUP(AR$159,CALCULATIONS!$DAY$6:$DBM$140,'INFORME RESUMIDO DE LOS COSTOS '!$A$1+1,FALSE))/1000*$AE$4 ->  | AS161: =(HLOOKUP(AS$159,CALCULATIONS!$DAY$6:$DBM$140,'INFORME RESUMIDO DE LOS COSTOS '!$A$1+1,FALSE))/1000*$AE$4 ->  | AT161: =(HLOOKUP(AT$159,CALCULATIONS!$DFU$6:$DGI$140,'INFORME RESUMIDO DE LOS COSTOS '!$A$1+1,FALSE))/1000*$AE$4 -> 282.5163823 | AU161: =(HLOOKUP(AU$159,CALCULATIONS!$DFU$6:$DGI$140,'INFORME RESUMIDO DE LOS COSTOS '!$A$1+1,FALSE))/1000*$AE$4 -> 339.8213619 | AV161: =(HLOOKUP(AV$159,CALCULATIONS!$DFU$6:$DGI$140,'INFORME RESUMIDO DE LOS COSTOS '!$A$1+1,FALSE))/1000*$AE$4 -> 391.0280977 | AW161: =(HLOOKUP(AW$159,CALCULATIONS!$DFU$6:$DGI$140,'INFORME RESUMIDO DE LOS COSTOS '!$A$1+1,FALSE))/1000*$AE$4 -> 436.5874316 | AX161: =(HLOOKUP(AX$159,CALCULATIONS!$DFU$6:$DGI$140,'INFORME RESUMIDO DE LOS COSTOS '!$A$1+1,FALSE))/1000*$AE$4 -> 476.9210962 | AY161: =(HLOOKUP(AY$159,CALCULATIONS!$DFU$6:$DGI$140,'INFORME RESUMIDO DE LOS COSTOS '!$A$1+1,FALSE))/1000*$AE$4 -> 512.4234653 | AZ161: =(HLOOKUP(AZ$159,CALCULATIONS!$DFU$6:$DGI$140,'INFORME RESUMIDO DE LOS COSTOS '!$A$1+1,FALSE))/1000*$AE$4 -> 543.4632026 | BA161: =(HLOOKUP(BA$159,CALCULATIONS!$DFU$6:$DGI$140,'INFORME RESUMIDO DE LOS COSTOS '!$A$1+1,FALSE))/1000*$AE$4 -> 570.3848165 | BB161: =(HLOOKUP(BB$159,CALCULATIONS!$DFU$6:$DGI$140,'INFORME RESUMIDO DE LOS COSTOS '!$A$1+1,FALSE))/1000*$AE$4 -> 593.5101243 | BC161: =(HLOOKUP(BC$159,CALCULATIONS!$DFU$6:$DGI$140,'INFORME RESUMIDO DE LOS COSTOS '!$A$1+1,FALSE))/1000*$AE$4 -> 613.1396322 | BD161: =(HLOOKUP(BD$159,CALCULATIONS!$DFU$6:$DGI$140,'INFORME RESUMIDO DE LOS COSTOS '!$A$1+1,FALSE))/1000*$AE$4 -> 0 | BE161: =(HLOOKUP(BE$159,CALCULATIONS!$DFU$6:$DGI$140,'INFORME RESUMIDO DE LOS COSTOS '!$A$1+1,FALSE))/1000*$AE$4 ->  | BF161: =(HLOOKUP(BF$159,CALCULATIONS!$DFU$6:$DGI$140,'INFORME RESUMIDO DE LOS COSTOS '!$A$1+1,FALSE))/1000*$AE$4 ->  | BG161: =(HLOOKUP(BG$159,CALCULATIONS!$DFU$6:$DGI$140,'INFORME RESUMIDO DE LOS COSTOS '!$A$1+1,FALSE))/1000*$AE$4 ->  | BH161: =(HLOOKUP(BH$159,CALCULATIONS!$DFU$6:$DGI$140,'INFORME RESUMIDO DE LOS COSTOS '!$A$1+1,FALSE))/1000*$AE$4 -> 
AD162: Saneamiento básico | AE162: =(HLOOKUP(AE$159,CALCULATIONS!$BXW$6:$BYK$140,'INFORME RESUMIDO DE LOS COSTOS '!$A$1+1,FALSE))/1000*$AE$4 -> 804.1559419 | AF162: =(HLOOKUP(AF$159,CALCULATIONS!$BXW$6:$BYK$140,'INFORME RESUMIDO DE LOS COSTOS '!$A$1+1,FALSE))/1000*$AE$4 -> 834.818395 | AG162: =(HLOOKUP(AG$159,CALCULATIONS!$BXW$6:$BYK$140,'INFORME RESUMIDO DE LOS COSTOS '!$A$1+1,FALSE))/1000*$AE$4 -> 860.7371317 | AH162: =(HLOOKUP(AH$159,CALCULATIONS!$BXW$6:$BYK$140,'INFORME RESUMIDO DE LOS COSTOS '!$A$1+1,FALSE))/1000*$AE$4 -> 882.294405 | AI162: =(HLOOKUP(AI$159,CALCULATIONS!$BXW$6:$BYK$140,'INFORME RESUMIDO DE LOS COSTOS '!$A$1+1,FALSE))/1000*$AE$4 -> 899.8468197 | AJ162: =(HLOOKUP(AJ$159,CALCULATIONS!$BXW$6:$BYK$140,'INFORME RESUMIDO DE LOS COSTOS '!$A$1+1,FALSE))/1000*$AE$4 -> 913.7269084 | AK162: =(HLOOKUP(AK$159,CALCULATIONS!$BXW$6:$BYK$140,'INFORME RESUMIDO DE LOS COSTOS '!$A$1+1,FALSE))/1000*$AE$4 -> 924.2446148 | AL162: =(HLOOKUP(AL$159,CALCULATIONS!$BXW$6:$BYK$140,'INFORME RESUMIDO DE LOS COSTOS '!$A$1+1,FALSE))/1000*$AE$4 -> 931.6886919 | AM162: =(HLOOKUP(AM$159,CALCULATIONS!$BXW$6:$BYK$140,'INFORME RESUMIDO DE LOS COSTOS '!$A$1+1,FALSE))/1000*$AE$4 -> 936.3280164 | AN162: =(HLOOKUP(AN$159,CALCULATIONS!$BXW$6:$BYK$140,'INFORME RESUMIDO DE LOS COSTOS '!$A$1+1,FALSE))/1000*$AE$4 -> 938.4128277 | AO162: =(HLOOKUP(AO$159,CALCULATIONS!$BXW$6:$BYK$140,'INFORME RESUMIDO DE LOS COSTOS '!$A$1+1,FALSE))/1000*$AE$4 -> 0 | AP162: =(HLOOKUP(AP$159,CALCULATIONS!$BXW$6:$BYK$140,'INFORME RESUMIDO DE LOS COSTOS '!$A$1+1,FALSE))/1000*$AE$4 ->  | AQ162: =(HLOOKUP(AQ$159,CALCULATIONS!$BXW$6:$BYK$140,'INFORME RESUMIDO DE LOS COSTOS '!$A$1+1,FALSE))/1000*$AE$4 ->  | AR162: =(HLOOKUP(AR$159,CALCULATIONS!$BXW$6:$BYK$140,'INFORME RESUMIDO DE LOS COSTOS '!$A$1+1,FALSE))/1000*$AE$4 ->  | AS162: =(HLOOKUP(AS$159,CALCULATIONS!$BXW$6:$BYK$140,'INFORME RESUMIDO DE LOS COSTOS '!$A$1+1,FALSE))/1000*$AE$4 ->  | AT162: =(HLOOKUP(AT$159,CALCULATIONS!$CCS$6:$CDG$140,'INFORME RESUMIDO DE LOS COSTOS '!$A$1+1,FALSE))/1000*$AE$4 -> 143.8466095 | AU162: =(HLOOKUP(AU$159,CALCULATIONS!$CCS$6:$CDG$140,'INFORME RESUMIDO DE LOS COSTOS '!$A$1+1,FALSE))/1000*$AE$4 -> 151.7429256 | AV162: =(HLOOKUP(AV$159,CALCULATIONS!$CCS$6:$CDG$140,'INFORME RESUMIDO DE LOS COSTOS '!$A$1+1,FALSE))/1000*$AE$4 -> 158.5610289 | AW162: =(HLOOKUP(AW$159,CALCULATIONS!$CCS$6:$CDG$140,'INFORME RESUMIDO DE LOS COSTOS '!$A$1+1,FALSE))/1000*$AE$4 -> 164.3857007 | AX162: =(HLOOKUP(AX$159,CALCULATIONS!$CCS$6:$CDG$140,'INFORME RESUMIDO DE LOS COSTOS '!$A$1+1,FALSE))/1000*$AE$4 -> 169.2960931 | AY162: =(HLOOKUP(AY$159,CALCULATIONS!$CCS$6:$CDG$140,'INFORME RESUMIDO DE LOS COSTOS '!$A$1+1,FALSE))/1000*$AE$4 -> 173.3660724 | AZ162: =(HLOOKUP(AZ$159,CALCULATIONS!$CCS$6:$CDG$140,'INFORME RESUMIDO DE LOS COSTOS '!$A$1+1,FALSE))/1000*$AE$4 -> 176.6645432 | BA162: =(HLOOKUP(BA$159,CALCULATIONS!$CCS$6:$CDG$140,'INFORME RESUMIDO DE LOS COSTOS '!$A$1+1,FALSE))/1000*$AE$4 -> 179.2557536 | BB162: =(HLOOKUP(BB$159,CALCULATIONS!$CCS$6:$CDG$140,'INFORME RESUMIDO DE LOS COSTOS '!$A$1+1,FALSE))/1000*$AE$4 -> 181.1995821 | BC162: =(HLOOKUP(BC$159,CALCULATIONS!$CCS$6:$CDG$140,'INFORME RESUMIDO DE LOS COSTOS '!$A$1+1,FALSE))/1000*$AE$4 -> 182.5518086 | BD162: =(HLOOKUP(BD$159,CALCULATIONS!$CCS$6:$CDG$140,'INFORME RESUMIDO DE LOS COSTOS '!$A$1+1,FALSE))/1000*$AE$4 -> 0 | BE162: =(HLOOKUP(BE$159,CALCULATIONS!$CCS$6:$CDG$140,'INFORME RESUMIDO DE LOS COSTOS '!$A$1+1,FALSE))/1000*$AE$4 ->  | BF162: =(HLOOKUP(BF$159,CALCULATIONS!$CCS$6:$CDG$140,'INFORME RESUMIDO DE LOS COSTOS '!$A$1+1,FALSE))/1000*$AE$4 ->  | BG162: =(HLOOKUP(BG$159,CALCULATIONS!$CCS$6:$CDG$140,'INFORME RESUMIDO DE LOS COSTOS '!$A$1+1,FALSE))/1000*$AE$4 ->  | BH162: =(HLOOKUP(BH$159,CALCULATIONS!$CCS$6:$CDG$140,'INFORME RESUMIDO DE LOS COSTOS '!$A$1+1,FALSE))/1000*$AE$4 -> 
AD163: Punto fijo para la defecación | AE163: 0 | AF163: 0 | AG163: 0 | AH163: 0 | AI163: 0 | AJ163: 0 | AK163: 0 | AL163: 0 | AM163: 0 | AN163: 0 | AO163: 0 | AP163: 0 | AQ163: 0 | AR163: 0 | AS163: 0 | AT163: =(HLOOKUP(AT$159,CALCULATIONS!$BTA$6:$BTO$140,'INFORME RESUMIDO DE LOS COSTOS '!$A$1+1,FALSE))/1000*$AE$4 -> 65.16111246 | AU163: =(HLOOKUP(AU$159,CALCULATIONS!$BTA$6:$BTO$140,'INFORME RESUMIDO DE LOS COSTOS '!$A$1+1,FALSE))/1000*$AE$4 -> 74.94730366 | AV163: =(HLOOKUP(AV$159,CALCULATIONS!$BTA$6:$BTO$140,'INFORME RESUMIDO DE LOS COSTOS '!$A$1+1,FALSE))/1000*$AE$4 -> 133.5502679 | AW163: =(HLOOKUP(AW$159,CALCULATIONS!$BTA$6:$BTO$140,'INFORME RESUMIDO DE LOS COSTOS '!$A$1+1,FALSE))/1000*$AE$4 -> 141.8042249 | AX163: =(HLOOKUP(AX$159,CALCULATIONS!$BTA$6:$BTO$140,'INFORME RESUMIDO DE LOS COSTOS '!$A$1+1,FALSE))/1000*$AE$4 -> 188.6598513 | AY163: =(HLOOKUP(AY$159,CALCULATIONS!$BTA$6:$BTO$140,'INFORME RESUMIDO DE LOS COSTOS '!$A$1+1,FALSE))/1000*$AE$4 -> 0 | AZ163: =(HLOOKUP(AZ$159,CALCULATIONS!$BTA$6:$BTO$140,'INFORME RESUMIDO DE LOS COSTOS '!$A$1+1,FALSE))/1000*$AE$4 -> 0 | BA163: =(HLOOKUP(BA$159,CALCULATIONS!$BTA$6:$BTO$140,'INFORME RESUMIDO DE LOS COSTOS '!$A$1+1,FALSE))/1000*$AE$4 -> 0 | BB163: =(HLOOKUP(BB$159,CALCULATIONS!$BTA$6:$BTO$140,'INFORME RESUMIDO DE LOS COSTOS '!$A$1+1,FALSE))/1000*$AE$4 -> 0 | BC163: =(HLOOKUP(BC$159,CALCULATIONS!$BTA$6:$BTO$140,'INFORME RESUMIDO DE LOS COSTOS '!$A$1+1,FALSE))/1000*$AE$4 -> 0 | BD163: =(HLOOKUP(BD$159,CALCULATIONS!$BTA$6:$BTO$140,'INFORME RESUMIDO DE LOS COSTOS '!$A$1+1,FALSE))/1000*$AE$4 -> 0 | BE163: =(HLOOKUP(BE$159,CALCULATIONS!$BTA$6:$BTO$140,'INFORME RESUMIDO DE LOS COSTOS '!$A$1+1,FALSE))/1000*$AE$4 ->  | BF163: =(HLOOKUP(BF$159,CALCULATIONS!$BTA$6:$BTO$140,'INFORME RESUMIDO DE LOS COSTOS '!$A$1+1,FALSE))/1000*$AE$4 ->  | BG163: =(HLOOKUP(BG$159,CALCULATIONS!$BTA$6:$BTO$140,'INFORME RESUMIDO DE LOS COSTOS '!$A$1+1,FALSE))/1000*$AE$4 ->  | BH163: =(HLOOKUP(BH$159,CALCULATIONS!$BTA$6:$BTO$140,'INFORME RESUMIDO DE LOS COSTOS '!$A$1+1,FALSE))/1000*$AE$4 -> 
AD164: Saneamiento gestionado de forma segura | AE164: =(HLOOKUP(AE$159,CALCULATIONS!$DLL$6:$DLZ$140,'INFORME RESUMIDO DE LOS COSTOS '!$A$1+1,FALSE))/1000*$AE$4 -> 235.4290523 | AF164: =(HLOOKUP(AF$159,CALCULATIONS!$DLL$6:$DLZ$140,'INFORME RESUMIDO DE LOS COSTOS '!$A$1+1,FALSE))/1000*$AE$4 -> 230.5335811 | AG164: =(HLOOKUP(AG$159,CALCULATIONS!$DLL$6:$DLZ$140,'INFORME RESUMIDO DE LOS COSTOS '!$A$1+1,FALSE))/1000*$AE$4 -> 231.7052633 | AH164: =(HLOOKUP(AH$159,CALCULATIONS!$DLL$6:$DLZ$140,'INFORME RESUMIDO DE LOS COSTOS '!$A$1+1,FALSE))/1000*$AE$4 -> 232.2426048 | AI164: =(HLOOKUP(AI$159,CALCULATIONS!$DLL$6:$DLZ$140,'INFORME RESUMIDO DE LOS COSTOS '!$A$1+1,FALSE))/1000*$AE$4 -> 232.2033622 | AJ164: =(HLOOKUP(AJ$159,CALCULATIONS!$DLL$6:$DLZ$140,'INFORME RESUMIDO DE LOS COSTOS '!$A$1+1,FALSE))/1000*$AE$4 -> 231.6412298 | AK164: =(HLOOKUP(AK$159,CALCULATIONS!$DLL$6:$DLZ$140,'INFORME RESUMIDO DE LOS COSTOS '!$A$1+1,FALSE))/1000*$AE$4 -> 230.6060955 | AL164: =(HLOOKUP(AL$159,CALCULATIONS!$DLL$6:$DLZ$140,'INFORME RESUMIDO DE LOS COSTOS '!$A$1+1,FALSE))/1000*$AE$4 -> 229.1442819 | AM164: =(HLOOKUP(AM$159,CALCULATIONS!$DLL$6:$DLZ$140,'INFORME RESUMIDO DE LOS COSTOS '!$A$1+1,FALSE))/1000*$AE$4 -> 227.2987724 | AN164: =(HLOOKUP(AN$159,CALCULATIONS!$DLL$6:$DLZ$140,'INFORME RESUMIDO DE LOS COSTOS '!$A$1+1,FALSE))/1000*$AE$4 -> 225.1094241 | AO164: =(HLOOKUP(AO$159,CALCULATIONS!$DLL$6:$DLZ$140,'INFORME RESUMIDO DE LOS COSTOS '!$A$1+1,FALSE))/1000*$AE$4 -> 0 | AP164: =(HLOOKUP(AP$159,CALCULATIONS!$DLL$6:$DLZ$140,'INFORME RESUMIDO DE LOS COSTOS '!$A$1+1,FALSE))/1000*$AE$4 ->  | AQ164: =(HLOOKUP(AQ$159,CALCULATIONS!$DLL$6:$DLZ$140,'INFORME RESUMIDO DE LOS COSTOS '!$A$1+1,FALSE))/1000*$AE$4 ->  | AR164: =(HLOOKUP(AR$159,CALCULATIONS!$DLL$6:$DLZ$140,'INFORME RESUMIDO DE LOS COSTOS '!$A$1+1,FALSE))/1000*$AE$4 ->  | AS164: =(HLOOKUP(AS$159,CALCULATIONS!$DLL$6:$DLZ$140,'INFORME RESUMIDO DE LOS COSTOS '!$A$1+1,FALSE))/1000*$AE$4 ->  | AT164: =(HLOOKUP(AT$159,CALCULATIONS!$DMG$6:$DMU$140,'INFORME RESUMIDO DE LOS COSTOS '!$A$1+1,FALSE))/1000*$AE$4 -> 825.5817901 | AU164: =(HLOOKUP(AU$159,CALCULATIONS!$DMG$6:$DMU$140,'INFORME RESUMIDO DE LOS COSTOS '!$A$1+1,FALSE))/1000*$AE$4 -> 783.5895951 | AV164: =(HLOOKUP(AV$159,CALCULATIONS!$DMG$6:$DMU$140,'INFORME RESUMIDO DE LOS COSTOS '!$A$1+1,FALSE))/1000*$AE$4 -> 765.580195 | AW164: =(HLOOKUP(AW$159,CALCULATIONS!$DMG$6:$DMU$140,'INFORME RESUMIDO DE LOS COSTOS '!$A$1+1,FALSE))/1000*$AE$4 -> 747.5091286 | AX164: =(HLOOKUP(AX$159,CALCULATIONS!$DMG$6:$DMU$140,'INFORME RESUMIDO DE LOS COSTOS '!$A$1+1,FALSE))/1000*$AE$4 -> 729.4231067 | AY164: =(HLOOKUP(AY$159,CALCULATIONS!$DMG$6:$DMU$140,'INFORME RESUMIDO DE LOS COSTOS '!$A$1+1,FALSE))/1000*$AE$4 -> 711.364531 | AZ164: =(HLOOKUP(AZ$159,CALCULATIONS!$DMG$6:$DMU$140,'INFORME RESUMIDO DE LOS COSTOS '!$A$1+1,FALSE))/1000*$AE$4 -> 693.371799 | BA164: =(HLOOKUP(BA$159,CALCULATIONS!$DMG$6:$DMU$140,'INFORME RESUMIDO DE LOS COSTOS '!$A$1+1,FALSE))/1000*$AE$4 -> 675.4795891 | BB164: =(HLOOKUP(BB$159,CALCULATIONS!$DMG$6:$DMU$140,'INFORME RESUMIDO DE LOS COSTOS '!$A$1+1,FALSE))/1000*$AE$4 -> 657.7191275 | BC164: =(HLOOKUP(BC$159,CALCULATIONS!$DMG$6:$DMU$140,'INFORME RESUMIDO DE LOS COSTOS '!$A$1+1,FALSE))/1000*$AE$4 -> 640.1184386 | BD164: =(HLOOKUP(BD$159,CALCULATIONS!$DMG$6:$DMU$140,'INFORME RESUMIDO DE LOS COSTOS '!$A$1+1,FALSE))/1000*$AE$4 -> 0 | BE164: =(HLOOKUP(BE$159,CALCULATIONS!$DMG$6:$DMU$140,'INFORME RESUMIDO DE LOS COSTOS '!$A$1+1,FALSE))/1000*$AE$4 ->  | BF164: =(HLOOKUP(BF$159,CALCULATIONS!$DMG$6:$DMU$140,'INFORME RESUMIDO DE LOS COSTOS '!$A$1+1,FALSE))/1000*$AE$4 ->  | BG164: =(HLOOKUP(BG$159,CALCULATIONS!$DMG$6:$DMU$140,'INFORME RESUMIDO DE LOS COSTOS '!$A$1+1,FALSE))/1000*$AE$4 ->  | BH164: =(HLOOKUP(BH$159,CALCULATIONS!$DMG$6:$DMU$140,'INFORME RESUMIDO DE LOS COSTOS '!$A$1+1,FALSE))/1000*$AE$4 -> 
AD165: Estación de lavado de manos con jabón y agua | AE165: =(HLOOKUP(AE$159,CALCULATIONS!$CMK$6:$CMY$140,'INFORME RESUMIDO DE LOS COSTOS '!$A$1+1,FALSE))/1000*$AE$4 -> 52.46431703 | AF165: =(HLOOKUP(AF$159,CALCULATIONS!$CMK$6:$CMY$140,'INFORME RESUMIDO DE LOS COSTOS '!$A$1+1,FALSE))/1000*$AE$4 -> 54.42145752 | AG165: =(HLOOKUP(AG$159,CALCULATIONS!$CMK$6:$CMY$140,'INFORME RESUMIDO DE LOS COSTOS '!$A$1+1,FALSE))/1000*$AE$4 -> 56.07323698 | AH165: =(HLOOKUP(AH$159,CALCULATIONS!$CMK$6:$CMY$140,'INFORME RESUMIDO DE LOS COSTOS '!$A$1+1,FALSE))/1000*$AE$4 -> 57.44429944 | AI165: =(HLOOKUP(AI$159,CALCULATIONS!$CMK$6:$CMY$140,'INFORME RESUMIDO DE LOS COSTOS '!$A$1+1,FALSE))/1000*$AE$4 -> 58.55763432 | AJ165: =(HLOOKUP(AJ$159,CALCULATIONS!$CMK$6:$CMY$140,'INFORME RESUMIDO DE LOS COSTOS '!$A$1+1,FALSE))/1000*$AE$4 -> 59.43467814 | AK165: =(HLOOKUP(AK$159,CALCULATIONS!$CMK$6:$CMY$140,'INFORME RESUMIDO DE LOS COSTOS '!$A$1+1,FALSE))/1000*$AE$4 -> 60.09541021 | AL165: =(HLOOKUP(AL$159,CALCULATIONS!$CMK$6:$CMY$140,'INFORME RESUMIDO DE LOS COSTOS '!$A$1+1,FALSE))/1000*$AE$4 -> 60.55844291 | AM165: =(HLOOKUP(AM$159,CALCULATIONS!$CMK$6:$CMY$140,'INFORME RESUMIDO DE LOS COSTOS '!$A$1+1,FALSE))/1000*$AE$4 -> 60.84110649 | AN165: =(HLOOKUP(AN$159,CALCULATIONS!$CMK$6:$CMY$140,'INFORME RESUMIDO DE LOS COSTOS '!$A$1+1,FALSE))/1000*$AE$4 -> 60.95952899 | AO165: =(HLOOKUP(AO$159,CALCULATIONS!$CMK$6:$CMY$140,'INFORME RESUMIDO DE LOS COSTOS '!$A$1+1,FALSE))/1000*$AE$4 -> 31.5921891 | AP165: =(HLOOKUP(AP$159,CALCULATIONS!$CMK$6:$CMY$140,'INFORME RESUMIDO DE LOS COSTOS '!$A$1+1,FALSE))/1000*$AE$4 ->  | AQ165: =(HLOOKUP(AQ$159,CALCULATIONS!$CMK$6:$CMY$140,'INFORME RESUMIDO DE LOS COSTOS '!$A$1+1,FALSE))/1000*$AE$4 ->  | AR165: =(HLOOKUP(AR$159,CALCULATIONS!$CMK$6:$CMY$140,'INFORME RESUMIDO DE LOS COSTOS '!$A$1+1,FALSE))/1000*$AE$4 ->  | AS165: =(HLOOKUP(AS$159,CALCULATIONS!$CMK$6:$CMY$140,'INFORME RESUMIDO DE LOS COSTOS '!$A$1+1,FALSE))/1000*$AE$4 ->  | AT165: =(HLOOKUP(AT$159,CALCULATIONS!$CRG$6:$CRU$140,'INFORME RESUMIDO DE LOS COSTOS '!$A$1+1,FALSE))/1000*$AE$4 -> 42.46359247 | AU165: =(HLOOKUP(AU$159,CALCULATIONS!$CRG$6:$CRU$140,'INFORME RESUMIDO DE LOS COSTOS '!$A$1+1,FALSE))/1000*$AE$4 -> 46.34922584 | AV165: =(HLOOKUP(AV$159,CALCULATIONS!$CRG$6:$CRU$140,'INFORME RESUMIDO DE LOS COSTOS '!$A$1+1,FALSE))/1000*$AE$4 -> 49.76850956 | AW165: =(HLOOKUP(AW$159,CALCULATIONS!$CRG$6:$CRU$140,'INFORME RESUMIDO DE LOS COSTOS '!$A$1+1,FALSE))/1000*$AE$4 -> 52.75704693 | AX165: =(HLOOKUP(AX$159,CALCULATIONS!$CRG$6:$CRU$140,'INFORME RESUMIDO DE LOS COSTOS '!$A$1+1,FALSE))/1000*$AE$4 -> 55.34810793 | AY165: =(HLOOKUP(AY$159,CALCULATIONS!$CRG$6:$CRU$140,'INFORME RESUMIDO DE LOS COSTOS '!$A$1+1,FALSE))/1000*$AE$4 -> 57.57277073 | AZ165: =(HLOOKUP(AZ$159,CALCULATIONS!$CRG$6:$CRU$140,'INFORME RESUMIDO DE LOS COSTOS '!$A$1+1,FALSE))/1000*$AE$4 -> 59.46005496 | BA165: =(HLOOKUP(BA$159,CALCULATIONS!$CRG$6:$CRU$140,'INFORME RESUMIDO DE LOS COSTOS '!$A$1+1,FALSE))/1000*$AE$4 -> 61.03704734 | BB165: =(HLOOKUP(BB$159,CALCULATIONS!$CRG$6:$CRU$140,'INFORME RESUMIDO DE LOS COSTOS '!$A$1+1,FALSE))/1000*$AE$4 -> 62.32901991 | BC165: =(HLOOKUP(BC$159,CALCULATIONS!$CRG$6:$CRU$140,'INFORME RESUMIDO DE LOS COSTOS '!$A$1+1,FALSE))/1000*$AE$4 -> 63.35954147 | BD165: =(HLOOKUP(BD$159,CALCULATIONS!$CRG$6:$CRU$140,'INFORME RESUMIDO DE LOS COSTOS '!$A$1+1,FALSE))/1000*$AE$4 -> 0 | BE165: =(HLOOKUP(BE$159,CALCULATIONS!$CRG$6:$CRU$140,'INFORME RESUMIDO DE LOS COSTOS '!$A$1+1,FALSE))/1000*$AE$4 ->  | BF165: =(HLOOKUP(BF$159,CALCULATIONS!$CRG$6:$CRU$140,'INFORME RESUMIDO DE LOS COSTOS '!$A$1+1,FALSE))/1000*$AE$4 ->  | BG165: =(HLOOKUP(BG$159,CALCULATIONS!$CRG$6:$CRU$140,'INFORME RESUMIDO DE LOS COSTOS '!$A$1+1,FALSE))/1000*$AE$4 ->  | BH165: =(HLOOKUP(BH$159,CALCULATIONS!$CRG$6:$CRU$140,'INFORME RESUMIDO DE LOS COSTOS '!$A$1+1,FALSE))/1000*$AE$4 -> 
D175: Los costos de los servicios de agua y saneamiento para que estos sean gestionados de forma segura son típicamente adicionales a los costos para lograr acceso básico.
D177: ="Figura 4b. Costos de capital totales en zonas rurales para que las personas sin servicio tengan servicio para el año 2030, en millones de " & $H$3 -> Figura 4b. Costos de capital totales en zonas rurales para que las personas sin servicio tengan servicio para el año 2030, en millones de USD
D196: Los costos de los servicios de agua y saneamiento para que estos sean gestionados de forma segura son típicamente adicionales a los costos para lograr acceso básico.
B199: 5. COSTOS GLOBALES (% del PIB)
D201: Figura 5a. Costos de capital anuales de conseguir que la población sin servicio logre acceso universal a diferentes niveles de servicio en 2030, como porcentaje del PIB
D217: Los costos de los servicios de agua y saneamiento para que estos sean gestionados de forma segura son típicamente adicionales a los costos para lograr acceso básico.
D219: Figura 5b. Costos de capital anuales de conseguir que la población que ya tiene servicio (en 2015) mantenga diferentes niveles de servicio en 2030, como porcentaje del PIB
D235: Los costos de los servicios de agua y saneamiento para que estos sean gestionados de forma segura son típicamente adicionales a los costos para lograr acceso básico.
D237: Figura 5c. Costos de capital anuales de conseguir que toda la población logre acceso universal a diferentes niveles de servicio en 2030, como porcentaje del PIB
D255: Los costos de los servicios de agua y saneamiento para que estos sean gestionados de forma segura son típicamente adicionales a los costos para lograr acceso básico.
B257: 6. DESGLOSE DE COSTOS POR CAPEX Y OPEX
AD258: 1000
D259: ="Figura 6a. Costos anuales de conseguir que la población sin servicio logre acceso universal a diferentes niveles de servicio en 2030, por componente de costos principal, en millones de " & $H$3 -> Figura 6a. Costos anuales de conseguir que la población sin servicio logre acceso universal a diferentes niveles de servicio en 2030, por componente de costos principal, en millones de USD
AD260: Cuadro 6. Costos anuales de conseguir que la población sin servicio logre acceso universal a diferentes niveles de servicio en 2030, por componente de costos principal, en millones de US$
AD261: New services | AE261: Llevar nuevos servicios a la población sin servicio | AK261: Mantener y explotar los servicios existentes | AQ261: Ampliar, mantener y explotar los servicios existentes
AE262: Zonas urbanas | AH262: Zonas rurales | AK262: Zonas urbanas | AN262: Zonas rurales | AQ262: Zonas urbanas | AT262: Zonas rurales
AE263: Capital | AF263: Capital maintenance | AG263: Operations | AH263: Capital | AI263: Capital maintenance | AJ263: Operations | AK263: Capital | AL263: Capital maintenance | AM263: Operations | AN263: Capital | AO263: Capital maintenance | AP263: Operations | AQ263: Capital | AR263: Capital maintenance | AS263: Operations | AT263: Capital | AU263: Capital maintenance | AV263: Operations
AE264: Zonas urbanas | AH264: Zonas rurales | AK264: Zonas urbanas | AN264: Zonas rurales | AQ264: Zonas urbanas | AT264: Zonas rurales
AE265: Capital | AF265: Mantenimiento de Capital | AG265: Operación | AH265: Capital | AI265: Mantenimiento de Capital | AJ265: Operación | AK265: Capital | AL265: Mantenimiento de Capital | AM265: Operación | AN265: Capital | AO265: Mantenimiento de Capital | AP265: Operación | AQ265: Capital | AR265: Mantenimiento de Capital | AS265: Operación | AT265: Capital | AU265: Mantenimiento de Capital | AV265: Operación
AD266: Abastecimiento de agua básico | AE266: =(HLOOKUP(AE$263,CALCULATIONS!$IJA$6:$IJC$140,'INFORME RESUMIDO DE LOS COSTOS '!$A$1+1,FALSE))/1000*$AE$4 -> 34.60381831 | AF266: =(HLOOKUP(AF$263,CALCULATIONS!$IJA$6:$IJC$140,'INFORME RESUMIDO DE LOS COSTOS '!$A$1+1,FALSE))/1000*$AE$4 -> 16.80179345 | AG266: =(HLOOKUP(AG$263,CALCULATIONS!$IJA$6:$IJC$140,'INFORME RESUMIDO DE LOS COSTOS '!$A$1+1,FALSE))/1000*$AE$4 -> 13.72950355 | AH266: =(HLOOKUP(AH$263,CALCULATIONS!$IJD$6:$IJF$140,'INFORME RESUMIDO DE LOS COSTOS '!$A$1+1,FALSE))/1000*$AE$4 -> 42.49867973 | AI266: =(HLOOKUP(AI$263,CALCULATIONS!$IJD$6:$IJF$140,'INFORME RESUMIDO DE LOS COSTOS '!$A$1+1,FALSE))/1000*$AE$4 -> 24.76581042 | AJ266: =(HLOOKUP(AJ$263,CALCULATIONS!$IJD$6:$IJF$140,'INFORME RESUMIDO DE LOS COSTOS '!$A$1+1,FALSE))/1000*$AE$4 -> 20.5690801 | AK266: =(HLOOKUP(AK$263,CALCULATIONS!$IME$6:$IMG$140,'INFORME RESUMIDO DE LOS COSTOS '!$A$1+1,FALSE))/1000*$AE$4 -> 12.5829701 | AL266: =(HLOOKUP(AL$263,CALCULATIONS!$IME$6:$IMG$140,'INFORME RESUMIDO DE LOS COSTOS '!$A$1+1,FALSE))/1000*$AE$4 -> 3.595134315 | AM266: =(HLOOKUP(AM$263,CALCULATIONS!$IME$6:$IMG$140,'INFORME RESUMIDO DE LOS COSTOS '!$A$1+1,FALSE))/1000*$AE$4 -> 6.607552311 | AN266: =(HLOOKUP(AN$263,CALCULATIONS!$IMH$6:$IMJ$140,'INFORME RESUMIDO DE LOS COSTOS '!$A$1+1,FALSE))/1000*$AE$4 -> 17.79952536 | AO266: =(HLOOKUP(AO$263,CALCULATIONS!$IMH$6:$IMJ$140,'INFORME RESUMIDO DE LOS COSTOS '!$A$1+1,FALSE))/1000*$AE$4 -> 7.426662165 | AP266: =(HLOOKUP(AP$263,CALCULATIONS!$IMH$6:$IMJ$140,'INFORME RESUMIDO DE LOS COSTOS '!$A$1+1,FALSE))/1000*$AE$4 -> 13.72797875 | AQ266: =(AE266+AK266) -> 47.18678841 | AR266: 20.39692777 | AS266: 20.33705586 | AT266: 60.29820509 | AU266: 32.19247258 | AV266: 34.29705884
AD267: Abastecimiento de agua gestionado de forma segura | AE267: =(HLOOKUP(AE$263,CALCULATIONS!$IJV$6:$IJX$140,'INFORME RESUMIDO DE LOS COSTOS '!$A$1+1,FALSE))/1000*$AE$4 -> 103.1466226 | AF267: =(HLOOKUP(AF$263,CALCULATIONS!$IJV$6:$IJX$140,'INFORME RESUMIDO DE LOS COSTOS '!$A$1+1,FALSE))/1000*$AE$4 -> 45.40082762 | AG267: =(HLOOKUP(AG$263,CALCULATIONS!$IJV$6:$IJX$140,'INFORME RESUMIDO DE LOS COSTOS '!$A$1+1,FALSE))/1000*$AE$4 -> 208.3509715 | AH267: =(HLOOKUP(AH$263,CALCULATIONS!$IJY$6:$IKA$140,'INFORME RESUMIDO DE LOS COSTOS '!$A$1+1,FALSE))/1000*$AE$4 -> 87.38864335 | AI267: =(HLOOKUP(AI$263,CALCULATIONS!$IJY$6:$IKA$140,'INFORME RESUMIDO DE LOS COSTOS '!$A$1+1,FALSE))/1000*$AE$4 -> 38.46482446 | AJ267: =(HLOOKUP(AJ$263,CALCULATIONS!$IJY$6:$IKA$140,'INFORME RESUMIDO DE LOS COSTOS '!$A$1+1,FALSE))/1000*$AE$4 -> 350.1260932 | AK267: =(HLOOKUP(AK$263,CALCULATIONS!$IMZ$6:$INB$140,'INFORME RESUMIDO DE LOS COSTOS '!$A$1+1,FALSE))/1000*$AE$4 -> 16.50412034 | AL267: =(HLOOKUP(AL$263,CALCULATIONS!$IMZ$6:$INB$140,'INFORME RESUMIDO DE LOS COSTOS '!$A$1+1,FALSE))/1000*$AE$4 -> 4.501123728 | AM267: =(HLOOKUP(AM$263,CALCULATIONS!$IMZ$6:$INB$140,'INFORME RESUMIDO DE LOS COSTOS '!$A$1+1,FALSE))/1000*$AE$4 -> 53.50172906 | AN267: =(HLOOKUP(AN$263,CALCULATIONS!$INC$6:$INE$140,'INFORME RESUMIDO DE LOS COSTOS '!$A$1+1,FALSE))/1000*$AE$4 -> 2.164876107 | AO267: =(HLOOKUP(AO$263,CALCULATIONS!$INC$6:$INE$140,'INFORME RESUMIDO DE LOS COSTOS '!$A$1+1,FALSE))/1000*$AE$4 -> 0.5904207564 | AP267: =(HLOOKUP(AP$263,CALCULATIONS!$INC$6:$INE$140,'INFORME RESUMIDO DE LOS COSTOS '!$A$1+1,FALSE))/1000*$AE$4 -> 13.91994266 | AQ267: 119.6507429 | AR267: 49.90195134 | AS267: 261.8527006 | AT267: 89.55351945 | AU267: 39.05524522 | AV267: 364.0460359
AD268: Saneamiento básico | AE268: =(HLOOKUP(AE$263,CALCULATIONS!$IJG$6:$IJI$140,'INFORME RESUMIDO DE LOS COSTOS '!$A$1+1,FALSE))/1000*$AE$4 -> 439.5434274 | AF268: =(HLOOKUP(AF$263,CALCULATIONS!$IJG$6:$IJI$140,'INFORME RESUMIDO DE LOS COSTOS '!$A$1+1,FALSE))/1000*$AE$4 -> 199.5491277 | AG268: =(HLOOKUP(AG$263,CALCULATIONS!$IJG$6:$IJI$140,'INFORME RESUMIDO DE LOS COSTOS '!$A$1+1,FALSE))/1000*$AE$4 -> 253.5328202 | AH268: =(HLOOKUP(AH$263,CALCULATIONS!$IJJ$6:$IJL$140,'INFORME RESUMIDO DE LOS COSTOS '!$A$1+1,FALSE))/1000*$AE$4 -> 93.95605158 | AI268: =(HLOOKUP(AI$263,CALCULATIONS!$IJJ$6:$IJL$140,'INFORME RESUMIDO DE LOS COSTOS '!$A$1+1,FALSE))/1000*$AE$4 -> 34.65176752 | AJ268: =(HLOOKUP(AJ$263,CALCULATIONS!$IJJ$6:$IJL$140,'INFORME RESUMIDO DE LOS COSTOS '!$A$1+1,FALSE))/1000*$AE$4 -> 39.47919266 | AK268: =(HLOOKUP(AK$263,CALCULATIONS!$IMK$6:$IMM$140,'INFORME RESUMIDO DE LOS COSTOS '!$A$1+1,FALSE))/1000*$AE$4 -> 74.73974078 | AL268: =(HLOOKUP(AL$263,CALCULATIONS!$IMK$6:$IMM$140,'INFORME RESUMIDO DE LOS COSTOS '!$A$1+1,FALSE))/1000*$AE$4 -> 1.509250261 | AM268: =(HLOOKUP(AM$263,CALCULATIONS!$IMK$6:$IMM$140,'INFORME RESUMIDO DE LOS COSTOS '!$A$1+1,FALSE))/1000*$AE$4 -> 67.29541117 | AN268: =(HLOOKUP(AN$263,CALCULATIONS!$IMN$6:$IMP$140,'INFORME RESUMIDO DE LOS COSTOS '!$A$1+1,FALSE))/1000*$AE$4 -> 21.01005776 | AO268: =(HLOOKUP(AO$263,CALCULATIONS!$IMN$6:$IMP$140,'INFORME RESUMIDO DE LOS COSTOS '!$A$1+1,FALSE))/1000*$AE$4 -> 3.206276137 | AP268: =(HLOOKUP(AP$263,CALCULATIONS!$IMN$6:$IMP$140,'INFORME RESUMIDO DE LOS COSTOS '!$A$1+1,FALSE))/1000*$AE$4 -> 12.23175329 | AQ268: 514.2831681 | AR268: 201.0583779 | AS268: 320.8282314 | AT268: 114.9661093 | AU268: 37.85804366 | AV268: 51.71094595
AD269: Punto fijo para la defecación | AE269: 0 | AF269: 0 | AG269: 0 | AH269: =(HLOOKUP(AH$263,CALCULATIONS!$IJS$6:$IJU$140,'INFORME RESUMIDO DE LOS COSTOS '!$A$1+1,FALSE))/1000*$AE$4 -> 73.13802934 | AI269: =(HLOOKUP(AI$263,CALCULATIONS!$IJS$6:$IJU$140,'INFORME RESUMIDO DE LOS COSTOS '!$A$1+1,FALSE))/1000*$AE$4 -> 39.32265616 | AJ269: =(HLOOKUP(AJ$263,CALCULATIONS!$IJS$6:$IJU$140,'INFORME RESUMIDO DE LOS COSTOS '!$A$1+1,FALSE))/1000*$AE$4 -> 8.363866547 | AK269: 0 | AL269: 0 | AM269: 0 | AN269: =(HLOOKUP(AN$263,CALCULATIONS!$IMW$6:$IMY$140,'INFORME RESUMIDO DE LOS COSTOS '!$A$1+1,FALSE))/1000*$AE$4 -> 271.2939445 | AO269: =(HLOOKUP(AO$263,CALCULATIONS!$IMW$6:$IMY$140,'INFORME RESUMIDO DE LOS COSTOS '!$A$1+1,FALSE))/1000*$AE$4 -> 74.7093795 | AP269: =(HLOOKUP(AP$263,CALCULATIONS!$IMW$6:$IMY$140,'INFORME RESUMIDO DE LOS COSTOS '!$A$1+1,FALSE))/1000*$AE$4 -> 33.37018951 | AQ269: 0 | AR269: 0 | AS269: 0 | AT269: 344.4319738 | AU269: 114.0320357 | AV269: 41.73405606
AD270: Saneamiento gestionado de forma segura | AE270: =(HLOOKUP(AE$263,CALCULATIONS!$IKB$6:$IKD$140,'INFORME RESUMIDO DE LOS COSTOS '!$A$1+1,FALSE))/1000*$AE$4 -> 105.3645266 | AF270: =(HLOOKUP(AF$263,CALCULATIONS!$IKB$6:$IKD$140,'INFORME RESUMIDO DE LOS COSTOS '!$A$1+1,FALSE))/1000*$AE$4 -> 46.37705618 | AG270: =(HLOOKUP(AG$263,CALCULATIONS!$IKB$6:$IKD$140,'INFORME RESUMIDO DE LOS COSTOS '!$A$1+1,FALSE))/1000*$AE$4 -> 78.84978392 | AH270: =(HLOOKUP(AH$263,CALCULATIONS!$IKE$6:$IKG$140,'INFORME RESUMIDO DE LOS COSTOS '!$A$1+1,FALSE))/1000*$AE$4 -> 396.1533592 | AI270: =(HLOOKUP(AI$263,CALCULATIONS!$IKE$6:$IKG$140,'INFORME RESUMIDO DE LOS COSTOS '!$A$1+1,FALSE))/1000*$AE$4 -> 174.3701337 | AJ270: =(HLOOKUP(AJ$263,CALCULATIONS!$IKE$6:$IKG$140,'INFORME RESUMIDO DE LOS COSTOS '!$A$1+1,FALSE))/1000*$AE$4 -> 152.4502372 | AK270: =(HLOOKUP(AK$263,CALCULATIONS!$INF$6:$INH$140,'INFORME RESUMIDO DE LOS COSTOS '!$A$1+1,FALSE))/1000*$AE$4 -> 8.137758823 | AL270: =(HLOOKUP(AL$263,CALCULATIONS!$INF$6:$INH$140,'INFORME RESUMIDO DE LOS COSTOS '!$A$1+1,FALSE))/1000*$AE$4 -> 2.770215811 | AM270: =(HLOOKUP(AM$263,CALCULATIONS!$INF$6:$INH$140,'INFORME RESUMIDO DE LOS COSTOS '!$A$1+1,FALSE))/1000*$AE$4 -> 13.20469536 | AN270: =(HLOOKUP(AN$263,CALCULATIONS!$INI$6:$INK$140,'INFORME RESUMIDO DE LOS COSTOS '!$A$1+1,FALSE))/1000*$AE$4 -> 175.5958887 | AO270: =(HLOOKUP(AO$263,CALCULATIONS!$INI$6:$INK$140,'INFORME RESUMIDO DE LOS COSTOS '!$A$1+1,FALSE))/1000*$AE$4 -> 47.88978783 | AP270: =(HLOOKUP(AP$263,CALCULATIONS!$INI$6:$INK$140,'INFORME RESUMIDO DE LOS COSTOS '!$A$1+1,FALSE))/1000*$AE$4 -> 22.14614698 | AQ270: 113.5022855 | AR270: 49.14727199 | AS270: 92.05447928 | AT270: 571.7492479 | AU270: 222.2599215 | AV270: 174.5963842
AD271: Estación de lavado de manos con jabón y agua | AE271: =(HLOOKUP(AE$263,CALCULATIONS!$IJM$6:$IJO$140,'INFORME RESUMIDO DE LOS COSTOS '!$A$1+1,FALSE))/1000*$AE$4 -> 45.79612679 | AF271: =(HLOOKUP(AF$263,CALCULATIONS!$IJM$6:$IJO$140,'INFORME RESUMIDO DE LOS COSTOS '!$A$1+1,FALSE))/1000*$AE$4 -> 11.83969247 | AG271: =(HLOOKUP(AG$263,CALCULATIONS!$IJM$6:$IJO$140,'INFORME RESUMIDO DE LOS COSTOS '!$A$1+1,FALSE))/1000*$AE$4 -> 17.29478423 | AH271: =(HLOOKUP(AH$263,CALCULATIONS!$IJP$6:$IJR$140,'INFORME RESUMIDO DE LOS COSTOS '!$A$1+1,FALSE))/1000*$AE$4 -> 23.71626446 | AI271: =(HLOOKUP(AI$263,CALCULATIONS!$IJP$6:$IJR$140,'INFORME RESUMIDO DE LOS COSTOS '!$A$1+1,FALSE))/1000*$AE$4 -> 1.617568855 | AJ271: =(HLOOKUP(AJ$263,CALCULATIONS!$IJP$6:$IJR$140,'INFORME RESUMIDO DE LOS COSTOS '!$A$1+1,FALSE))/1000*$AE$4 -> 29.7106584 | AK271: =(HLOOKUP(AK$263,CALCULATIONS!$IMQ$6:$IMS$140,'INFORME RESUMIDO DE LOS COSTOS '!$A$1+1,FALSE))/1000*$AE$4 -> 4.365399033 | AL271: =(HLOOKUP(AL$263,CALCULATIONS!$IMQ$6:$IMS$140,'INFORME RESUMIDO DE LOS COSTOS '!$A$1+1,FALSE))/1000*$AE$4 -> 0.4729581905 | AM271: =(HLOOKUP(AM$263,CALCULATIONS!$IMQ$6:$IMS$140,'INFORME RESUMIDO DE LOS COSTOS '!$A$1+1,FALSE))/1000*$AE$4 -> 1.522164291 | AN271: =(HLOOKUP(AN$263,CALCULATIONS!$IMT$6:$IMV$140,'INFORME RESUMIDO DE LOS COSTOS '!$A$1+1,FALSE))/1000*$AE$4 -> 1.372162049 | AO271: =(HLOOKUP(AO$263,CALCULATIONS!$IMT$6:$IMV$140,'INFORME RESUMIDO DE LOS COSTOS '!$A$1+1,FALSE))/1000*$AE$4 -> 0.05247378722 | AP271: =(HLOOKUP(AP$263,CALCULATIONS!$IMT$6:$IMV$140,'INFORME RESUMIDO DE LOS COSTOS '!$A$1+1,FALSE))/1000*$AE$4 -> 2.22616067 | AQ271: 50.16152582 | AR271: 12.31265066 | AS271: 18.81694853 | AT271: 25.08842651 | AU271: 1.670042642 | AV271: 31.93681907
D280: Los costos de los servicios de agua y saneamiento para que estos sean gestionados de forma segura son típicamente adicionales a los costos para lograr acceso básico.
D282: ="Figura 6b. Costos anuales de conseguir que la población que ya tiene servicio mantenga diferentes niveles de servicio en 2030, por componente de costos principal, en millones de " & $H$3 -> Figura 6b. Costos anuales de conseguir que la población que ya tiene servicio mantenga diferentes niveles de servicio en 2030, por componente de costos principal, en millones de USD
D301: Los costos de los servicios de agua y saneamiento para que estos sean gestionados de forma segura son típicamente adicionales a los costos para lograr acceso básico.
D303: ="Figura 6c. Costos anuales de conseguir que toda la población tenga diferentes niveles de servicio en 2030, por componente de costos principal, en millones de " & $H$3 -> Figura 6c. Costos anuales de conseguir que toda la población tenga diferentes niveles de servicio en 2030, por componente de costos principal, en millones de USD
D322: Los costos de los servicios de agua y saneamiento para que estos sean gestionados de forma segura son típicamente adicionales a los costos para lograr acceso básico.
B324: 7. FINANCIACIÓN PÚBLICA
D326: ="Figura 7a. Fondos destinados al abastecimiento de agua y al saneamiento en zonas rurales y urbanas, en millones de " & $H$3 -> Figura 7a. Fondos destinados al abastecimiento de agua y al saneamiento en zonas rurales y urbanas, en millones de USD
AE327: Location and sub-sector | AG327: United States Dollars (US$) in 2016 Prices
AG328: VALUE OF EXPENDITURE / BUDGET
AE329: SUB-SECTOR | AF329: RURAL / Urbano | AG329: PRESUPUESTOS NACIONALES GASTADOS | AH329: PRESUPUESTOS SUBNACIONALES GASTADOS | AI329: AOD ACTUAL (préstamos o financiación reembolsable) | AJ329: AOD ACTUAL (donaciones y transferencias voluntarias)
AE330: d make c | AF330: Urbano | AG330: ='HOJA DE VERIFICACIÓN DE DATOS'!E52*$AE$4 -> 0 | AH330: ='HOJA DE VERIFICACIÓN DE DATOS'!F52*$AE$4 -> 0 | AI330: ='HOJA DE VERIFICACIÓN DE DATOS'!G52*$AE$4 -> 0 | AJ330: ='HOJA DE VERIFICACIÓN DE DATOS'!H52*$AE$4 -> 0
AF331: Rural | AG331: ='HOJA DE VERIFICACIÓN DE DATOS'!E53*$AE$4 -> 0 | AH331: ='HOJA DE VERIFICACIÓN DE DATOS'!F53*$AE$4 -> 0 | AI331: ='HOJA DE VERIFICACIÓN DE DATOS'!G53*$AE$4 -> 0 | AJ331: ='HOJA DE VERIFICACIÓN DE DATOS'!H53*$AE$4 -> 0
AE332: Saneamiento e higiene | AF332: Urbano | AG332: ='HOJA DE VERIFICACIÓN DE DATOS'!E54*$AE$4 -> 0 | AH332: ='HOJA DE VERIFICACIÓN DE DATOS'!F54*$AE$4 -> 0 | AI332: ='HOJA DE VERIFICACIÓN DE DATOS'!G54*$AE$4 -> 0 | AJ332: ='HOJA DE VERIFICACIÓN DE DATOS'!H54*$AE$4 -> 0
AF333: Rural | AG333: ='HOJA DE VERIFICACIÓN DE DATOS'!E55*$AE$4 -> 0 | AH333: ='HOJA DE VERIFICACIÓN DE DATOS'!F55*$AE$4 -> 0 | AI333: ='HOJA DE VERIFICACIÓN DE DATOS'!G55*$AE$4 -> 0 | AJ333: ='HOJA DE VERIFICACIÓN DE DATOS'!H55*$AE$4 -> 0
AE334: Gasto en WASH, sin desglosar | AF334: Urbano | AG334: ='HOJA DE VERIFICACIÓN DE DATOS'!E56*$AE$4 -> 0 | AH334: ='HOJA DE VERIFICACIÓN DE DATOS'!F56*$AE$4 -> 0 | AI334: ='HOJA DE VERIFICACIÓN DE DATOS'!G56*$AE$4 -> 0 | AJ334: ='HOJA DE VERIFICACIÓN DE DATOS'!H56*$AE$4 -> 0
AF335: Rural | AG335: ='HOJA DE VERIFICACIÓN DE DATOS'!E57*$AE$4 -> 0 | AH335: ='HOJA DE VERIFICACIÓN DE DATOS'!F57*$AE$4 -> 0 | AI335: ='HOJA DE VERIFICACIÓN DE DATOS'!G57*$AE$4 -> 0 | AJ335: ='HOJA DE VERIFICACIÓN DE DATOS'!H57*$AE$4 -> 0
AE336: Total | AF336: Urbano | AG336: ='HOJA DE VERIFICACIÓN DE DATOS'!E58*$AE$4 -> 0 | AH336: ='HOJA DE VERIFICACIÓN DE DATOS'!F58*$AE$4 -> 0 | AI336: ='HOJA DE VERIFICACIÓN DE DATOS'!G58*$AE$4 -> 0 | AJ336: ='HOJA DE VERIFICACIÓN DE DATOS'!H58*$AE$4 -> 0
AF337: Rural | AG337: ='HOJA DE VERIFICACIÓN DE DATOS'!E59*$AE$4 -> 0 | AH337: ='HOJA DE VERIFICACIÓN DE DATOS'!F59*$AE$4 -> 0 | AI337: ='HOJA DE VERIFICACIÓN DE DATOS'!G59*$AE$4 -> 0 | AJ337: ='HOJA DE VERIFICACIÓN DE DATOS'!H59*$AE$4 -> 0
B348: 8. FUENTES DE FINANCIACIÓN
D350: ="Figura 8a. Fuentes de financiación para el gasto de capital destinado a llevar el servicio a personas que carecen de él en zonas urbanas basadas en el ratio de reparto de costos en millones de " & $H$3 -> Figura 8a. Fuentes de financiación para el gasto de capital destinado a llevar el servicio a personas que carecen de él en zonas urbanas basadas en el ratio de reparto de costos en millones de USD
AD356: Cuadro 7. Fuentes de financiación para el gasto de capital destinado a llevar servicio a personas sin servicio en zonas urbanas y rurales basadas en el ratio de reparto de costos en millones de US$
AE358: WASH básico | AW358: Lugares libres de defecación al aire libre | AZ358: Servicios seguros
AE359: Suministro de agua | AK359: Saneamiento | AQ359: Higiene | AZ359: Abastecimiento de agua seguro | BF359: Saneamiento seguro
AE360: Zonas urbanas | AH360: Zonas rurales | AK360: Zonas urbanas | AN360: Zonas rurales | AQ360: Zonas urbanas | AT360: Zonas rurales | AW360: Zonas rurales | AZ360: Zonas urbanas | BC360: Zonas rurales | BF360: Zonas urbanas | BI360: Zonas rurales
AE361: Capital | AF361: Capital maintenance | AG361: Operations | AH361: Capital | AI361: Capital maintenance | AJ361: Operations | AK361: Capital | AL361: Capital maintenance | AM361: Operations | AN361: Capital | AO361: Capital maintenance | AP361: Operations | AQ361: Capital | AR361: Capital maintenance | AS361: Operations | AT361: Capital | AU361: Capital maintenance | AV361: Operations | AW361: Capital | AX361: Capital maintenance | AY361: Operations | AZ361: Capital | BA361: Capital maintenance | BB361: Operations | BC361: Capital | BD361: Capital maintenance | BE361: Operations | BF361: Capital | BG361: Capital maintenance | BH361: Operations | BI361: Capital | BJ361: Capital maintenance | BK361: Operations
AD362: Total, del cual: | AE362: =HLOOKUP(AE361,CALCULATIONS!$IJA$6:$IJC$140,'INFORME RESUMIDO DE LOS COSTOS '!$A$1+1,FALSE)/1000*$AE$4 -> 34.60381831 | AF362: =HLOOKUP(AF361,CALCULATIONS!$IJA$6:$IJC$140,'INFORME RESUMIDO DE LOS COSTOS '!$A$1+1,FALSE)/1000*$AE$4 -> 16.80179345 | AG362: =HLOOKUP(AG361,CALCULATIONS!$IJA$6:$IJC$140,'INFORME RESUMIDO DE LOS COSTOS '!$A$1+1,FALSE)/1000*$AE$4 -> 13.72950355 | AH362: =HLOOKUP(AH361,CALCULATIONS!$IJD$6:$IJF$140,'INFORME RESUMIDO DE LOS COSTOS '!$A$1+1,FALSE)/1000*$AE$4 -> 42.49867973 | AI362: =HLOOKUP(AI361,CALCULATIONS!$IJD$6:$IJF$140,'INFORME RESUMIDO DE LOS COSTOS '!$A$1+1,FALSE)/1000*$AE$4 -> 24.76581042 | AJ362: =HLOOKUP(AJ361,CALCULATIONS!$IJD$6:$IJF$140,'INFORME RESUMIDO DE LOS COSTOS '!$A$1+1,FALSE)/1000*$AE$4 -> 20.5690801 | AK362: =HLOOKUP(AK361,CALCULATIONS!$IJG$6:$IJI$140,'INFORME RESUMIDO DE LOS COSTOS '!$A$1+1,FALSE)/1000*$AE$4 -> 439.5434274 | AL362: =HLOOKUP(AL361,CALCULATIONS!$IJG$6:$IJI$140,'INFORME RESUMIDO DE LOS COSTOS '!$A$1+1,FALSE)/1000*$AE$4 -> 199.5491277 | AM362: =HLOOKUP(AM361,CALCULATIONS!$IJG$6:$IJI$140,'INFORME RESUMIDO DE LOS COSTOS '!$A$1+1,FALSE)/1000*$AE$4 -> 253.5328202 | AN362: =HLOOKUP(AN361,CALCULATIONS!$IJJ$6:$IJL$140,'INFORME RESUMIDO DE LOS COSTOS '!$A$1+1,FALSE)/1000*$AE$4 -> 93.95605158 | AO362: =HLOOKUP(AO361,CALCULATIONS!$IJJ$6:$IJL$140,'INFORME RESUMIDO DE LOS COSTOS '!$A$1+1,FALSE)/1000*$AE$4 -> 34.65176752 | AP362: =HLOOKUP(AP361,CALCULATIONS!$IJJ$6:$IJL$140,'INFORME RESUMIDO DE LOS COSTOS '!$A$1+1,FALSE)/1000*$AE$4 -> 39.47919266 | AQ362: =HLOOKUP(AQ361,CALCULATIONS!$IJM$6:$IJO$140,'INFORME RESUMIDO DE LOS COSTOS '!$A$1+1,FALSE)/1000*$AE$4 -> 45.79612679 | AR362: =HLOOKUP(AR361,CALCULATIONS!$IJM$6:$IJO$140,'INFORME RESUMIDO DE LOS COSTOS '!$A$1+1,FALSE)/1000*$AE$4 -> 11.83969247 | AS362: =HLOOKUP(AS361,CALCULATIONS!$IJM$6:$IJO$140,'INFORME RESUMIDO DE LOS COSTOS '!$A$1+1,FALSE)/1000*$AE$4 -> 17.29478423 | AT362: =HLOOKUP(AT361,CALCULATIONS!$IJP$6:$IJR$140,'INFORME RESUMIDO DE LOS COSTOS '!$A$1+1,FALSE)/1000*$AE$4 -> 23.71626446 | AU362: =HLOOKUP(AU361,CALCULATIONS!$IJP$6:$IJR$140,'INFORME RESUMIDO DE LOS COSTOS '!$A$1+1,FALSE)/1000*$AE$4 -> 1.617568855 | AV362: =HLOOKUP(AV361,CALCULATIONS!$IJP$6:$IJR$140,'INFORME RESUMIDO DE LOS COSTOS '!$A$1+1,FALSE)/1000*$AE$4 -> 29.7106584 | AW362: =HLOOKUP(AW361,CALCULATIONS!$IJS$6:$IJU$140,'INFORME RESUMIDO DE LOS COSTOS '!$A$1+1,FALSE)/1000*$AE$4 -> 73.13802934 | AX362: =HLOOKUP(AX361,CALCULATIONS!$IJS$6:$IJU$140,'INFORME RESUMIDO DE LOS COSTOS '!$A$1+1,FALSE)/1000*$AE$4 -> 39.32265616 | AY362: =HLOOKUP(AY361,CALCULATIONS!$IJS$6:$IJU$140,'INFORME RESUMIDO DE LOS COSTOS '!$A$1+1,FALSE)/1000*$AE$4 -> 8.363866547 | AZ362: =HLOOKUP(AZ361,CALCULATIONS!$IJV$6:$IJX$140,'INFORME RESUMIDO DE LOS COSTOS '!$A$1+1,FALSE)/1000*$AE$4 -> 103.1466226 | BA362: =HLOOKUP(BA361,CALCULATIONS!$IJV$6:$IJX$140,'INFORME RESUMIDO DE LOS COSTOS '!$A$1+1,FALSE)/1000*$AE$4 -> 45.40082762 | BB362: =HLOOKUP(BB361,CALCULATIONS!$IJV$6:$IJX$140,'INFORME RESUMIDO DE LOS COSTOS '!$A$1+1,FALSE)/1000*$AE$4 -> 208.3509715 | BC362: =HLOOKUP(BC361,CALCULATIONS!$IJY$6:$IKA$140,'INFORME RESUMIDO DE LOS COSTOS '!$A$1+1,FALSE)/1000*$AE$4 -> 87.38864335 | BD362: =HLOOKUP(BD361,CALCULATIONS!$IJY$6:$IKA$140,'INFORME RESUMIDO DE LOS COSTOS '!$A$1+1,FALSE)/1000*$AE$4 -> 38.46482446 | BE362: =HLOOKUP(BE361,CALCULATIONS!$IJY$6:$IKA$140,'INFORME RESUMIDO DE LOS COSTOS '!$A$1+1,FALSE)/1000*$AE$4 -> 350.1260932 | BF362: =HLOOKUP(BF361,CALCULATIONS!$IKB$6:$IKD$140,'INFORME RESUMIDO DE LOS COSTOS '!$A$1+1,FALSE)/1000*$AE$4 -> 105.3645266 | BG362: =HLOOKUP(BG361,CALCULATIONS!$IKB$6:$IKD$140,'INFORME RESUMIDO DE LOS COSTOS '!$A$1+1,FALSE)/1000*$AE$4 -> 46.37705618 | BH362: =HLOOKUP(BH361,CALCULATIONS!$IKB$6:$IKD$140,'INFORME RESUMIDO DE LOS COSTOS '!$A$1+1,FALSE)/1000*$AE$4 -> 78.84978392 | BI362: =HLOOKUP(BI361,CALCULATIONS!$IKE$6:$IKG$140,'INFORME RESUMIDO DE LOS COSTOS '!$A$1+1,FALSE)/1000*$AE$4 -> 396.1533592 | BJ362: =HLOOKUP(BJ361,CALCULATIONS!$IKE$6:$IKG$140,'INFORME RESUMIDO DE LOS COSTOS '!$A$1+1,FALSE)/1000*$AE$4 -> 174.3701337 | BK362: =HLOOKUP(BK361,CALCULATIONS!$IKE$6:$IKG$140,'INFORME RESUMIDO DE LOS COSTOS '!$A$1+1,FALSE)/1000*$AE$4 -> 152.4502372
D363: Los costos de los servicios de agua y saneamiento para que estos sean gestionados de forma segura son típicamente adicionales a los costos para lograr acceso básico. | AD363: Fondos públicos | AE363: =AE362*'HOJA DE VERIFICACIÓN DE DATOS'!M26 -> 27.68305465 | AF363: =AF362*'HOJA DE VERIFICACIÓN DE DATOS'!Q26 -> 13.44143476 | AG363: =AG362*'HOJA DE VERIFICACIÓN DE DATOS'!T26 -> 2.74590071 | AH363: =AH362*'HOJA DE VERIFICACIÓN DE DATOS'!M28 -> 33.99894379 | AI363: =AI362*'HOJA DE VERIFICACIÓN DE DATOS'!Q28 -> 19.81264833 | AJ363: =AJ362*'HOJA DE VERIFICACIÓN DE DATOS'!T28 -> 4.113816019 | AK363: =AK362*'HOJA DE VERIFICACIÓN DE DATOS'!M32 -> 351.6347419 | AL363: =AL362*'HOJA DE VERIFICACIÓN DE DATOS'!Q32 -> 159.6393022 | AM363: =AM362*'HOJA DE VERIFICACIÓN DE DATOS'!T32 -> 50.70656404 | AN363: =AN362*'HOJA DE VERIFICACIÓN DE DATOS'!M34 -> 75.16484127 | AO363: =AO362*'HOJA DE VERIFICACIÓN DE DATOS'!Q34 -> 27.72141402 | AP363: =AP362*'HOJA DE VERIFICACIÓN DE DATOS'!T34 -> 7.895838532 | AQ363: =AQ362*'HOJA DE VERIFICACIÓN DE DATOS'!M41 -> 36.63690143 | AR363: =AR362*'HOJA DE VERIFICACIÓN DE DATOS'!Q41 -> 9.471753974 | AS363: =AS362*'HOJA DE VERIFICACIÓN DE DATOS'!T41 -> 3.458956847 | AT363: =AT362*'HOJA DE VERIFICACIÓN DE DATOS'!M42 -> 18.97301157 | AU363: =AU362*'HOJA DE VERIFICACIÓN DE DATOS'!Q42 -> 1.294055084 | AV363: =AV362*'HOJA DE VERIFICACIÓN DE DATOS'!T42 -> 5.942131679 | AW363: =AW362*'HOJA DE VERIFICACIÓN DE DATOS'!M36 -> 58.51042347 | AX363: =AX362*'HOJA DE VERIFICACIÓN DE DATOS'!Q36 -> 31.45812492 | AY363: =AY362*'HOJA DE VERIFICACIÓN DE DATOS'!T36 -> 1.672773309 | AZ363: =AZ362*'HOJA DE VERIFICACIÓN DE DATOS'!M30 -> 82.51729807 | BA363: =BA362*'HOJA DE VERIFICACIÓN DE DATOS'!Q30 -> 36.32066209 | BB363: =BB362*'HOJA DE VERIFICACIÓN DE DATOS'!T30 -> 41.6701943 | BC363: =BC362*'HOJA DE VERIFICACIÓN DE DATOS'!M31 -> 69.91091468 | BD363: =BD362*'HOJA DE VERIFICACIÓN DE DATOS'!Q31 -> 30.77185957 | BE363: =BE362*'HOJA DE VERIFICACIÓN DE DATOS'!T31 -> 70.02521865 | BF363: =BF362*'HOJA DE VERIFICACIÓN DE DATOS'!M37 -> 84.29162131 | BG363: =BG362*'HOJA DE VERIFICACIÓN DE DATOS'!Q37 -> 37.10164494 | BH363: =BH362*'HOJA DE VERIFICACIÓN DE DATOS'!T37 -> 15.76995678 | BI363: =BI362*'HOJA DE VERIFICACIÓN DE DATOS'!M39 -> 316.9226873 | BJ363: =BJ362*'HOJA DE VERIFICACIÓN DE DATOS'!Q39 -> 139.4961069 | BK363: =BK362*'HOJA DE VERIFICACIÓN DE DATOS'!T39 -> 30.49004745
AD364: Consumidores | AE364: =AE362-AE363 -> 6.920763663 | AF364: =AF362-AF363 -> 3.360358691 | AG364: 10.98360284 | AH364: 8.499735946 | AI364: 4.953162084 | AJ364: 16.45526408 | AK364: 87.90868547 | AL364: 39.90982554 | AM364: 202.8262562 | AN364: 18.79121032 | AO364: 6.930353504 | AP364: 31.58335413 | AQ364: 9.159225357 | AR364: 2.367938493 | AS364: 13.83582739 | AT364: 4.743252893 | AU364: 0.323513771 | AV364: 23.76852672 | AW364: 14.62760587 | AX364: 7.864531231 | AY364: 6.691093238 | AZ364: 20.62932452 | BA364: 9.080165523 | BB364: 166.6807772 | BC364: 17.47772867 | BD364: 7.692964893 | BE364: 280.1008746 | BF364: 21.07290533 | BG364: 9.275411236 | BH364: 63.07982713 | BI364: 79.23067183 | BJ364: 34.87402673 | BK364: 121.9601898
D365: ="Figura 8b. Fuentes de financiación para el gasto de capital destinado a llevar el servicio a personas que carecen de él en zonas rurales basadas en el ratio de reparto de costos en millones de " & $H$3 -> Figura 8b. Fuentes de financiación para el gasto de capital destinado a llevar el servicio a personas que carecen de él en zonas rurales basadas en el ratio de reparto de costos en millones de USD
AD366: Cuadro para generar el gráfico | AF366: Poner fin a la defecación al aire libre | AG366: Servicio básico universal | AK366: Servicio seguro universal
AG367: Agua | AH367: Saneamiento | AI367: Higiene | AJ367: WASH | AK367: Agua | AL367: Saneamiento | AM367: Suministro de agua y saneamiento | AN367: Metas 6.1 + 6.2
AD368: Zonas urbanas (capital) | AE368: Fondos públicos | AG368: =AE363 -> 27.68305465 | AH368: =+AK363 -> 351.6347419 | AI368: =AQ363 -> 36.63690143 | AJ368: =SUM(AG368:AI368) -> 415.954698 | AK368: =AZ363 -> 82.51729807 | AL368: =BF363 -> 84.29162131 | AM368: =AK368+AL368 -> 166.8089194 | AN368: =AM368+AG368*0.5+AH368+AI368 -> 568.92209
AE369: Consumidores | AG369: =AE364 -> 6.920763663 | AH369: =+AK364 -> 87.90868547 | AI369: =AQ364 -> 9.159225357 | AJ369: =SUM(AG369:AI369) -> 103.9886745 | AK369: =AZ364 -> 20.62932452 | AL369: =BF364 -> 21.07290533 | AM369: =AK369+AL369 -> 41.70222985 | AN369: =AM369+AG369*0.5+AH369+AI369 -> 142.2305225
AD370: Zonas rurales (capital) | AE370: Fondos públicos | AF370: =AW363 -> 58.51042347 | AG370: =AH363 -> 33.99894379 | AH370: =AN363 -> 75.16484127 | AI370: =AT363 -> 18.97301157 | AJ370: =SUM(AG370:AI370) -> 128.1367966 | AK370: =BC363 -> 69.91091468 | AL370: =BI363 -> 316.9226873 | AM370: =AK370+AL370 -> 386.833602 | AN370: =AM370+AG370*0.5+AH370+AI370 -> 497.9709267
AE371: Consumidores | AF371: =AW364 -> 14.62760587 | AG371: =AH364 -> 8.499735946 | AH371: =AN364 -> 18.79121032 | AI371: =AT364 -> 4.743252893 | AJ371: =SUM(AG371:AI371) -> 32.03419916 | AK371: =BC364 -> 17.47772867 | AL371: =BI364 -> 79.23067183 | AM371: =AK371+AL371 -> 96.7084005 | AN371: =AM371+AG371*0.5+AH371+AI371 -> 124.4927317
AD373: Cuadro 8. Fuentes de financiación para el gasto de capital destinado a mantener los servicios existentes en zonas urbanas y rurales basadas en el ratio de reparto de costos en millones de US$
AE375: WASH básico | AW375: Lugares libres de defecación al aire libre | AZ375: Servicios seguros
AE376: Suministro de agua | AK376: Saneamiento | AQ376: Higiene | AZ376: Abastecimiento de agua seguro | BF376: Saneamiento seguro
AE377: Urban | AH377: Rural | AK377: Urban | AN377: Rural | AQ377: Urban | AT377: Rural | AW377: Rural | AZ377: Urban | BC377: Rural | BF377: Urban | BI377: Rural
AE378: Capital | AF378: Capital maintenance | AG378: Operations | AH378: Capital | AI378: Capital maintenance | AJ378: Operations | AK378: Capital | AL378: Capital maintenance | AM378: Operations | AN378: Capital | AO378: Capital maintenance | AP378: Operations | AQ378: Capital | AR378: Capital maintenance | AS378: Operations | AT378: Capital | AU378: Capital maintenance | AV378: Operations | AW378: Capital | AX378: Capital maintenance | AY378: Operations | AZ378: Capital | BA378: Capital maintenance | BB378: Operations | BC378: Capital | BD378: Capital maintenance | BE378: Operations | BF378: Capital | BG378: Capital maintenance | BH378: Operations | BI378: Capital | BJ378: Capital maintenance | BK378: Operations
AD379: Total, del cual: | AE379: =HLOOKUP(AE378,CALCULATIONS!$IME$6:$IMG$140,'INFORME RESUMIDO DE LOS COSTOS '!$A$1+1,FALSE)/1000*$AE$4 -> 12.5829701 | AF379: =HLOOKUP(AF378,CALCULATIONS!$IME$6:$IMG$140,'INFORME RESUMIDO DE LOS COSTOS '!$A$1+1,FALSE)/1000*$AE$4 -> 3.595134315 | AG379: =HLOOKUP(AG378,CALCULATIONS!$IME$6:$IMG$140,'INFORME RESUMIDO DE LOS COSTOS '!$A$1+1,FALSE)/1000*$AE$4 -> 6.607552311 | AH379: =HLOOKUP(AH378,CALCULATIONS!$IMH$6:$IMJ$140,'INFORME RESUMIDO DE LOS COSTOS '!$A$1+1,FALSE)/1000*$AE$4 -> 17.79952536 | AI379: =HLOOKUP(AI378,CALCULATIONS!$IMH$6:$IMJ$140,'INFORME RESUMIDO DE LOS COSTOS '!$A$1+1,FALSE)/1000*$AE$4 -> 7.426662165 | AJ379: =HLOOKUP(AJ378,CALCULATIONS!$IMH$6:$IMJ$140,'INFORME RESUMIDO DE LOS COSTOS '!$A$1+1,FALSE)/1000*$AE$4 -> 13.72797875 | AK379: =HLOOKUP(AK378,CALCULATIONS!$IMK$6:$IMM$140,'INFORME RESUMIDO DE LOS COSTOS '!$A$1+1,FALSE)/1000*$AE$4 -> 74.73974078 | AL379: =HLOOKUP(AL378,CALCULATIONS!$IMK$6:$IMM$140,'INFORME RESUMIDO DE LOS COSTOS '!$A$1+1,FALSE)/1000*$AE$4 -> 1.509250261 | AM379: =HLOOKUP(AM378,CALCULATIONS!$IMK$6:$IMM$140,'INFORME RESUMIDO DE LOS COSTOS '!$A$1+1,FALSE)/1000*$AE$4 -> 67.29541117 | AN379: =HLOOKUP(AN378,CALCULATIONS!$IMN$6:$IMP$140,'INFORME RESUMIDO DE LOS COSTOS '!$A$1+1,FALSE)/1000*$AE$4 -> 21.01005776 | AO379: =HLOOKUP(AO378,CALCULATIONS!$IMN$6:$IMP$140,'INFORME RESUMIDO DE LOS COSTOS '!$A$1+1,FALSE)/1000*$AE$4 -> 3.206276137 | AP379: =HLOOKUP(AP378,CALCULATIONS!$IMN$6:$IMP$140,'INFORME RESUMIDO DE LOS COSTOS '!$A$1+1,FALSE)/1000*$AE$4 -> 12.23175329 | AQ379: =HLOOKUP(AQ378,CALCULATIONS!$IMQ$6:$IMS$140,'INFORME RESUMIDO DE LOS COSTOS '!$A$1+1,FALSE)/1000*$AE$4 -> 4.365399033 | AR379: =HLOOKUP(AR378,CALCULATIONS!$IMQ$6:$IMS$140,'INFORME RESUMIDO DE LOS COSTOS '!$A$1+1,FALSE)/1000*$AE$4 -> 0.4729581905 | AS379: =HLOOKUP(AS378,CALCULATIONS!$IMQ$6:$IMS$140,'INFORME RESUMIDO DE LOS COSTOS '!$A$1+1,FALSE)/1000*$AE$4 -> 1.522164291 | AT379: =HLOOKUP(AT378,CALCULATIONS!$IMT$6:$IMV$140,'INFORME RESUMIDO DE LOS COSTOS '!$A$1+1,FALSE)/1000*$AE$4 -> 1.372162049 | AU379: =HLOOKUP(AU378,CALCULATIONS!$IMT$6:$IMV$140,'INFORME RESUMIDO DE LOS COSTOS '!$A$1+1,FALSE)/1000*$AE$4 -> 0.05247378722 | AV379: =HLOOKUP(AV378,CALCULATIONS!$IMT$6:$IMV$140,'INFORME RESUMIDO DE LOS COSTOS '!$A$1+1,FALSE)/1000*$AE$4 -> 2.22616067 | AW379: =HLOOKUP(AW378,CALCULATIONS!$IMW$6:$IMY$140,'INFORME RESUMIDO DE LOS COSTOS '!$A$1+1,FALSE)/1000*$AE$4 -> 271.2939445 | AX379: =HLOOKUP(AX378,CALCULATIONS!$IMW$6:$IMY$140,'INFORME RESUMIDO DE LOS COSTOS '!$A$1+1,FALSE)/1000*$AE$4 -> 74.7093795 | AY379: =HLOOKUP(AY378,CALCULATIONS!$IMW$6:$IMY$140,'INFORME RESUMIDO DE LOS COSTOS '!$A$1+1,FALSE)/1000*$AE$4 -> 33.37018951 | AZ379: =HLOOKUP(AZ378,CALCULATIONS!$IMZ$6:$INB$140,'INFORME RESUMIDO DE LOS COSTOS '!$A$1+1,FALSE)/1000*$AE$4 -> 16.50412034 | BA379: =HLOOKUP(BA378,CALCULATIONS!$IMZ$6:$INB$140,'INFORME RESUMIDO DE LOS COSTOS '!$A$1+1,FALSE)/1000*$AE$4 -> 4.501123728 | BB379: =HLOOKUP(BB378,CALCULATIONS!$IMZ$6:$INB$140,'INFORME RESUMIDO DE LOS COSTOS '!$A$1+1,FALSE)/1000*$AE$4 -> 53.50172906 | BC379: =HLOOKUP(BC378,CALCULATIONS!$INC$6:$INE$140,'INFORME RESUMIDO DE LOS COSTOS '!$A$1+1,FALSE)/1000*$AE$4 -> 2.164876107 | BD379: =HLOOKUP(BD378,CALCULATIONS!$INC$6:$INE$140,'INFORME RESUMIDO DE LOS COSTOS '!$A$1+1,FALSE)/1000*$AE$4 -> 0.5904207564 | BE379: =HLOOKUP(BE378,CALCULATIONS!$INC$6:$INE$140,'INFORME RESUMIDO DE LOS COSTOS '!$A$1+1,FALSE)/1000*$AE$4 -> 13.91994266 | BF379: =HLOOKUP(BF378,CALCULATIONS!$INF$6:$INH$140,'INFORME RESUMIDO DE LOS COSTOS '!$A$1+1,FALSE)/1000*$AE$4 -> 8.137758823 | BG379: =HLOOKUP(BG378,CALCULATIONS!$INF$6:$INH$140,'INFORME RESUMIDO DE LOS COSTOS '!$A$1+1,FALSE)/1000*$AE$4 -> 2.770215811 | BH379: =HLOOKUP(BH378,CALCULATIONS!$INF$6:$INH$140,'INFORME RESUMIDO DE LOS COSTOS '!$A$1+1,FALSE)/1000*$AE$4 -> 13.20469536 | BI379: =HLOOKUP(BI378,CALCULATIONS!$INI$6:$INK$140,'INFORME RESUMIDO DE LOS COSTOS '!$A$1+1,FALSE)/1000*$AE$4 -> 175.5958887 | BJ379: =HLOOKUP(BJ378,CALCULATIONS!$INI$6:$INK$140,'INFORME RESUMIDO DE LOS COSTOS '!$A$1+1,FALSE)/1000*$AE$4 -> 47.88978783 | BK379: =HLOOKUP(BK378,CALCULATIONS!$INI$6:$INK$140,'INFORME RESUMIDO DE LOS COSTOS '!$A$1+1,FALSE)/1000*$AE$4 -> 22.14614698
D380: Los costos de los servicios de agua y saneamiento para que estos sean gestionados de forma segura son típicamente adicionales a los costos para lograr acceso básico. | AD380: Fondos públicos | AE380: =AE379*'HOJA DE VERIFICACIÓN DE DATOS'!M26 -> 10.06637608 | AF380: =AF379*'HOJA DE VERIFICACIÓN DE DATOS'!Q26 -> 2.876107452 | AG380: =AG379*'HOJA DE VERIFICACIÓN DE DATOS'!T26 -> 1.321510462 | AH380: =AH379*'HOJA DE VERIFICACIÓN DE DATOS'!M28 -> 14.23962029 | AI380: =AI379*'HOJA DE VERIFICACIÓN DE DATOS'!Q28 -> 5.941329732 | AJ380: =AJ379*'HOJA DE VERIFICACIÓN DE DATOS'!T28 -> 2.74559575 | AK380: =AK379*'HOJA DE VERIFICACIÓN DE DATOS'!M32 -> 59.79179262 | AL380: =AL379*'HOJA DE VERIFICACIÓN DE DATOS'!Q32 -> 1.207400209 | AM380: =AM379*'HOJA DE VERIFICACIÓN DE DATOS'!T32 -> 13.45908223 | AN380: =AN379*'HOJA DE VERIFICACIÓN DE DATOS'!M34 -> 16.80804621 | AO380: =AO379*'HOJA DE VERIFICACIÓN DE DATOS'!Q34 -> 2.56502091 | AP380: =AP379*'HOJA DE VERIFICACIÓN DE DATOS'!T34 -> 2.446350659 | AQ380: =AQ379*'HOJA DE VERIFICACIÓN DE DATOS'!M41 -> 3.492319226 | AR380: =AR379*'HOJA DE VERIFICACIÓN DE DATOS'!Q41 -> 0.3783665524 | AS380: =AS379*'HOJA DE VERIFICACIÓN DE DATOS'!T41 -> 0.3044328583 | AT380: =AT379*'HOJA DE VERIFICACIÓN DE DATOS'!M42 -> 1.097729639 | AU380: =AU379*'HOJA DE VERIFICACIÓN DE DATOS'!Q42 -> 0.04197902978 | AV380: =AV379*'HOJA DE VERIFICACIÓN DE DATOS'!T42 -> 0.445232134 | AW380: =AW379*'HOJA DE VERIFICACIÓN DE DATOS'!M36 -> 217.0351556 | AX380: =AX379*'HOJA DE VERIFICACIÓN DE DATOS'!Q36 -> 59.7675036 | AY380: =AY379*'HOJA DE VERIFICACIÓN DE DATOS'!T36 -> 6.674037902 | AZ380: =AZ379*'HOJA DE VERIFICACIÓN DE DATOS'!M30 -> 13.20329627 | BA380: =BA379*'HOJA DE VERIFICACIÓN DE DATOS'!Q30 -> 3.600898982 | BB380: =BB379*'HOJA DE VERIFICACIÓN DE DATOS'!T30 -> 10.70034581 | BC380: =BC379*'HOJA DE VERIFICACIÓN DE DATOS'!M31 -> 1.731900885 | BD380: =BD379*'HOJA DE VERIFICACIÓN DE DATOS'!Q31 -> 0.4723366051 | BE380: =BE379*'HOJA DE VERIFICACIÓN DE DATOS'!T31 -> 2.783988532 | BF380: =BF379*'HOJA DE VERIFICACIÓN DE DATOS'!M37 -> 6.510207059 | BG380: =BG379*'HOJA DE VERIFICACIÓN DE DATOS'!Q37 -> 2.216172649 | BH380: =BH379*'HOJA DE VERIFICACIÓN DE DATOS'!T37 -> 2.640939073 | BI380: =BI379*'HOJA DE VERIFICACIÓN DE DATOS'!M39 -> 140.476711 | BJ380: =BJ379*'HOJA DE VERIFICACIÓN DE DATOS'!Q39 -> 38.31183026 | BK380: =BK379*'HOJA DE VERIFICACIÓN DE DATOS'!T39 -> 4.429229396
AD381: Consumidores | AE381: =AE379-AE380 -> 2.51659402 | AF381: =AF379-AF380 -> 0.7190268629 | AG381: 5.286041848 | AH381: 3.559905072 | AI381: 1.485332433 | AJ381: 10.982383 | AK381: 14.94794816 | AL381: 0.3018500522 | AM381: 53.83632894 | AN381: 4.202011552 | AO381: 0.6412552274 | AP381: 9.785402634 | AQ381: 0.8730798065 | AR381: 0.09459163811 | AS381: 1.217731433 | AT381: 0.2744324098 | AU381: 0.01049475744 | AV381: 1.780928536 | AW381: 54.25878889 | AX381: 14.9418759 | AY381: 26.69615161 | AZ381: 3.300824067 | BA381: 0.9002247456 | BB381: 42.80138325 | BC381: 0.4329752214 | BD381: 0.1180841513 | BE381: 11.13595413 | BF381: 1.627551765 | BG381: 0.5540431621 | BH381: 10.56375629 | BI381: 35.11917774 | BJ381: 9.577957566 | BK381: 17.71691758
D382: ="Figura 8c. Fuentes de financiación para el gasto de capital destinado a mantener los servicios existentes en zonas urbanas basadas en el ratio de reparto de costos en millones de " & $H$3 -> Figura 8c. Fuentes de financiación para el gasto de capital destinado a mantener los servicios existentes en zonas urbanas basadas en el ratio de reparto de costos en millones de USD | AD382: Cuadro para generar el gráfico | AF382: Poner fin a la defecación al aire libre | AG382: Servicio básico universal | AK382: Servicio seguro universal
AG383: Agua | AH383: Saneamiento | AI383: Higiene | AJ383: WASH | AK383: Agua | AL383: Saneamiento | AM383: Suministro de agua y saneamiento | AN383: Metas 6.1 + 6.2
AD384: Zonas urbanas (capital) | AE384: Fondos públicos | AG384: =AE380 -> 10.06637608 | AH384: =+AK380 -> 59.79179262 | AI384: =AQ380 -> 3.492319226 | AJ384: =SUM(AG384:AI384) -> 73.35048793 | AK384: =AZ380 -> 13.20329627 | AL384: =BF380 -> 6.510207059 | AM384: =AK384+AL384 -> 19.71350333 | AN384: =AM384+AG384*0.5+AH384+AI384 -> 88.03080322
AE385: Consumidores | AG385: =AE381 -> 2.51659402 | AH385: =+AK381 -> 14.94794816 | AI385: =AQ381 -> 0.8730798065 | AJ385: =SUM(AG385:AI385) -> 18.33762198 | AK385: =AZ381 -> 3.300824067 | AL385: =BF381 -> 1.627551765 | AM385: =AK385+AL385 -> 4.928375832 | AN385: =AM385+AG385*0.5+AH385+AI385 -> 22.0077008
AD386: Zonas rurales (capital) | AE386: Fondos públicos | AF386: =AW380 -> 217.0351556 | AG386: =AH380 -> 14.23962029 | AH386: =AN380 -> 16.80804621 | AI386: =AT380 -> 1.097729639 | AJ386: =SUM(AG386:AI386) -> 32.14539613 | AK386: =BC380 -> 1.731900885 | AL386: =BI380 -> 140.476711 | AM386: =AK386+AL386 -> 142.2086118 | AN386: =AM386+AG386*0.5+AH386+AI386 -> 167.2341978
AE387: Consumidores | AF387: =AW381 -> 54.25878889 | AG387: =AH381 -> 3.559905072 | AH387: =AN381 -> 4.202011552 | AI387: =AT381 -> 0.2744324098 | AJ387: =SUM(AG387:AI387) -> 8.036349033 | AK387: =BC381 -> 0.4329752214 | AL387: =BI381 -> 35.11917774 | AM387: =AK387+AL387 -> 35.55215296 | AN387: =AM387+AG387*0.5+AH387+AI387 -> 41.80854946
AD391: Total (combinado) - suma de los cuadros 7 y 8
AD393: Cuadro para generar el gráfico | AF393: Poner fin a la defecación al aire libre | AG393: Servicio básico universal | AK393: Servicio seguro universal
AG394: Agua | AH394: Saneamiento | AI394: Higiene | AJ394: WASH | AK394: Agua | AL394: Saneamiento | AM394: Suministro de agua y saneamiento | AN394: Metas 6.1 + 6.2
AD395: Zonas urbanas (capital) | AE395: Fondos públicos | AG395: =AG368+AG384 -> 37.74943073 | AH395: 411.4265345 | AI395: 40.12922065 | AJ395: 489.3051859 | AK395: 95.72059434 | AL395: 90.80182837 | AM395: 186.5224227 | AN395: 656.9528932
AE396: Consumidores | AG396: 9.437357683 | AH396: 102.8566336 | AI396: 10.03230516 | AJ396: 122.3262965 | AK396: 23.93014859 | AL396: 22.70045709 | AM396: 46.63060568 | AN396: 164.2382233
D397: Los costos de los servicios de agua y saneamiento para que estos sean gestionados de forma segura son típicamente adicionales a los costos para lograr acceso básico. | AD397: Zonas rurales (capital) | AE397: Fondos públicos | AF397: =AF370+AF386 -> 275.545579 | AG397: 48.23856407 | AH397: 91.97288747 | AI397: 20.07074121 | AJ397: 160.2821928 | AK397: 71.64281556 | AL397: 457.3993983 | AM397: 529.0422139 | AN397: 665.2051246
AE398: Consumidores | AF398: =AF371+AF387 -> 68.88639476 | AG398: 12.05964102 | AH398: 22.99322187 | AI398: 5.017685303 | AJ398: 40.07054819 | AK398: 17.91070389 | AL398: 114.3498496 | AM398: 132.2605535 | AN398: 166.3012811
D399: ="Figura 8d. Fuentes de financiación para el gasto de capital destinado a mantener los servicios existentes en zonas rurales basadas en el ratio de reparto de costos en millones de " & $H$3 -> Figura 8d. Fuentes de financiación para el gasto de capital destinado a mantener los servicios existentes en zonas rurales basadas en el ratio de reparto de costos en millones de USD
D415: Los costos de los servicios de agua y saneamiento para que estos sean gestionados de forma segura son típicamente adicionales a los costos para lograr acceso básico.
D417: ="Figura 8e. Fuentes de financiación para el gasto de capital destinado a prestar servicio a toda la población urbana basadas en el ratio de reparto de costos en millones de " & $H$3 -> Figura 8e. Fuentes de financiación para el gasto de capital destinado a prestar servicio a toda la población urbana basadas en el ratio de reparto de costos en millones de USD
D434: Los costos de los servicios de agua y saneamiento para que estos sean gestionados de forma segura son típicamente adicionales a los costos para lograr acceso básico.
D436: ="Figura 8f. Fuentes de financiación para el gasto de capital destinado a prestar servicio a toda la población rural basadas en el ratio de reparto de costos en millones de " & $H$3 -> Figura 8f. Fuentes de financiación para el gasto de capital destinado a prestar servicio a toda la población rural basadas en el ratio de reparto de costos en millones de USD
D453: Los costos de los servicios de agua y saneamiento para que estos sean gestionados de forma segura son típicamente adicionales a los costos para lograr acceso básico.
B455: 9. DÉFICIT DE FINANCIACIÓN
D457: ="Figura 9a. Déficit de financiación: financiación pública actual comparada con los costos anuales que se pretende cubrir con fondos públicos, en millones de " & $H$3 -> Figura 9a. Déficit de financiación: financiación pública actual comparada con los costos anuales que se pretende cubrir con fondos públicos, en millones de USD
D477: Obsérvese que el déficit total en las columnas finales puede reducirse en comparación con el déficit por subsector, lo que se debe a la disponibilidad de fondos no adjudicados a un subsector específico | AD477: Cuadro 9. Déficit de financiación: financiación pública actual comparada con los costos anuales que se pretende cubrir con fondos públicos, en millones de US$
D478: Las cifras de este cuadro se centran en el déficit de financiación pública y excluyen los fondos que se prevé recaudar de los clientes a través de tarifas (basadas en las normas de recuperación de costos) | AD478: Variable | AE478: Zonas urbanas | AG478: Zonas rurales | AI478: Total
D479: Los costos de los servicios de agua y saneamiento para que estos sean gestionados de forma segura son típicamente adicionales a los costos para lograr acceso básico. | AE479: Agua | AF479: Saneamiento | AG479: Agua | AH479: Saneamiento
AD480: Nuevos servicios: acceso básico | AE480: =AG368 -> 27.68305465 | AF480: =AH368 -> 351.6347419 | AG480: =AG370 -> 33.99894379 | AH480: =AH370 -> 75.16484127 | AI480: =SUM(AE480:AH480) -> 488.4815816
AD481: Nuevos servicios: gestionados de forma segura | AE481: =AG368*0.5+AK368 -> 96.3588254 | AF481: =AH368+AL368 -> 435.9263632 | AG481: =0.5*AG370+AK370 -> 86.91038657 | AH481: =AH370+AL370 -> 392.0875286 | AI481: =SUM(AE481:AH481) -> 1011.283104
AD482: Mantenimiento de servicios: acceso básico | AE482: =AG384 -> 10.06637608 | AF482: =AH384 -> 59.79179262 | AG482: =AG386 -> 14.23962029 | AH482: =AH386 -> 16.80804621 | AI482: =SUM(AE482:AH482) -> 100.9058352
AD483: Mantenimiento de servicios: gestionados de forma segura | AE483: =AG384*0.5+AK386 -> 6.765088926 | AF483: =AH384+AL384 -> 66.30199968 | AG483: =AG386*0.5+AK386 -> 8.851711029 | AH483: =AH386+AL386 -> 157.2847572 | AI483: =SUM(AE483:AH483) -> 239.2035568
AD484: Fondos disponibles | AE484: =('HOJA DE VERIFICACIÓN DE DATOS'!E52+'HOJA DE VERIFICACIÓN DE DATOS'!F52+'HOJA DE VERIFICACIÓN DE DATOS'!G52+'HOJA DE VERIFICACIÓN DE DATOS'!H52)/1000000 -> 0 | AF484: =('HOJA DE VERIFICACIÓN DE DATOS'!E54+'HOJA DE VERIFICACIÓN DE DATOS'!F54+'HOJA DE VERIFICACIÓN DE DATOS'!G54+'HOJA DE VERIFICACIÓN DE DATOS'!H54)/1000000 -> 0 | AG484: =('HOJA DE VERIFICACIÓN DE DATOS'!E53+'HOJA DE VERIFICACIÓN DE DATOS'!F53+'HOJA DE VERIFICACIÓN DE DATOS'!G53+'HOJA DE VERIFICACIÓN DE DATOS'!H53)/1000000 -> 0 | AH484: =('HOJA DE VERIFICACIÓN DE DATOS'!E55+'HOJA DE VERIFICACIÓN DE DATOS'!F55+'HOJA DE VERIFICACIÓN DE DATOS'!G55+'HOJA DE VERIFICACIÓN DE DATOS'!H55)/1000000 -> 0 | AI484: =('HOJA DE VERIFICACIÓN DE DATOS'!E58+'HOJA DE VERIFICACIÓN DE DATOS'!F58+'HOJA DE VERIFICACIÓN DE DATOS'!G58+'HOJA DE VERIFICACIÓN DE DATOS'!H58+'HOJA DE VERIFICACIÓN DE DATOS'!E59+'HOJA DE VERIFICACIÓN DE DATOS'!F59+'HOJA DE VERIFICACIÓN DE DATOS'!G59+'HOJA DE VERIFICACIÓN DE DATOS'!H59)/1000000 -> 0
AD485: Déficit de financiación | AE485: =AE481+AE483-AE484 -> 103.1239143 | AF485: =AF481+AF483-AF484 -> 502.2283629 | AG485: =AG481+AG483-AG484 -> 95.7620976 | AH485: =AH481+AH483-AH484 -> 549.3722858 | AI485: =AI481+AI483-AI484 -> 1250.486661

Sheet SOURCE (hidden)
A1: This sheet is where data in the Interface is taken from | AZV1: 8: H: VSL - link to BOE | AZZ1: (DALY) | BAC1: (VOSL) | BAE1: 4. L/H: Values
A2: 1. Country | B2: 2. Population Size (Thousand) | AJ2: 3. Coverage of WASH Services | DP2: 4. Total Population to be Served with New Services (Thousand, Per Year) | AOK2: Proportion of global unserved | AON2: 5. Unit Costs of WASH Services (Per Capita, US$) | AXG2: 6. Coverage per Technology Type | AZO2: 7. Economic Variables | BAJ2: 8. Costs of Extending to Unserved Population, by Year (2015 Prices, Thousand US$) | DNU2: 9. Summary WASH Costs of Extending to Unserved Population (2015 Prices, Thousands)) | IIH2: 10. Capital Costs as a Percent of GDP | IJA2: 11. Cost Breakdown by Capital, Capital Maintenance and Operational (Annual Values, Average for 2015 to target year) | IKH2: 11. Cost per person per year at PPP values | ILF2: 12. Cost as % of $1.90 poverty income in 2011, adjusted to 2015 figure | IMD2: 13. Adjusted GDP
AJ3: Basic water supply within 30 minutes (no water quality) | AZ3: Safely managed water supply at home | BP3: Current JMP improved sanitation definition (private only) | CF3: Population with Any Fixed Point Defecation | CN3: Safely managed fecal sludge | CZ3: Handwashing station, soap & water at home | DP3: Basic Water | MJ3: Open defecation (Population to Serve) | MQ3: Basic Sanitation | VK3: Basic Hygiene | AEE3: Safely Managed Water | AMY3: Safely Managed Sanitation | AOK3: Water | AOL3: Sanitation | AOM3: Wat + San | AON3: Basic Water Supply | AQN3: Safely managed water supply | ARN3: Basic Sanitation | ATR3: Unimproved Sanitation (ODF) | AUE3: Safely managed sanitation (incremental only) | AWE3: Handwashing | AXG3: Basic Water Supply | AYA3: Basic Sanitation | AYU3: Safely Managed Sanitation | BAJ3: Basic Water | BOX3: Ending Open Defecation | BTT3: Basic Sanitation | CIH3: Basic Hygiene | CWV3: Advanced Water | DLJ3: Safe Fecal Management | DNU3: Basic Water | DRG3: Basic Sanitation | DUS3: Basic Hygiene | DYE3: Basic WASH | EBQ3: Basic & Advanced Water | EFC3: Basic Sanitation & Fecal Sludge Management | EIO3: Basic WASH and Advanced WatSan Services | EMA3: Basic WASH | EPM3: Basic & Advanced Water | ESY3: Basic Sanitation & Fecal Sludge Management | EWK3: Basic WASH and Advanced WatSan Services | EZW3: Basic Water | FNA3: Basic Sanitation | GAE3: Basic Hygiene | GNI3: Advanced Water | HAM3: Full Fecal Sludge Management | HNQ3: Ending Open Defecation | HOU3: Safe Water 100% (Incremental) | HSG3: Safe Sanitation 100% (Incremental Cost) | HSV3: Basic Water | HTN3: Basic Sanitation | HUF3: Basic Hygiene | HUX3: Basic WASH | HVP3: Ending OD | HVV3: Safe Water | HWN3: Safe Sanitation | HWQ3: Safe WatSan (Incr) | HWT3: Safe WASH (Total) | HWW3: Basic Water | HXO3: Basic Sanitation | HYG3: Basic Hygiene | HYV3: Basic WASH | HZN3: Ending OD | HZT3: Safe Water | IAL3: Safe Sanitation | IAO3: Safe WatSan (Incr) | IAR3: Safe WASH (Total) | IAU3: Basic Water | IBM3: Basic Sanitation | ICE3: Basic Hygiene | ICW3: Basic WASH | IDO3: Ending OD | IDU3: Safe Water | IEM3: Safe Sanitation (Incr) | IEP3: Safe WatSan (Incr) | IES3: Safe WASH (Total) | IEV3: Safe Water 50% (Incremental) | IIH3: TOTAL GDP (US$ Million) | III3: Total Costs | IIR3: Proportion of GDP | IJA3: Basic WASH | IJS3: Open Defecation Free | IJV3: Safe Services | IKH3: Basic WASH Cost (Annual) | IKT3: Safe water, adequate sanitation, FSM. Handwashing | ILF3: Basic WASH Cost (Annual) | ILR3: Safe water, adequate sanitation, FSM. Handwashing
B4: Urban | S4: Rural | AJ4: Urban | AR4: Rural | AZ4: Urban | BH4: Rural | BP4: Urban | BX4: Rural | CF4: Rural | CN4: Urban | CT4: Rural | CZ4: Urban | DH4: Rural | DP4: Basic Urban Water | HZ4: Basic Rural Water | MJ4: Rural ODF | MQ4: Basic Urban Sanitation | RA4: Basic Rural Water | VK4: Basic Urban Hygiene | ZU4: Basic Rural Hygiene | AEE4: Safely managed Urban Water | AIO4: Safely Managed Rural Water | AMY4: Safely Managed Urban Sanitation | ANR4: Safely Managed Rural Sanitation | AOK4: % | AOL4: % | AOM4: % | AON4: Urban Tubewell | APA4: Urban Dug Well | APN4: Rural Tubewell | AQA4: Rural Dug Well | AQN4: Urban | ARA4: Rural | ARN4: Urban - septic tank | ASB4: Urban - any pit latrine | ASP4: Rural - wet pit latrine | ATD4: Rural - dry pit latrine | ATR4: Rural Unimproved Pit Latrine | AUE4: Urban - sewerage with treatment (incremental cost only) | AUR4: Urban - septic tank with FSM (incremental cost only) | AVE4: Rural - pit latrine with FSM (incremental cost only) | AVR4: Rural - pit latrine with sewerage and treatment (incremental cost only) | AWE4: Urban | AWS4: Rural | AXG4: Urban | AXQ4: Rural | AYA4: Urban | AYK4: Rural | AYU4: Urban | AZE4: Rural | AZO4: GDP Values | AZU4: Human Capital | AZV4: Value for VSL calculation | AZW4: DALY Value | BAA4: Value-of-statistical-life | BAD4: Value of time, as % of unit of value | BAH4: Poverty | BAI4: Discount rate | BAJ4: Urban | BFF4: Rural | BKB4: Total | BOX4: Rural | BTT4: Urban | BYP4: Rural | CDL4: Total | CIH4: Urban | CND4: Rural | CRZ4: Total | CWV4: Urban | DBR4: Rural | DGN4: Total | DLJ4: Urban | DME4: Rural | DMZ4: Total | DNU4: Urban | DOY4: Rural | DQC4: Total | DRG4: Urban | DSK4: Rural | DTO4: Total | DUS4: Urban | DVW4: Rural | DXA4: Total | DYE4: Urban | DZI4: Rural | EAM4: Total | EBQ4: Urban | ECU4: Rural | EDY4: Total | EFC4: Urban | EGG4: Rural | EHK4: Total | EIO4: Urban | EJS4: Rural | EKW4: Total | EMA4: Urban | ENE4: Rural | EOI4: Total | EPM4: Urban | EQQ4: Rural | ERU4: Total | ESY4: Urban | EUC4: Rural | EVG4: Total | EWK4: Urban | EXO4: Rural | EYS4: Total | EZW4: Urban | FEG4: Rural | FIQ4: Total | FNA4: Urban | FRK4: Rural | FVU4: Total | GAE4: Urban | GEO4: Rural | GIY4: Total | GNI4: Urban | GRS4: Rural | GWC4: Total | HAM4: Urban | HEW4: Rural | HJG4: Total | HNQ4: Rural | HOU4: Urban | HPY4: Rural | HRC4: Total | HSG4: Urban | HSL4: Rural | HSQ4: Total | HSV4: Urban | HTB4: Rural | HTH4: Total | HTN4: Urban | HTT4: Rural | HTZ4: Total | HUF4: Urban | HUL4: Rural | HUR4: Total | HUX4: Urban | HVD4: Rural | HVJ4: Total | HVP4: Rural | HVV4: Urban | HWB4: Rural | HWH4: Total | HWN4: Urban | HWO4: Rural | HWP4: Total | HWQ4: Urban | HWR4: Rural | HWS4: Total | HWT4: Urban | HWU4: Rural | HWV4: Total | HWW4: Urban | HXC4: Rural | HXI4: Total | HXO4: Urban | HXU4: Rural | HYA4: Total | HYG4: Urban | HYL4: Rural | HYQ4: Total | HYV4: Urban | HZB4: Rural | HZH4: Total | HZN4: Rural | HZT4: Urban | HZZ4: Rural | IAF4: Total | IAL4: Urban | IAM4: Rural | IAN4: Total | IAO4: Urban | IAP4: Rural | IAQ4: Total | IAR4: Urban | IAS4: Rural | IAT4: Total | IAU4: Urban | IBA4: Rural | IBG4: Total | IBM4: Urban | IBS4: Rural | IBY4: Total | ICE4: Urban | ICK4: Rural | ICQ4: Total | ICW4: Urban | IDC4: Rural | IDI4: Total | IDO4: Rural | IDU4: Urban | IEA4: Rural | IEG4: Total | IEM4: Urban | IEN4: Rural | IEO4: Total | IEP4: Urban | IEQ4: Rural | IER4: Total | IES4: Urban | IET4: Rural | IEU4: Total | IEV4: Urban | IFZ4: Rural | IHD4: Total | IIJ4: Universal Basic (USD Millions) | IIN4: Universal Safe (USD Millions) | IIS4: Universal Basic (%) | IIW4: Universal Safe (%) | IJA4: Water | IJG4: Sanitation | IJM4: Hygiene | IJV4: Safe Water | IKB4: Safe Sanitation | IKH4: Urban | IKN4: Rural | IKT4: Urban | IKZ4: Rural | ILF4: Urban | ILL4: Rural | ILR4: Urban | ILX4: Rural
AJ5: Coverage in 2015 | AP5: Target Year | AQ5: Coverage in target year | AR5: Coverage in 2015 | AX5: Target Year | AY5: Coverage in target year | AZ5: Coverage in 2015 | BF5: Target Year | BG5: Coverage in target year | BH5: Coverage in 2015 | BN5: Target Year | BO5: Coverage in target year | BP5: Coverage in 2015 | BV5: Target Year | BW5: Coverage in target year | BX5: Coverage in 2015 | CD5: Target Year | CE5: Coverage in target year | CF5: Coverage in 2015 | CL5: Target Year | CM5: Coverage in target year | CN5: Households Connected in 2015 | CO5: Proportion of Collected Sewage Treated 2015 | CP5: Non-connected households with safely managed fecal sludge | CQ5: Effective treatment (either sewerage or FSM) | CR5: Target Year | CS5: Coverage in target year | CT5: Households Connected in 2015 | CU5: Proportion of Collected Sewage Treated 2015 | CV5: Non-connected households with safely managed fecal sludge | CW5: Effective treatment (either sewerage or FSM) | CX5: Target Year | CY5: Coverage in target year | CZ5: Forecast for 2015 | DF5: Target Year | DG5: Coverage in target year | DH5: Forecast for 2015 | DN5: Target Year | DO5: Coverage in target year | DP5: Q5 (Richest) | EI5: Q4 | FB5: Q3 | FU5: Q2 | GN5: Q1 (Poorest) | HG5: Total | HZ5: Q5 (Richest) | IS5: Q4 | JL5: Q3 | KE5: Q2 | KX5: Q1 (Poorest) | LQ5: Total | MJ5: Q5 (Rich) | MK5: Q4 | ML5: Q3 | MM5: Q2 | MN5: Q1 (Poor) | MO5: Annual Total | MP5: Total | MQ5: Q5 (Richest) | NJ5: Q4 | OC5: Q3 | OV5: Q2 | PO5: Q1 (Poorest) | QH5: Total | RA5: Q5 (Richest) | RT5: Q4 | SM5: Q3 | TF5: Q2 | TY5: Q1 (Poorest) | UR5: Total | VK5: Q5 (Richest) | WD5: Q4 | WW5: Q3 | XP5: Q2 | YI5: Q1 (Poorest) | ZB5: Total | ZU5: Q5 (Richest) | AAN5: Q4 | ABG5: Q3 | ABZ5: Q2 | ACS5: Q1 (Poorest) | ADL5: Total | AEE5: Q5 (Richest) | AEX5: Q4 | AFQ5: Q3 | AGJ5: Q2 | AHC5: Q1 (Poorest) | AHV5: Total | AIO5: Q5 (Richest) | AJH5: Q4 | AKA5: Q3 | AKT5: Q2 | ALM5: Q1 (Poorest) | AMF5: Total | AMY5: All Quintiles | ANR5: All Quintiles | AOK5: Total | AOL5: Total | AOM5: Total | AON5: New facility / replacement | AOS5: Maintenance | AOW5: Annual | AOZ5: Total Annualized | APA5: New facility / replacement | APF5: Maintenance | APJ5: Annual | APM5: Total Annualized | APN5: New facility / replacement | APS5: Maintenance | APW5: Annual | APZ5: Total Annualized | AQA5: New facility / replacement | AQF5: Maintenance | AQJ5: Annual | AQM5: Total Annualized | AQN5: New facility / replacement | AQS5: Maintenance | AQW5: Annual | AQZ5: Total Annualized | ARA5: New facility / replacement | ARF5: Maintenance | ARJ5: Annual | ARM5: Total Annualized | ARN5: 1 | ARO5: New facility / replacement | ART5: Maintenance | ARX5: Annual | ASA5: Total Annualized | ASB5: 1 | ASC5: New facility / replacement | ASH5: Maintenance | ASL5: Annual | ASO5: Total Annualized | ASP5: 1 | ASQ5: New facility / replacement | ASV5: Maintenance | ASZ5: Annual | ATC5: Total Annualized | ATD5: 1 | ATE5: New facility / replacement | ATJ5: Maintenance | ATN5: Annual | ATQ5: Total Annualized | ATR5: New facility / replacement | ATW5: Maintenance | AUA5: Annual | AUD5: Total Annualized | AUE5: New facility / replacement | AUJ5: Maintenance | AUN5: Annual | AUQ5: Total Annualized | AUR5: New facility / replacement | AUW5: Maintenance | AVA5: Annual | AVD5: Total Annualized | AVE5: New facility / replacement | AVJ5: Maintenance | AVN5: Annual | AVQ5: Total Annualized | AVR5: New facility / replacement | AVW5: Maintenance | AWA5: Annual | AWD5: Total Annualized | AWE5: New facility / replacement | AWK5: Maintenance | AWO5: Annual | AWR5: Total Annualized | AWS5: New facility / replacement | AWY5: Maintenance | AXC5: Annual | AXF5: Total Annualized | AXG5: Tubewell or Borehole | AXL5: Dug well | AXQ5: Tubewell or Borehole | AXV5: Dug well | AYA5: Septic tank | AYF5: Any pit latrine | AYK5: Wet pit latrine | AYP5: Dry pit latrine | AYU5: Sewerage with treatment | AYZ5: Septic tank with FSM | AZE5: Septic tank with FSM | AZJ5: (Dry) pit latrine with FSM | AZO5: Actual (US$) | AZP5: Average wage | AZR5: Minimum wage | AZT5: PPP Value (I$) | AZU5: Adult (40 years productive life) | AZW5: VSL DALY 1000, 3% | AZX5: VSL DALY 1000, 5% | AZY5: VSL DALY 5000, 3% | AZZ5: VSL DALY 5000, 5% | BAA5: VSL to be used for benefits transfer (in US$) | BAB5: GDP per capita of VSL source country, US$ | BAC5: VSL Value (US$) in 2015 | BAD5: 0-4 yrs | BAE5: 5-14 yrs | BAF5: 15+ yrs | BAG5: Working days per year | BAH5: Poverty Line, US$ 1.9 per day PPP at 2015 prices | BAI5: 0.05 | BAJ5: Q5 (Richest) | BBE5: Q4 | BBZ5: Q3 | BCU5: Q2 | BDP5: Q1 (Poorest) | BEK5: Total | BFF5: Q5 (Richest) | BGA5: Q4 | BGV5: Q3 | BHQ5: Q2 | BIL5: Q1 (Poorest) | BJG5: Total | BKB5: Q5 (Richest) | BKW5: Q4 | BLR5: Q3 | BMM5: Q2 | BNH5: Q1 (Poorest) | BOC5: Total | BOX5: Q5 (Richest) | BPS5: Q4 | BQN5: Q3 | BRI5: Q2 | BSD5: Q1 (Poorest) | BSY5: Total | BTT5: Q5 (Richest) | BUO5: Q4 | BVJ5: Q3 | BWE5: Q2 | BWZ5: Q1 (Poorest) | BXU5: Total | BYP5: Q5 (Richest) | BZK5: Q4 | CAF5: Q3 | CBA5: Q2 | CBV5: Q1 (Poorest) | CCQ5: Total | CDL5: Q5 (Richest) | CEG5: Q4 | CFB5: Q3 | CFW5: Q2 | CGR5: Q1 (Poorest) | CHM5: Total | CIH5: Q5 (Richest) | CJC5: Q4 | CJX5: Q3 | CKS5: Q2 | CLN5: Q1 (Poorest) | CMI5: Total | CND5: Q5 (Richest) | CNY5: Q4 | COT5: Q3 | CPO5: Q2 | CQJ5: Q1 (Poorest) | CRE5: Total | CRZ5: Q5 (Richest) | CSU5: Q4 | CTP5: Q3 | CUK5: Q2 | CVF5: Q1 (Poorest) | CWA5: Total | CWV5: Q5 (Richest) | CXQ5: Q4 | CYL5: Q3 | CZG5: Q2 | DAB5: Q1 (Poorest) | DAW5: Total | DBR5: Q5 (Richest) | DCM5: Q4 | DDH5: Q3 | DEC5: Q2 | DEX5: Q1 (Poorest) | DFS5: Total | DGN5: Q5 (Richest) | DHI5: Q4 | DID5: Q3 | DIY5: Q2 | DJT5: Q1 (Poorest) | DKO5: Total | DLJ5: All Wealth Quintiles | DME5: All Wealth Quintiles | DMZ5: All Wealth Quintiles | DNU5: Q5 (Richest) | DNZ5: Q4 | DOE5: Q3 | DOJ5: Q2 | DOO5: Q1 (Poorest) | DOT5: Total | DOY5: Q5 (Richest) | DPD5: Q4 | DPI5: Q3 | DPN5: Q2 | DPS5: Q1 (Poorest) | DPX5: Total | DQC5: Q5 (Richest) | DQH5: Q4 | DQM5: Q3 | DQR5: Q2 | DQW5: Q1 (Poorest) | DRB5: Total | DRG5: Q5 (Richest) | DRL5: Q4 | DRQ5: Q3 | DRV5: Q2 | DSA5: Q1 (Poorest) | DSF5: Total | DSK5: Q5 (Richest) | DSP5: Q4 | DSU5: Q3 | DSZ5: Q2 | DTE5: Q1 (Poorest) | DTJ5: Total | DTO5: Q5 (Richest) | DTT5: Q4 | DTY5: Q3 | DUD5: Q2 | DUI5: Q1 (Poorest) | DUN5: Total | DUS5: Q5 (Richest) | DUX5: Q4 | DVC5: Q3 | DVH5: Q2 | DVM5: Q1 (Poorest) | DVR5: Total | DVW5: Q5 (Richest) | DWB5: Q4 | DWG5: Q3 | DWL5: Q2 | DWQ5: Q1 (Poorest) | DWV5: Total | DXA5: Q5 (Richest) | DXF5: Q4 | DXK5: Q3 | DXP5: Q2 | DXU5: Q1 (Poorest) | DXZ5: Total | DYE5: Q5 (Richest) | DYJ5: Q4 | DYO5: Q3 | DYT5: Q2 | DYY5: Q1 (Poorest) | DZD5: Total | DZI5: Q5 (Richest) | DZN5: Q4 | DZS5: Q3 | DZX5: Q2 | EAC5: Q1 (Poorest) | EAH5: Total | EAM5: Q5 (Richest) | EAR5: Q4 | EAW5: Q3 | EBB5: Q2 | EBG5: Q1 (Poorest) | EBL5: Total | EBQ5: Q5 (Richest) | EBV5: Q4 | ECA5: Q3 | ECF5: Q2 | ECK5: Q1 (Poorest) | ECP5: Total | ECU5: Q5 (Richest) | ECZ5: Q4 | EDE5: Q3 | EDJ5: Q2 | EDO5: Q1 (Poorest) | EDT5: Total | EDY5: Q5 (Richest) | EED5: Q4 | EEI5: Q3 | EEN5: Q2 | EES5: Q1 (Poorest) | EEX5: Total | EFC5: Q5 (Richest) | EFH5: Q4 | EFM5: Q3 | EFR5: Q2 | EFW5: Q1 (Poorest) | EGB5: Total | EGG5: Q5 (Richest) | EGL5: Q4 | EGQ5: Q3 | EGV5: Q2 | EHA5: Q1 (Poorest) | EHF5: Total | EHK5: Q5 (Richest) | EHP5: Q4 | EHU5: Q3 | EHZ5: Q2 | EIE5: Q1 (Poorest) | EIJ5: Total | EIO5: Q5 (Richest) | EIT5: Q4 | EIY5: Q3 | EJD5: Q2 | EJI5: Q1 (Poorest) | EJN5: Total | EJS5: Q5 (Richest) | EJX5: Q4 | EKC5: Q3 | EKH5: Q2 | EKM5: Q1 (Poorest) | EKR5: Total | EKW5: Q5 (Richest) | ELB5: Q4 | ELG5: Q3 | ELL5: Q2 | ELQ5: Q1 (Poorest) | ELV5: Total | EMA5: Q5 (Richest) | EMF5: Q4 | EMK5: Q3 | EMP5: Q2 | EMU5: Q1 (Poorest) | EMZ5: Total | ENE5: Q5 (Richest) | ENJ5: Q4 | ENO5: Q3 | ENT5: Q2 | ENY5: Q1 (Poorest) | EOD5: Total | EOI5: Q5 (Richest) | EON5: Q4 | EOS5: Q3 | EOX5: Q2 | EPC5: Q1 (Poorest) | EPH5: Total | EPM5: Q5 (Richest) | EPR5: Q4 | EPW5: Q3 | EQB5: Q2 | EQG5: Q1 (Poorest) | EQL5: Total | EQQ5: Q5 (Richest) | EQV5: Q4 | ERA5: Q3 | ERF5: Q2 | ERK5: Q1 (Poorest) | ERP5: Total | ERU5: Q5 (Richest) | ERZ5: Q4 | ESE5: Q3 | ESJ5: Q2 | ESO5: Q1 (Poorest) | EST5: Total | ESY5: Q5 (Richest) | ETD5: Q4 | ETI5: Q3 | ETN5: Q2 | ETS5: Q1 (Poorest) | ETX5: Total | EUC5: Q5 (Richest) | EUH5: Q4 | EUM5: Q3 | EUR5: Q2 | EUW5: Q1 (Poorest) | EVB5: Total | EVG5: Q5 (Richest) | EVL5: Q4 | EVQ5: Q3 | EVV5: Q2 | EWA5: Q1 (Poorest) | EWF5: Total | EWK5: Q5 (Richest) | EWP5: Q4 | EWU5: Q3 | EWZ5: Q2 | EXE5: Q1 (Poorest) | EXJ5: Total | EXO5: Q5 (Richest) | EXT5: Q4 | EXY5: Q3 | EYD5: Q2 | EYI5: Q1 (Poorest) | EYN5: Total | EYS5: Q5 (Richest) | EYX5: Q4 | EZC5: Q3 | EZH5: Q2 | EZM5: Q1 (Poorest) | EZR5: Total | EZW5: Q5 (Richest) | FAP5: Q4 | FBI5: Q3 | FCB5: Q2 | FCU5: Q1 (Poorest) | FDN5: Total | FEG5: Q5 (Richest) | FEZ5: Q4 | FFS5: Q3 | FGL5: Q2 | FHE5: Q1 (Poorest) | FHX5: Total | FIQ5: Q5 (Richest) | FJJ5: Q4 | FKC5: Q3 | FKV5: Q2 | FLO5: Q1 (Poorest) | FMH5: Total | FNA5: Q5 (Richest) | FNT5: Q4 | FOM5: Q3 | FPF5: Q2 | FPY5: Q1 (Poorest) | FQR5: Total | FRK5: Q5 (Richest) | FSD5: Q4 | FSW5: Q3 | FTP5: Q2 | FUI5: Q1 (Poorest) | FVB5: Total | FVU5: Q5 (Richest) | FWN5: Q4 | FXG5: Q3 | FXZ5: Q2 | FYS5: Q1 (Poorest) | FZL5: Total | GAE5: Q5 (Richest) | GAX5: Q4 | GBQ5: Q3 | GCJ5: Q2 | GDC5: Q1 (Poorest) | GDV5: Total | GEO5: Q5 (Richest) | GFH5: Q4 | GGA5: Q3 | GGT5: Q2 | GHM5: Q1 (Poorest) | GIF5: Total | GIY5: Q5 (Richest) | GJR5: Q4 | GKK5: Q3 | GLD5: Q2 | GLW5: Q1 (Poorest) | GMP5: Total | GNI5: Q5 (Richest) | GOB5: Q4 | GOU5: Q3 | GPN5: Q2 | GQG5: Q1 (Poorest) | GQZ5: Total | GRS5: Q5 (Richest) | GSL5: Q4 | GTE5: Q3 | GTX5: Q2 | GUQ5: Q1 (Poorest) | GVJ5: Total | GWC5: Q5 (Richest) | GWV5: Q4 | GXO5: Q3 | GYH5: Q2 | GZA5: Q1 (Poorest) | GZT5: Total | HAM5: Q5 (Richest) | HBF5: Q4 | HBY5: Q3 | HCR5: Q2 | HDK5: Q1 (Poorest) | HED5: Total | HEW5: Q5 (Richest) | HFP5: Q4 | HGI5: Q3 | HHB5: Q2 | HHU5: Q1 (Poorest) | HIN5: Total | HJG5: Q5 (Richest) | HJZ5: Q4 | HKS5: Q3 | HLL5: Q2 | HME5: Q1 (Poorest) | HMX5: Total | HNQ5: Q5 (Richest) | HNV5: Q4 | HOA5: Q3 | HOF5: Q2 | HOK5: Q1 (Poorest) | HOP5: Total | HOU5: Q5 (Richest) | HOZ5: Q4 | HPE5: Q3 | HPJ5: Q2 | HPO5: Q1 (Poorest) | HPT5: Total | HPY5: Q5 (Richest) | HQD5: Q4 | HQI5: Q3 | HQN5: Q2 | HQS5: Q1 (Poorest) | HQX5: Total | HRC5: Q5 (Richest) | HRH5: Q4 | HRM5: Q3 | HRR5: Q2 | HRW5: Q1 (Poorest) | HSB5: Total | HSG5: Total | HSL5: Total | HSQ5: Total | HSV5: Q5 (Rich) | HSW5: Q4 | HSX5: Q3 | HSY5: Q2 | HSZ5: Q1 (Poor) | HTA5: Total | HTB5: Q5 (Rich) | HTC5: Q4 | HTD5: Q3 | HTE5: Q2 | HTF5: Q1 (Poor) | HTG5: Total | HTH5: Q5 (Rich) | HTI5: Q4 | HTJ5: Q3 | HTK5: Q2 | HTL5: Q1 (Poor) | HTM5: Total | HTN5: Q5 (Rich) | HTO5: Q4 | HTP5: Q3 | HTQ5: Q2 | HTR5: Q1 (Poor) | HTS5: Total | HTT5: Q5 (Rich) | HTU5: Q4 | HTV5: Q3 | HTW5: Q2 | HTX5: Q1 (Poor) | HTY5: Total | HTZ5: Q5 (Rich) | HUA5: Q4 | HUB5: Q3 | HUC5: Q2 | HUD5: Q1 (Poor) | HUE5: Total | HUF5: Q5 (Rich) | HUG5: Q4 | HUH5: Q3 | HUI5: Q2 | HUJ5: Q1 (Poor) | HUK5: Total | HUL5: Q5 (Rich) | HUM5: Q4 | HUN5: Q3 | HUO5: Q2 | HUP5: Q1 (Poor) | HUQ5: Total | HUR5: Q5 (Rich) | HUS5: Q4 | HUT5: Q3 | HUU5: Q2 | HUV5: Q1 (Poor) | HUW5: Total | HUX5: Q5 (Rich) | HUY5: Q4 | HUZ5: Q3 | HVA5: Q2 | HVB5: Q1 (Poor) | HVC5: Total | HVD5: Q5 (Rich) | HVE5: Q4 | HVF5: Q3 | HVG5: Q2 | HVH5: Q1 (Poor) | HVI5: Total | HVJ5: Q5 (Rich) | HVK5: Q4 | HVL5: Q3 | HVM5: Q2 | HVN5: Q1 (Poor) | HVO5: Total | HVP5: Q5 (Rich) | HVQ5: Q4 | HVR5: Q3 | HVS5: Q2 | HVT5: Q1 (Poor) | HVU5: Total | HVV5: Q5 (Rich) | HVW5: Q4 | HVX5: Q3 | HVY5: Q2 | HVZ5: Q1 (Poor) | HWA5: Total | HWB5: Q5 (Rich) | HWC5: Q4 | HWD5: Q3 | HWE5: Q2 | HWF5: Q1 (Poor) | HWG5: Total | HWH5: Q5 (Rich) | HWI5: Q4 | HWJ5: Q3 | HWK5: Q2 | HWL5: Q1 (Poor) | HWM5: Total | HWN5: Total | HWO5: Total | HWP5: Total | HWQ5: Total | HWR5: Total | HWS5: Total | HWT5: Total | HWU5: Total | HWV5: Total | HWW5: Q5 (Rich) | HWX5: Q4 | HWY5: Q3 | HWZ5: Q2 | HXA5: Q1 (Poor) | HXB5: Total | HXC5: Q5 (Rich) | HXD5: Q4 | HXE5: Q3 | HXF5: Q2 | HXG5: Q1 (Poor) | HXH5: Total | HXI5: Q5 (Rich) | HXJ5: Q4 | HXK5: Q3 | HXL5: Q2 | HXM5: Q1 (Poor) | HXN5: Total | HXO5: Q5 (Rich) | HXP5: Q4 | HXQ5: Q3 | HXR5: Q2 | HXS5: Q1 (Poor) | HXT5: Total | HXU5: Q5 (Rich) | HXV5: Q4 | HXW5: Q3 | HXX5: Q2 | HXY5: Q1 (Poor) | HXZ5: Total | HYA5: Q5 (Rich) | HYB5: Q4 | HYC5: Q3 | HYD5: Q2 | HYE5: Q1 (Poor) | HYF5: Total | HYG5: Q5 (Rich) | HYH5: Q4 | HYI5: Q3 | HYJ5: Q2 | HYK5: Q1 (Poor) | HYL5: Q5 (Rich) | HYM5: Q4 | HYN5: Q3 | HYO5: Q2 | HYP5: Q1 (Poor) | HYQ5: Q5 (Rich) | HYR5: Q4 | HYS5: Q3 | HYT5: Q2 | HYU5: Q1 (Poor) | HYV5: Q5 (Rich) | HYW5: Q4 | HYX5: Q3 | HYY5: Q2 | HYZ5: Q1 (Poor) | HZA5: Total | HZB5: Q5 (Rich) | HZC5: Q4 | HZD5: Q3 | HZE5: Q2 | HZF5: Q1 (Poor) | HZG5: Total | HZH5: Q5 (Rich) | HZI5: Q4 | HZJ5: Q3 | HZK5: Q2 | HZL5: Q1 (Poor) | HZM5: Total | HZN5: Q5 (Rich) | HZO5: Q4 | HZP5: Q3 | HZQ5: Q2 | HZR5: Q1 (Poor) | HZS5: Total | HZT5: Q5 (Rich) | HZU5: Q4 | HZV5: Q3 | HZW5: Q2 | HZX5: Q1 (Poor) | HZY5: Total | HZZ5: Q5 (Rich) | IAA5: Q4 | IAB5: Q3 | IAC5: Q2 | IAD5: Q1 (Poor) | IAE5: Total | IAF5: Q5 (Rich) | IAG5: Q4 | IAH5: Q3 | IAI5: Q2 | IAJ5: Q1 (Poor) | IAK5: Total | IAL5: Total | IAM5: Total | IAN5: Total | IAO5: Total | IAP5: Total | IAQ5: Total | IAR5: Total | IAS5: Total | IAT5: Total | IAU5: Q5 (Rich) | IAV5: Q4 | IAW5: Q3 | IAX5: Q2 | IAY5: Q1 (Poor) | IAZ5: Total | IBA5: Q5 (Rich) | IBB5: Q4 | IBC5: Q3 | IBD5: Q2 | IBE5: Q1 (Poor) | IBF5: Total | IBG5: Q5 (Rich) | IBH5: Q4 | IBI5: Q3 | IBJ5: Q2 | IBK5: Q1 (Poor) | IBL5: Total | IBM5: Q5 (Rich) | IBN5: Q4 | IBO5: Q3 | IBP5: Q2 | IBQ5: Q1 (Poor) | IBR5: Total | IBS5: Q5 (Rich) | IBT5: Q4 | IBU5: Q3 | IBV5: Q2 | IBW5: Q1 (Poor) | IBX5: Total | IBY5: Q5 (Rich) | IBZ5: Q4 | ICA5: Q3 | ICB5: Q2 | ICC5: Q1 (Poor) | ICD5: Total | ICE5: Q5 (Rich) | ICF5: Q4 | ICG5: Q3 | ICH5: Q2 | ICI5: Q1 (Poor) | ICJ5: Total | ICK5: Q5 (Rich) | ICL5: Q4 | ICM5: Q3 | ICN5: Q2 | ICO5: Q1 (Poor) | ICP5: Total | ICQ5: Q5 (Rich) | ICR5: Q4 | ICS5: Q3 | ICT5: Q2 | ICU5: Q1 (Poor) | ICV5: Total | ICW5: Q5 (Rich) | ICX5: Q4 | ICY5: Q3 | ICZ5: Q2 | IDA5: Q1 (Poor) | IDB5: Total | IDC5: Q5 (Rich) | IDD5: Q4 | IDE5: Q3 | IDF5: Q2 | IDG5: Q1 (Poor) | IDH5: Total | IDI5: Q5 (Rich) | IDJ5: Q4 | IDK5: Q3 | IDL5: Q2 | IDM5: Q1 (Poor) | IDN5: Total | IDO5: Q5 (Rich) | IDP5: Q4 | IDQ5: Q3 | IDR5: Q2 | IDS5: Q1 (Poor) | IDT5: Total | IDU5: Q5 (Rich) | IDV5: Q4 | IDW5: Q3 | IDX5: Q2 | IDY5: Q1 (Poor) | IDZ5: Total | IEA5: Q5 (Rich) | IEB5: Q4 | IEC5: Q3 | IED5: Q2 | IEE5: Q1 (Poor) | IEF5: Total | IEG5: Q5 (Rich) | IEH5: Q4 | IEI5: Q3 | IEJ5: Q2 | IEK5: Q1 (Poor) | IEL5: Total | IEM5: Total | IEN5: Total | IEO5: Total | IEP5: Total | IEQ5: Total | IER5: Total | IES5: Total | IET5: Total | IEU5: Total | IEV5: Q5 (Richest) | IFA5: Q4 | IFF5: Q3 | IFK5: Q2 | IFP5: Q1 (Poorest) | IFU5: Total | IFZ5: Q5 (Richest) | IGE5: Q4 | IGJ5: Q3 | IGO5: Q2 | IGT5: Q1 (Poorest) | IGY5: Total | IHD5: Q5 (Richest) | IHI5: Q4 | IHN5: Q3 | IHS5: Q2 | IHX5: Q1 (Poorest) | IIC5: Total | IJA5: Urban | IJD5: Rural | IJG5: Urban | IJJ5: Rural | IJM5: Urban | IJP5: Rural | IJS5: Rural | IJV5: Urban | IJY5: Rural | IKB5: Urban | IKE5: Rural | IKH5: Low technology | IKK5: High technology | IKN5: Low technology | IKQ5: High technology | IKT5: Low technology | IKW5: High technology | IKZ5: Low technology | ILC5: High technology | ILF5: Low technology | ILI5: High technology | ILL5: Low technology | ILO5: High technology | ILR5: Low technology | ILU5: High technology | ILX5: Low technology | IMA5: High technology | IMD5: 2018
B6: 2015 | C6: 2016 | D6: 2017 | E6: 2018 | F6: 2019 | G6: 2020 | H6: 2021 | I6: 2022 | J6: 2023 | K6: 2024 | L6: 2025 | M6: 2026 | N6: 2027 | O6: 2028 | P6: 2029 | Q6: 2030 | R6: 2030 data | S6: 2015 | T6: 2016 | U6: 2017 | V6: 2018 | W6: 2019 | X6: 2020 | Y6: 2021 | Z6: 2022 | AA6: 2023 | AB6: 2024 | AC6: 2025 | AD6: 2026 | AE6: 2027 | AF6: 2028 | AG6: 2029 | AH6: 2030 | AI6: 2030 data | AJ6: All population | AK6: Q5 (Rich) | AL6: Q4 | AM6: Q3 | AN6: Q2 | AO6: Q1 (Poor) | AR6: All population | AS6: Q5 (Rich) | AT6: Q4 | AU6: Q3 | AV6: Q2 | AW6: Q1 (Poor) | AZ6: All population | BA6: Q5 (Rich) | BB6: Q4 | BC6: Q3 | BD6: Q2 | BE6: Q1 (Poor) | BH6: All population | BI6: Q5 (Rich) | BJ6: Q4 | BK6: Q3 | BL6: Q2 | BM6: Q1 (Poor) | BP6: All population | BQ6: Q5 (Rich) | BR6: Q4 | BS6: Q3 | BT6: Q2 | BU6: Q1 (Poor) | BX6: All population | BY6: Q5 (Rich) | BZ6: Q4 | CA6: Q3 | CB6: Q2 | CC6: Q1 (Poor) | CF6: All population | CG6: Q5 (Rich) | CH6: Q4 | CI6: Q3 | CJ6: Q2 | CK6: Q1 (Poor) | CZ6: All population | DA6: Q5 (Rich) | DB6: Q4 | DC6: Q3 | DD6: Q2 | DE6: Q1 (Poor) | DH6: All population | DI6: Q5 (Rich) | DJ6: Q4 | DK6: Q3 | DL6: Q2 | DM6: Q1 (Poor) | DP6: 2015 | DQ6: 2016 | DR6: 2017 | DS6: 2018 | DT6: 2019 | DU6: 2020 | DV6: 2021 | DW6: 2022 | DX6: 2023 | DY6: 2024 | DZ6: 2025 | EA6: 2026 | EB6: 2027 | EC6: 2028 | ED6: 2029 | EE6: 2015-2019 | EF6: 2020-2024 | EG6: 2025-2029 | EH6: 2015-2029 | EI6: 2015 | EJ6: 2016 | EK6: 2017 | EL6: 2018 | EM6: 2019 | EN6: 2020 | EO6: 2021 | EP6: 2022 | EQ6: 2023 | ER6: 2024 | ES6: 2025 | ET6: 2026 | EU6: 2027 | EV6: 2028 | EW6: 2029 | EX6: 2015-2019 | EY6: 2020-2024 | EZ6: 2025-2029 | FA6: 2015-2029 | FB6: 2015 | FC6: 2016 | FD6: 2017 | FE6: 2018 | FF6: 2019 | FG6: 2020 | FH6: 2021 | FI6: 2022 | FJ6: 2023 | FK6: 2024 | FL6: 2025 | FM6: 2026 | FN6: 2027 | FO6: 2028 | FP6: 2029 | FQ6: 2015-2019 | FR6: 2020-2024 | FS6: 2025-2029 | FT6: 2015-2029 | FU6: 2015 | FV6: 2016 | FW6: 2017 | FX6: 2018 | FY6: 2019 | FZ6: 2020 | GA6: 2021 | GB6: 2022 | GC6: 2023 | GD6: 2024 | GE6: 2025 | GF6: 2026 | GG6: 2027 | GH6: 2028 | GI6: 2029 | GJ6: 2015-2019 | GK6: 2020-2024 | GL6: 2025-2029 | GM6: 2015-2029 | GN6: 2015 | GO6: 2016 | GP6: 2017 | GQ6: 2018 | GR6: 2019 | GS6: 2020 | GT6: 2021 | GU6: 2022 | GV6: 2023 | GW6: 2024 | GX6: 2025 | GY6: 2026 | GZ6: 2027 | HA6: 2028 | HB6: 2029 | HC6: 2015-2019 | HD6: 2020-2024 | HE6: 2025-2029 | HF6: 2015-2029 | HG6: 2015 | HH6: 2016 | HI6: 2017 | HJ6: 2018 | HK6: 2019 | HL6: 2020 | HM6: 2021 | HN6: 2022 | HO6: 2023 | HP6: 2024 | HQ6: 2025 | HR6: 2026 | HS6: 2027 | HT6: 2028 | HU6: 2029 | HV6: 2015-2019 | HW6: 2020-2024 | HX6: 2025-2029 | HY6: 2015-2029 | HZ6: 2015 | IA6: 2016 | IB6: 2017 | IC6: 2018 | ID6: 2019 | IE6: 2020 | IF6: 2021 | IG6: 2022 | IH6: 2023 | II6: 2024 | IJ6: 2025 | IK6: 2026 | IL6: 2027 | IM6: 2028 | IN6: 2029 | IO6: 2015-2019 | IP6: 2020-2024 | IQ6: 2025-2029 | IR6: 2015-2029 | IS6: 2015 | IT6: 2016 | IU6: 2017 | IV6: 2018 | IW6: 2019 | IX6: 2020 | IY6: 2021 | IZ6: 2022 | JA6: 2023 | JB6: 2024 | JC6: 2025 | JD6: 2026 | JE6: 2027 | JF6: 2028 | JG6: 2029 | JH6: 2015-2019 | JI6: 2020-2024 | JJ6: 2025-2029 | JK6: 2015-2029 | JL6: 2015 | JM6: 2016 | JN6: 2017 | JO6: 2018 | JP6: 2019 | JQ6: 2020 | JR6: 2021 | JS6: 2022 | JT6: 2023 | JU6: 2024 | JV6: 2025 | JW6: 2026 | JX6: 2027 | JY6: 2028 | JZ6: 2029 | KA6: 2015-2019 | KB6: 2020-2024 | KC6: 2025-2029 | KD6: 2015-2029 | KE6: 2015 | KF6: 2016 | KG6: 2017 | KH6: 2018 | KI6: 2019 | KJ6: 2020 | KK6: 2021 | KL6: 2022 | KM6: 2023 | KN6: 2024 | KO6: 2025 | KP6: 2026 | KQ6: 2027 | KR6: 2028 | KS6: 2029 | KT6: 2015-2019 | KU6: 2020-2024 | KV6: 2025-2029 | KW6: 2015-2029 | KX6: 2015 | KY6: 2016 | KZ6: 2017 | LA6: 2018 | LB6: 2019 | LC6: 2020 | LD6: 2021 | LE6: 2022 | LF6: 2023 | LG6: 2024 | LH6: 2025 | LI6: 2026 | LJ6: 2027 | LK6: 2028 | LL6: 2029 | LM6: 2015-2019 | LN6: 2020-2024 | LO6: 2025-2029 | LP6: 2015-2029 | LQ6: 2015 | LR6: 2016 | LS6: 2017 | LT6: 2018 | LU6: 2019 | LV6: 2020 | LW6: 2021 | LX6: 2022 | LY6: 2023 | LZ6: 2024 | MA6: 2025 | MB6: 2026 | MC6: 2027 | MD6: 2028 | ME6: 2029 | MF6: 2015-2019 | MG6: 2020-2024 | MH6: 2025-2029 | MI6: 2015-2029 | MJ6: Annual until target year | MK6: Annual until target year | ML6: Annual until target year | MM6: Annual until target year | MN6: Annual until target year | MO6: Annual until target year | MP6: Total | MQ6: 2015 | MR6: 2016 | MS6: 2017 | MT6: 2018 | MU6: 2019 | MV6: 2020 | MW6: 2021 | MX6: 2022 | MY6: 2023 | MZ6: 2024 | NA6: 2025 | NB6: 2026 | NC6: 2027 | ND6: 2028 | NE6: 2029 | NF6: 2015-2019 | NG6: 2020-2024 | NH6: 2025-2029 | NI6: 2015-2029 | NJ6: 2015 | NK6: 2016 | NL6: 2017 | NM6: 2018 | NN6: 2019 | NO6: 2020 | NP6: 2021 | NQ6: 2022 | NR6: 2023 | NS6: 2024 | NT6: 2025 | NU6: 2026 | NV6: 2027 | NW6: 2028 | NX6: 2029 | NY6: 2015-2019 | NZ6: 2020-2024 | OA6: 2025-2029 | OB6: 2015-2029 | OC6: 2015 | OD6: 2016 | OE6: 2017 | OF6: 2018 | OG6: 2019 | OH6: 2020 | OI6: 2021 | OJ6: 2022 | OK6: 2023 | OL6: 2024 | OM6: 2025 | ON6: 2026 | OO6: 2027 | OP6: 2028 | OQ6: 2029 | OR6: 2015-2019 | OS6: 2020-2024 | OT6: 2025-2029 | OU6: 2015-2029 | OV6: 2015 | OW6: 2016 | OX6: 2017 | OY6: 2018 | OZ6: 2019 | PA6: 2020 | PB6: 2021 | PC6: 2022 | PD6: 2023 | PE6: 2024 | PF6: 2025 | PG6: 2026 | PH6: 2027 | PI6: 2028 | PJ6: 2029 | PK6: 2015-2019 | PL6: 2020-2024 | PM6: 2025-2029 | PN6: 2015-2029 | PO6: 2015 | PP6: 2016 | PQ6: 2017 | PR6: 2018 | PS6: 2019 | PT6: 2020 | PU6: 2021 | PV6: 2022 | PW6: 2023 | PX6: 2024 | PY6: 2025 | PZ6: 2026 | QA6: 2027 | QB6: 2028 | QC6: 2029 | QD6: 2015-2019 | QE6: 2020-2024 | QF6: 2025-2029 | QG6: 2015-2029 | QH6: 2015 | QI6: 2016 | QJ6: 2017 | QK6: 2018 | QL6: 2019 | QM6: 2020 | QN6: 2021 | QO6: 2022 | QP6: 2023 | QQ6: 2024 | QR6: 2025 | QS6: 2026 | QT6: 2027 | QU6: 2028 | QV6: 2029 | QW6: 2015-2019 | QX6: 2020-2024 | QY6: 2025-2029 | QZ6: 2015-2029 | RA6: 2015 | RB6: 2016 | RC6: 2017 | RD6: 2018 | RE6: 2019 | RF6: 2020 | RG6: 2021 | RH6: 2022 | RI6: 2023 | RJ6: 2024 | RK6: 2025 | RL6: 2026 | RM6: 2027 | RN6: 2028 | RO6: 2029 | RP6: 2015-2019 | RQ6: 2020-2024 | RR6: 2025-2029 | RS6: 2015-2029 | RT6: 2015 | RU6: 2016 | RV6: 2017 | RW6: 2018 | RX6: 2019 | RY6: 2020 | RZ6: 2021 | SA6: 2022 | SB6: 2023 | SC6: 2024 | SD6: 2025 | SE6: 2026 | SF6: 2027 | SG6: 2028 | SH6: 2029 | SI6: 2015-2019 | SJ6: 2020-2024 | SK6: 2025-2029 | SL6: 2015-2029 | SM6: 2015 | SN6: 2016 | SO6: 2017 | SP6: 2018 | SQ6: 2019 | SR6: 2020 | SS6: 2021 | ST6: 2022 | SU6: 2023 | SV6: 2024 | SW6: 2025 | SX6: 2026 | SY6: 2027 | SZ6: 2028 | TA6: 2029 | TB6: 2015-2019 | TC6: 2020-2024 | TD6: 2025-2029 | TE6: 2015-2029 | TF6: 2015 | TG6: 2016 | TH6: 2017 | TI6: 2018 | TJ6: 2019 | TK6: 2020 | TL6: 2021 | TM6: 2022 | TN6: 2023 | TO6: 2024 | TP6: 2025 | TQ6: 2026 | TR6: 2027 | TS6: 2028 | TT6: 2029 | TU6: 2015-2019 | TV6: 2020-2024 | TW6: 2025-2029 | TX6: 2015-2029 | TY6: 2015 | TZ6: 2016 | UA6: 2017 | UB6: 2018 | UC6: 2019 | UD6: 2020 | UE6: 2021 | UF6: 2022 | UG6: 2023 | UH6: 2024 | UI6: 2025 | UJ6: 2026 | UK6: 2027 | UL6: 2028 | UM6: 2029 | UN6: 2015-2019 | UO6: 2020-2024 | UP6: 2025-2029 | UQ6: 2015-2029 | UR6: 2015 | US6: 2016 | UT6: 2017 | UU6: 2018 | UV6: 2019 | UW6: 2020 | UX6: 2021 | UY6: 2022 | UZ6: 2023 | VA6: 2024 | VB6: 2025 | VC6: 2026 | VD6: 2027 | VE6: 2028 | VF6: 2029 | VG6: 2015-2019 | VH6: 2020-2024 | VI6: 2025-2029 | VJ6: 2015-2029 | VK6: 2015 | VL6: 2016 | VM6: 2017 | VN6: 2018 | VO6: 2019 | VP6: 2020 | VQ6: 2021 | VR6: 2022 | VS6: 2023 | VT6: 2024 | VU6: 2025 | VV6: 2026 | VW6: 2027 | VX6: 2028 | VY6: 2029 | VZ6: 2015-2019 | WA6: 2020-2024 | WB6: 2025-2029 | WC6: 2015-2029 | WD6: 2015 | WE6: 2016 | WF6: 2017 | WG6: 2018 | WH6: 2019 | WI6: 2020 | WJ6: 2021 | WK6: 2022 | WL6: 2023 | WM6: 2024 | WN6: 2025 | WO6: 2026 | WP6: 2027 | WQ6: 2028 | WR6: 2029 | WS6: 2015-2019 | WT6: 2020-2024 | WU6: 2025-2029 | WV6: 2015-2029 | WW6: 2015 | WX6: 2016 | WY6: 2017 | WZ6: 2018 | XA6: 2019 | XB6: 2020 | XC6: 2021 | XD6: 2022 | XE6: 2023 | XF6: 2024 | XG6: 2025 | XH6: 2026 | XI6: 2027 | XJ6: 2028 | XK6: 2029 | XL6: 2015-2019 | XM6: 2020-2024 | XN6: 2025-2029 | XO6: 2015-2029 | XP6: 2015 | XQ6: 2016 | XR6: 2017 | XS6: 2018 | XT6: 2019 | XU6: 2020 | XV6: 2021 | XW6: 2022 | XX6: 2023 | XY6: 2024 | XZ6: 2025 | YA6: 2026 | YB6: 2027 | YC6: 2028 | YD6: 2029 | YE6: 2015-2019 | YF6: 2020-2024 | YG6: 2025-2029 | YH6: 2015-2029 | YI6: 2015 | YJ6: 2016 | YK6: 2017 | YL6: 2018 | YM6: 2019 | YN6: 2020 | YO6: 2021 | YP6: 2022 | YQ6: 2023 | YR6: 2024 | YS6: 2025 | YT6: 2026 | YU6: 2027 | YV6: 2028 | YW6: 2029 | YX6: 2015-2019 | YY6: 2020-2024 | YZ6: 2025-2029 | ZA6: 2015-2029 | ZB6: 2015 | ZC6: 2016 | ZD6: 2017 | ZE6: 2018 | ZF6: 2019 | ZG6: 2020 | ZH6: 2021 | ZI6: 2022 | ZJ6: 2023 | ZK6: 2024 | ZL6: 2025 | ZM6: 2026 | ZN6: 2027 | ZO6: 2028 | ZP6: 2029 | ZQ6: 2015-2019 | ZR6: 2020-2024 | ZS6: 2025-2029 | ZT6: 2015-2029 | ZU6: 2015 | ZV6: 2016 | ZW6: 2017 | ZX6: 2018 | ZY6: 2019 | ZZ6: 2020 | AAA6: 2021 | AAB6: 2022 | AAC6: 2023 | AAD6: 2024 | AAE6: 2025 | AAF6: 2026 | AAG6: 2027 | AAH6: 2028 | AAI6: 2029 | AAJ6: 2015-2019 | AAK6: 2020-2024 | AAL6: 2025-2029 | AAM6: 2015-2029 | AAN6: 2015 | AAO6: 2016 | AAP6: 2017 | AAQ6: 2018 | AAR6: 2019 | AAS6: 2020 | AAT6: 2021 | AAU6: 2022 | AAV6: 2023 | AAW6: 2024 | AAX6: 2025 | AAY6: 2026 | AAZ6: 2027 | ABA6: 2028 | ABB6: 2029 | ABC6: 2015-2019 | ABD6: 2020-2024 | ABE6: 2025-2029 | ABF6: 2015-2029 | ABG6: 2015 | ABH6: 2016 | ABI6: 2017 | ABJ6: 2018 | ABK6: 2019 | ABL6: 2020 | ABM6: 2021 | ABN6: 2022 | ABO6: 2023 | ABP6: 2024 | ABQ6: 2025 | ABR6: 2026 | ABS6: 2027 | ABT6: 2028 | ABU6: 2029 | ABV6: 2015-2019 | ABW6: 2020-2024 | ABX6: 2025-2029 | ABY6: 2015-2029 | ABZ6: 2015 | ACA6: 2016 | ACB6: 2017 | ACC6: 2018 | ACD6: 2019 | ACE6: 2020 | ACF6: 2021 | ACG6: 2022 | ACH6: 2023 | ACI6: 2024 | ACJ6: 2025 | ACK6: 2026 | ACL6: 2027 | ACM6: 2028 | ACN6: 2029 | ACO6: 2015-2019 | ACP6: 2020-2024 | ACQ6: 2025-2029 | ACR6: 2015-2029 | ACS6: 2015 | ACT6: 2016 | ACU6: 2017 | ACV6: 2018 | ACW6: 2019 | ACX6: 2020 | ACY6: 2021 | ACZ6: 2022 | ADA6: 2023 | ADB6: 2024 | ADC6: 2025 | ADD6: 2026 | ADE6: 2027 | ADF6: 2028 | ADG6: 2029 | ADH6: 2015-2019 | ADI6: 2020-2024 | ADJ6: 2025-2029 | ADK6: 2015-2029 | ADL6: 2015 | ADM6: 2016 | ADN6: 2017 | ADO6: 2018 | ADP6: 2019 | ADQ6: 2020 | ADR6: 2021 | ADS6: 2022 | ADT6: 2023 | ADU6: 2024 | ADV6: 2025 | ADW6: 2026 | ADX6: 2027 | ADY6: 2028 | ADZ6: 2029 | AEA6: 2015-2019 | AEB6: 2020-2024 | AEC6: 2025-2029 | AED6: 2015-2029 | AEE6: 2015 | AEF6: 2016 | AEG6: 2017 | AEH6: 2018 | AEI6: 2019 | AEJ6: 2020 | AEK6: 2021 | AEL6: 2022 | AEM6: 2023 | AEN6: 2024 | AEO6: 2025 | AEP6: 2026 | AEQ6: 2027 | AER6: 2028 | AES6: 2029 | AET6: 2015-2019 | AEU6: 2020-2024 | AEV6: 2025-2029 | AEW6: 2015-2029 | AEX6: 2015 | AEY6: 2016 | AEZ6: 2017 | AFA6: 2018 | AFB6: 2019 | AFC6: 2020 | AFD6: 2021 | AFE6: 2022 | AFF6: 2023 | AFG6: 2024 | AFH6: 2025 | AFI6: 2026 | AFJ6: 2027 | AFK6: 2028 | AFL6: 2029 | AFM6: 2015-2019 | AFN6: 2020-2024 | AFO6: 2025-2029 | AFP6: 2015-2029 | AFQ6: 2015 | AFR6: 2016 | AFS6: 2017 | AFT6: 2018 | AFU6: 2019 | AFV6: 2020 | AFW6: 2021 | AFX6: 2022 | AFY6: 2023 | AFZ6: 2024 | AGA6: 2025 | AGB6: 2026 | AGC6: 2027 | AGD6: 2028 | AGE6: 2029 | AGF6: 2015-2019 | AGG6: 2020-2024 | AGH6: 2025-2029 | AGI6: 2015-2029 | AGJ6: 2015 | AGK6: 2016 | AGL6: 2017 | AGM6: 2018 | AGN6: 2019 | AGO6: 2020 | AGP6: 2021 | AGQ6: 2022 | AGR6: 2023 | AGS6: 2024 | AGT6: 2025 | AGU6: 2026 | AGV6: 2027 | AGW6: 2028 | AGX6: 2029 | AGY6: 2015-2019 | AGZ6: 2020-2024 | AHA6: 2025-2029 | AHB6: 2015-2029 | AHC6: 2015 | AHD6: 2016 | AHE6: 2017 | AHF6: 2018 | AHG6: 2019 | AHH6: 2020 | AHI6: 2021 | AHJ6: 2022 | AHK6: 2023 | AHL6: 2024 | AHM6: 2025 | AHN6: 2026 | AHO6: 2027 | AHP6: 2028 | AHQ6: 2029 | AHR6: 2015-2019 | AHS6: 2020-2024 | AHT6: 2025-2029 | AHU6: 2015-2029 | AHV6: 2015 | AHW6: 2016 | AHX6: 2017 | AHY6: 2018 | AHZ6: 2019 | AIA6: 2020 | AIB6: 2021 | AIC6: 2022 | AID6: 2023 | AIE6: 2024 | AIF6: 2025 | AIG6: 2026 | AIH6: 2027 | AII6: 2028 | AIJ6: 2029 | AIK6: 2015-2019 | AIL6: 2020-2024 | AIM6: 2025-2029 | AIN6: 2015-2029 | AIO6: 2015 | AIP6: 2016 | AIQ6: 2017 | AIR6: 2018 | AIS6: 2019 | AIT6: 2020 | AIU6: 2021 | AIV6: 2022 | AIW6: 2023 | AIX6: 2024 | AIY6: 2025 | AIZ6: 2026 | AJA6: 2027 | AJB6: 2028 | AJC6: 2029 | AJD6: 2015-2019 | AJE6: 2020-2024 | AJF6: 2025-2029 | AJG6: 2015-2029 | AJH6: 2015 | AJI6: 2016 | AJJ6: 2017 | AJK6: 2018 | AJL6: 2019 | AJM6: 2020 | AJN6: 2021 | AJO6: 2022 | AJP6: 2023 | AJQ6: 2024 | AJR6: 2025 | AJS6: 2026 | AJT6: 2027 | AJU6: 2028 | AJV6: 2029 | AJW6: 2015-2019 | AJX6: 2020-2024 | AJY6: 2025-2029 | AJZ6: 2015-2029 | AKA6: 2015 | AKB6: 2016 | AKC6: 2017 | AKD6: 2018 | AKE6: 2019 | AKF6: 2020 | AKG6: 2021 | AKH6: 2022 | AKI6: 2023 | AKJ6: 2024 | AKK6: 2025 | AKL6: 2026 | AKM6: 2027 | AKN6: 2028 | AKO6: 2029 | AKP6: 2015-2019 | AKQ6: 2020-2024 | AKR6: 2025-2029 | AKS6: 2015-2029 | AKT6: 2015 | AKU6: 2016 | AKV6: 2017 | AKW6: 2018 | AKX6: 2019 | AKY6: 2020 | AKZ6: 2021 | ALA6: 2022 | ALB6: 2023 | ALC6: 2024 | ALD6: 2025 | ALE6: 2026 | ALF6: 2027 | ALG6: 2028 | ALH6: 2029 | ALI6: 2015-2019 | ALJ6: 2020-2024 | ALK6: 2025-2029 | ALL6: 2015-2029 | ALM6: 2015 | ALN6: 2016 | ALO6: 2017 | ALP6: 2018 | ALQ6: 2019 | ALR6: 2020 | ALS6: 2021 | ALT6: 2022 | ALU6: 2023 | ALV6: 2024 | ALW6: 2025 | ALX6: 2026 | ALY6: 2027 | ALZ6: 2028 | AMA6: 2029 | AMB6: 2015-2019 | AMC6: 2020-2024 | AMD6: 2025-2029 | AME6: 2015-2029 | AMF6: 2015 | AMG6: 2016 | AMH6: 2017 | AMI6: 2018 | AMJ6: 2019 | AMK6: 2020 | AML6: 2021 | AMM6: 2022 | AMN6: 2023 | AMO6: 2024 | AMP6: 2025 | AMQ6: 2026 | AMR6: 2027 | AMS6: 2028 | AMT6: 2029 | AMU6: 2015-2019 | AMV6: 2020-2024 | AMW6: 2025-2029 | AMX6: 2015-2029 | AMY6: 2015 | AMZ6: 2016 | ANA6: 2017 | ANB6: 2018 | ANC6: 2019 | AND6: 2020 | ANE6: 2021 | ANF6: 2022 | ANG6: 2023 | ANH6: 2024 | ANI6: 2025 | ANJ6: 2026 | ANK6: 2027 | ANL6: 2028 | ANM6: 2029 | ANN6: 2015-2019 | ANO6: 2020-2024 | ANP6: 2025-2029 | ANQ6: 2015-2029 | ANR6: 2015 | ANS6: 2016 | ANT6: 2017 | ANU6: 2018 | ANV6: 2019 | ANW6: 2020 | ANX6: 2021 | ANY6: 2022 | ANZ6: 2023 | AOA6: 2024 | AOB6: 2025 | AOC6: 2026 | AOD6: 2027 | AOE6: 2028 | AOF6: 2029 | AOG6: 2015-2019 | AOH6: 2020-2024 | AOI6: 2025-2029 | AOJ6: 2015-2029 | AOK6: 2015 | AOL6: 2015 | AOM6: 2015 | AON6: CapEx | AOO6: Software | AOP6: Software (% of Capex) | AOQ6: Duration | AOR6: Annualized | AOS6: CapManEx % | AOT6: CapManEx | AOU6: Duration | AOV6: Annualized | AOW6: OpEx | AOX6: Software | AOY6: Software % | APA6: CapEx | APB6: Software | APC6: Software (% of Capex) | APD6: Duration | APE6: Annualized | APF6: CapManEx % | APG6: CapManEx | APH6: Duration | API6: Annualized | APJ6: OpEx | APK6: Software | APL6: Software % | APN6: CapEx | APO6: Software | APP6: Software (% of Capex) | APQ6: Duration | APR6: Annualized | APS6: CapManEx % | APT6: CapManEx | APU6: Duration | APV6: Annualized | APW6: OpEx | APX6: Software | APY6: Software % | AQA6: CapEx | AQB6: Software | AQC6: Software (% of Capex) | AQD6: Duration | AQE6: Annualized | AQF6: CapManEx % | AQG6: CapManEx | AQH6: Duration | AQI6: Annualized | AQJ6: OpEx | AQK6: Software | AQL6: Software % | AQN6: CapEx | AQO6: Software | AQP6: Software (% of Capex) | AQQ6: Duration | AQR6: Annualized | AQS6: CapManEx % | AQT6: CapManEx | AQU6: Duration | AQV6: Annualized | AQW6: OpEx | AQX6: Software | AQY6: Software % | ARA6: CapEx | ARB6: Software | ARC6: Software (% of Capex) | ARD6: Duration | ARE6: Annualized | ARF6: CapManEx % | ARG6: CapManEx | ARH6: Duration | ARI6: Annualized | ARJ6: OpEx | ARK6: Software | ARL6: Software % | ARN6: Av. No. of HHs Sharing | ARO6: CapEx | ARP6: Software | ARQ6: Software (% of Capex) | ARR6: Duration | ARS6: Annualized | ART6: CapManEx % | ARU6: CapManEx | ARV6: Duration | ARW6: Annualized | ARX6: OpEx | ARY6: Software | ARZ6: Software % | ASB6: Av. No. of HHs Sharing | ASC6: CapEx | ASD6: Software | ASE6: Software (% of Capex) | ASF6: Duration | ASG6: Annualized | ASH6: CapManEx % | ASI6: CapManEx | ASJ6: Duration | ASK6: Annualized | ASL6: OpEx | ASM6: Software | ASN6: Software % | ASP6: Av. No. of HHs Sharing | ASQ6: CapEx | ASR6: Software | ASS6: Software (% of Capex) | AST6: Duration | ASU6: Annualized | ASV6: CapManEx % | ASW6: CapManEx | ASX6: Duration | ASY6: Annualized | ASZ6: OpEx | ATA6: Software | ATB6: Software % | ATD6: Av. No. of HHs Sharing | ATE6: CapEx | ATF6: Software | ATG6: Software (% of Capex) | ATH6: Duration | ATI6: Annualized | ATJ6: CapManEx % | ATK6: CapManEx | ATL6: Duration | ATM6: Annualized | ATN6: OpEx | ATO6: Software | ATP6: Software % | ATR6: CapEx | ATS6: Software | ATT6: Software (% of Capex) | ATU6: Duration | ATV6: Annualized | ATW6: CapManEx % | ATX6: CapManEx | ATY6: Duration | ATZ6: Annualized | AUA6: OpEx | AUB6: Software | AUC6: Software % | AUE6: CapEx | AUF6: Software | AUG6: Software (% of Capex) | AUH6: Duration | AUI6: Annualized | AUJ6: CapManEx % | AUK6: CapManEx | AUL6: Duration | AUM6: Annualized | AUN6: OpEx | AUO6: Software | AUP6: Software | AUR6: CapEx | AUS6: Software | AUT6: Software (% of Capex) | AUU6: Duration | AUV6: Annualized | AUW6: CapManEx % | AUX6: CapManEx | AUY6: Duration | AUZ6: Annualized | AVA6: OpEx | AVB6: Software | AVC6: Software | AVE6: CapEx | AVF6: Software | AVG6: Software (% of Capex) | AVH6: Duration | AVI6: Annualized | AVJ6: CapManEx % | AVK6: CapManEx | AVL6: Duration | AVM6: Annualized | AVN6: OpEx | AVO6: Software | AVP6: Software | AVR6: CapEx | AVS6: Software | AVT6: Software (% of Capex) | AVU6: Duration | AVV6: Annualized | AVW6: CapManEx % | AVX6: CapManEx | AVY6: Duration | AVZ6: Annualized | AWA6: OpEx | AWB6: Software | AWC6: Software | AWE6: CapEx | AWF6: Software | AWG6: Software (% of Capex) | AWH6: Duration Hardware | AWI6: Duration Software | AWJ6: Annualized | AWK6: CapManEx % | AWL6: CapManEx | AWM6: Duration | AWN6: Annualized | AWO6: OpEx | AWP6: Software | AWQ6: Software % | AWS6: CapEx | AWT6: Software | AWU6: Software (% of Capex) | AWV6: Duration Hardware | AWW6: Duration Software | AWX6: Annualized | AWY6: CapManEx % | AWZ6: CapManEx | AXA6: Duration | AXB6: Annualized | AXC6: OpEx | AXD6: Software | AXE6: Software % | AXG6: Q5 (Rich) | AXH6: Q4 | AXI6: Q3 | AXJ6: Q2 | AXK6: Q1 (Poor) | AXL6: Q5 (Rich) | AXM6: Q4 | AXN6: Q3 | AXO6: Q2 | AXP6: Q1 (Poor) | AXQ6: Q5 (Rich) | AXR6: Q4 | AXS6: Q3 | AXT6: Q2 | AXU6: Q1 (Poor) | AXV6: Q5 (Rich) | AXW6: Q4 | AXX6: Q3 | AXY6: Q2 | AXZ6: Q1 (Poor) | AYA6: Q5 (Rich) | AYB6: Q4 | AYC6: Q3 | AYD6: Q2 | AYE6: Q1 (Poor) | AYF6: Q5 (Rich) | AYG6: Q4 | AYH6: Q3 | AYI6: Q2 | AYJ6: Q1 (Poor) | AYK6: Q5 (Rich) | AYL6: Q4 | AYM6: Q3 | AYN6: Q2 | AYO6: Q1 (Poor) | AYP6: Q5 (Rich) | AYQ6: Q4 | AYR6: Q3 | AYS6: Q2 | AYT6: Q1 (Poor) | AYU6: Q5 (Rich) | AYV6: Q4 | AYW6: Q3 | AYX6: Q2 | AYY6: Q1 (Poor) | AYZ6: Q5 (Rich) | AZA6: Q4 | AZB6: Q3 | AZC6: Q2 | AZD6: Q1 (Poor) | AZE6: Q5 (Rich) | AZF6: Q4 | AZG6: Q3 | AZH6: Q2 | AZI6: Q1 (Poor) | AZJ6: Q5 (Rich) | AZK6: Q4 | AZL6: Q3 | AZM6: Q2 | AZN6: Q1 (Poor) | AZP6: Urban | AZQ6: Rural | AZR6: Urban | AZS6: Rural | AZW6: =50*1000*0.74 -> 37000 | AZX6: =50*1000*0.62 -> 31000 | AZY6: =50*5000*0.74 -> 185000 | AZZ6: =50*5000*0.62 -> 155000 | BAJ6: Capital | BAK6: Cap. Replace (10) | BAL6: 2015 | BAM6: 2016 | BAN6: 2017 | BAO6: 2018 | BAP6: 2019 | BAQ6: 2020 | BAR6: 2021 | BAS6: 2022 | BAT6: 2023 | BAU6: 2024 | BAV6: 2025 | BAW6: 2026 | BAX6: 2027 | BAY6: 2028 | BAZ6: 2029 | BBA6: 2015-2019 | BBB6: 2020-2024 | BBC6: 2025-2029 | BBD6: 2015-2029 | BBE6: Capital | BBF6: Cap. Replace (10) | BBG6: 2015 | BBH6: 2016 | BBI6: 2017 | BBJ6: 2018 | BBK6: 2019 | BBL6: 2020 | BBM6: 2021 | BBN6: 2022 | BBO6: 2023 | BBP6: 2024 | BBQ6: 2025 | BBR6: 2026 | BBS6: 2027 | BBT6: 2028 | BBU6: 2029 | BBV6: 2015-2019 | BBW6: 2020-2024 | BBX6: 2025-2029 | BBY6: 2015-2029 | BBZ6: Capital | BCA6: Cap. Replace (10) | BCB6: 2015 | BCC6: 2016 | BCD6: 2017 | BCE6: 2018 | BCF6: 2019 | BCG6: 2020 | BCH6: 2021 | BCI6: 2022 | BCJ6: 2023 | BCK6: 2024 | BCL6: 2025 | BCM6: 2026 | BCN6: 2027 | BCO6: 2028 | BCP6: 2029 | BCQ6: 2015-2019 | BCR6: 2020-2024 | BCS6: 2025-2029 | BCT6: 2015-2029 | BCU6: Capital | BCV6: Cap. Replace (10) | BCW6: 2015 | BCX6: 2016 | BCY6: 2017 | BCZ6: 2018 | BDA6: 2019 | BDB6: 2020 | BDC6: 2021 | BDD6: 2022 | BDE6: 2023 | BDF6: 2024 | BDG6: 2025 | BDH6: 2026 | BDI6: 2027 | BDJ6: 2028 | BDK6: 2029 | BDL6: 2015-2019 | BDM6: 2020-2024 | BDN6: 2025-2029 | BDO6: 2015-2029 | BDP6: Capital | BDQ6: Cap. Replace (10) | BDR6: 2015 | BDS6: 2016 | BDT6: 2017 | BDU6: 2018 | BDV6: 2019 | BDW6: 2020 | BDX6: 2021 | BDY6: 2022 | BDZ6: 2023 | BEA6: 2024 | BEB6: 2025 | BEC6: 2026 | BED6: 2027 | BEE6: 2028 | BEF6: 2029 | BEG6: 2015-2019 | BEH6: 2020-2024 | BEI6: 2025-2029 | BEJ6: 2015-2029 | BEK6: Capital | BEL6: Cap. Replace (10) | BEM6: 2015 | BEN6: 2016 | BEO6: 2017 | BEP6: 2018 | BEQ6: 2019 | BER6: 2020 | BES6: 2021 | BET6: 2022 | BEU6: 2023 | BEV6: 2024 | BEW6: 2025 | BEX6: 2026 | BEY6: 2027 | BEZ6: 2028 | BFA6: 2029 | BFB6: 2015-2019 | BFC6: 2020-2024 | BFD6: 2025-2029 | BFE6: 2015-2029 | BFF6: Capital | BFG6: Cap. Replace (10) | BFH6: 2015 | BFI6: 2016 | BFJ6: 2017 | BFK6: 2018 | BFL6: 2019 | BFM6: 2020 | BFN6: 2021 | BFO6: 2022 | BFP6: 2023 | BFQ6: 2024 | BFR6: 2025 | BFS6: 2026 | BFT6: 2027 | BFU6: 2028 | BFV6: 2029 | BFW6: 2015-2019 | BFX6: 2020-2024 | BFY6: 2025-2029 | BFZ6: 2015-2029 | BGA6: Capital | BGB6: Cap. Replace (10) | BGC6: 2015 | BGD6: 2016 | BGE6: 2017 | BGF6: 2018 | BGG6: 2019 | BGH6: 2020 | BGI6: 2021 | BGJ6: 2022 | BGK6: 2023 | BGL6: 2024 | BGM6: 2025 | BGN6: 2026 | BGO6: 2027 | BGP6: 2028 | BGQ6: 2029 | BGR6: 2015-2019 | BGS6: 2020-2024 | BGT6: 2025-2029 | BGU6: 2015-2029 | BGV6: Capital | BGW6: Cap. Replace (10) | BGX6: 2015 | BGY6: 2016 | BGZ6: 2017 | BHA6: 2018 | BHB6: 2019 | BHC6: 2020 | BHD6: 2021 | BHE6: 2022 | BHF6: 2023 | BHG6: 2024 | BHH6: 2025 | BHI6: 2026 | BHJ6: 2027 | BHK6: 2028 | BHL6: 2029 | BHM6: 2015-2019 | BHN6: 2020-2024 | BHO6: 2025-2029 | BHP6: 2015-2029 | BHQ6: Capital | BHR6: Cap. Replace (10) | BHS6: 2015 | BHT6: 2016 | BHU6: 2017 | BHV6: 2018 | BHW6: 2019 | BHX6: 2020 | BHY6: 2021 | BHZ6: 2022 | BIA6: 2023 | BIB6: 2024 | BIC6: 2025 | BID6: 2026 | BIE6: 2027 | BIF6: 2028 | BIG6: 2029 | BIH6: 2015-2019 | BII6: 2020-2024 | BIJ6: 2025-2029 | BIK6: 2015-2029 | BIL6: Capital | BIM6: Cap. Replace (10) | BIN6: 2015 | BIO6: 2016 | BIP6: 2017 | BIQ6: 2018 | BIR6: 2019 | BIS6: 2020 | BIT6: 2021 | BIU6: 2022 | BIV6: 2023 | BIW6: 2024 | BIX6: 2025 | BIY6: 2026 | BIZ6: 2027 | BJA6: 2028 | BJB6: 2029 | BJC6: 2015-2019 | BJD6: 2020-2024 | BJE6: 2025-2029 | BJF6: 2015-2029 | BJG6: Capital | BJH6: Cap. Replace (10) | BJI6: 2015 | BJJ6: 2016 | BJK6: 2017 | BJL6: 2018 | BJM6: 2019 | BJN6: 2020 | BJO6: 2021 | BJP6: 2022 | BJQ6: 2023 | BJR6: 2024 | BJS6: 2025 | BJT6: 2026 | BJU6: 2027 | BJV6: 2028 | BJW6: 2029 | BJX6: 2015-2019 | BJY6: 2020-2024 | BJZ6: 2025-2029 | BKA6: 2015-2029 | BKB6: Capital | BKC6: Cap. Replace (10) | BKD6: 2015 | BKE6: 2016 | BKF6: 2017 | BKG6: 2018 | BKH6: 2019 | BKI6: 2020 | BKJ6: 2021 | BKK6: 2022 | BKL6: 2023 | BKM6: 2024 | BKN6: 2025 | BKO6: 2026 | BKP6: 2027 | BKQ6: 2028 | BKR6: 2029 | BKS6: 2015-2019 | BKT6: 2020-2024 | BKU6: 2025-2029 | BKV6: 2015-2029 | BKW6: Capital | BKX6: Cap. Replace (10) | BKY6: 2015 | BKZ6: 2016 | BLA6: 2017 | BLB6: 2018 | BLC6: 2019 | BLD6: 2020 | BLE6: 2021 | BLF6: 2022 | BLG6: 2023 | BLH6: 2024 | BLI6: 2025 | BLJ6: 2026 | BLK6: 2027 | BLL6: 2028 | BLM6: 2029 | BLN6: 2015-2019 | BLO6: 2020-2024 | BLP6: 2025-2029 | BLQ6: 2015-2029 | BLR6: Capital | BLS6: Cap. Replace (10) | BLT6: 2015 | BLU6: 2016 | BLV6: 2017 | BLW6: 2018 | BLX6: 2019 | BLY6: 2020 | BLZ6: 2021 | BMA6: 2022 | BMB6: 2023 | BMC6: 2024 | BMD6: 2025 | BME6: 2026 | BMF6: 2027 | BMG6: 2028 | BMH6: 2029 | BMI6: 2015-2019 | BMJ6: 2020-2024 | BMK6: 2025-2029 | BML6: 2015-2029 | BMM6: Capital | BMN6: Cap. Replace (10) | BMO6: 2015 | BMP6: 2016 | BMQ6: 2017 | BMR6: 2018 | BMS6: 2019 | BMT6: 2020 | BMU6: 2021 | BMV6: 2022 | BMW6: 2023 | BMX6: 2024 | BMY6: 2025 | BMZ6: 2026 | BNA6: 2027 | BNB6: 2028 | BNC6: 2029 | BND6: 2015-2019 | BNE6: 2020-2024 | BNF6: 2025-2029 | BNG6: 2015-2029 | BNH6: Capital | BNI6: Cap. Replace (10) | BNJ6: 2015 | BNK6: 2016 | BNL6: 2017 | BNM6: 2018 | BNN6: 2019 | BNO6: 2020 | BNP6: 2021 | BNQ6: 2022 | BNR6: 2023 | BNS6: 2024 | BNT6: 2025 | BNU6: 2026 | BNV6: 2027 | BNW6: 2028 | BNX6: 2029 | BNY6: 2015-2019 | BNZ6: 2020-2024 | BOA6: 2025-2029 | BOB6: 2015-2029 | BOC6: Capital | BOD6: Cap. Replace (10) | BOE6: 2015 | BOF6: 2016 | BOG6: 2017 | BOH6: 2018 | BOI6: 2019 | BOJ6: 2020 | BOK6: 2021 | BOL6: 2022 | BOM6: 2023 | BON6: 2024 | BOO6: 2025 | BOP6: 2026 | BOQ6: 2027 | BOR6: 2028 | BOS6: 2029 | BOT6: 2015-2019 | BOU6: 2020-2024 | BOV6: 2025-2029 | BOW6: 2015-2029 | BOX6: Capital | BOY6: Cap. Replace (10) | BOZ6: 2015 | BPA6: 2016 | BPB6: 2017 | BPC6: 2018 | BPD6: 2019 | BPE6: 2020 | BPF6: 2021 | BPG6: 2022 | BPH6: 2023 | BPI6: 2024 | BPJ6: 2025 | BPK6: 2026 | BPL6: 2027 | BPM6: 2028 | BPN6: 2029 | BPO6: 2015-2019 | BPP6: 2020-2024 | BPQ6: 2025-2029 | BPR6: 2015-2029 | BPS6: Capital | BPU6: 2015 | BPV6: 2016 | BPW6: 2017 | BPX6: 2018 | BPY6: 2019 | BPZ6: 2020 | BQA6: 2021 | BQB6: 2022 | BQC6: 2023 | BQD6: 2024 | BQE6: 2025 | BQF6: 2026 | BQG6: 2027 | BQH6: 2028 | BQI6: 2029 | BQJ6: 2015-2019 | BQK6: 2020-2024 | BQL6: 2025-2029 | BQM6: 2015-2029 | BQN6: Capital | BQP6: 2015 | BQQ6: 2016 | BQR6: 2017 | BQS6: 2018 | BQT6: 2019 | BQU6: 2020 | BQV6: 2021 | BQW6: 2022 | BQX6: 2023 | BQY6: 2024 | BQZ6: 2025 | BRA6: 2026 | BRB6: 2027 | BRC6: 2028 | BRD6: 2029 | BRE6: 2015-2019 | BRF6: 2020-2024 | BRG6: 2025-2029 | BRH6: 2015-2029 | BRI6: Capital | BRK6: 2015 | BRL6: 2016 | BRM6: 2017 | BRN6: 2018 | BRO6: 2019 | BRP6: 2020 | BRQ6: 2021 | BRR6: 2022 | BRS6: 2023 | BRT6: 2024 | BRU6: 2025 | BRV6: 2026 | BRW6: 2027 | BRX6: 2028 | BRY6: 2029 | BRZ6: 2015-2019 | BSA6: 2020-2024 | BSB6: 2025-2029 | BSC6: 2015-2029 | BSD6: Capital | BSF6: 2015 | BSG6: 2016 | BSH6: 2017 | BSI6: 2018 | BSJ6: 2019 | BSK6: 2020 | BSL6: 2021 | BSM6: 2022 | BSN6: 2023 | BSO6: 2024 | BSP6: 2025 | BSQ6: 2026 | BSR6: 2027 | BSS6: 2028 | BST6: 2029 | BSU6: 2015-2019 | BSV6: 2020-2024 | BSW6: 2025-2029 | BSX6: 2015-2029 | BSY6: Capital | BTA6: 2015 | BTB6: 2016 | BTC6: 2017 | BTD6: 2018 | BTE6: 2019 | BTF6: 2020 | BTG6: 2021 | BTH6: 2022 | BTI6: 2023 | BTJ6: 2024 | BTK6: 2025 | BTL6: 2026 | BTM6: 2027 | BTN6: 2028 | BTO6: 2029 | BTP6: 2015-2019 | BTQ6: 2020-2024 | BTR6: 2025-2029 | BTS6: 2015-2029 | BTT6: Capital | BTU6: Cap Replace (8) | BTV6: 2015 | BTW6: 2016 | BTX6: 2017 | BTY6: 2018 | BTZ6: 2019 | BUA6: 2020 | BUB6: 2021 | BUC6: 2022 | BUD6: 2023 | BUE6: 2024 | BUF6: 2025 | BUG6: 2026 | BUH6: 2027 | BUI6: 2028 | BUJ6: 2029 | BUK6: 2015-2019 | BUL6: 2020-2024 | BUM6: 2025-2029 | BUN6: 2015-2029 | BUO6: Capital | BUP6: Cap Replace (8) | BUQ6: 2015 | BUR6: 2016 | BUS6: 2017 | BUT6: 2018 | BUU6: 2019 | BUV6: 2020 | BUW6: 2021 | BUX6: 2022 | BUY6: 2023 | BUZ6: 2024 | BVA6: 2025 | BVB6: 2026 | BVC6: 2027 | BVD6: 2028 | BVE6: 2029 | BVF6: 2015-2019 | BVG6: 2020-2024 | BVH6: 2025-2029 | BVI6: 2015-2029 | BVJ6: Capital | BVK6: Cap Replace (8) | BVL6: 2015 | BVM6: 2016 | BVN6: 2017 | BVO6: 2018 | BVP6: 2019 | BVQ6: 2020 | BVR6: 2021 | BVS6: 2022 | BVT6: 2023 | BVU6: 2024 | BVV6: 2025 | BVW6: 2026 | BVX6: 2027 | BVY6: 2028 | BVZ6: 2029 | BWA6: 2015-2019 | BWB6: 2020-2024 | BWC6: 2025-2029 | BWD6: 2015-2029 | BWE6: Capital | BWF6: Cap Replace (8) | BWG6: 2015 | BWH6: 2016 | BWI6: 2017 | BWJ6: 2018 | BWK6: 2019 | BWL6: 2020 | BWM6: 2021 | BWN6: 2022 | BWO6: 2023 | BWP6: 2024 | BWQ6: 2025 | BWR6: 2026 | BWS6: 2027 | BWT6: 2028 | BWU6: 2029 | BWV6: 2015-2019 | BWW6: 2020-2024 | BWX6: 2025-2029 | BWY6: 2015-2029 | BWZ6: Capital | BXA6: Cap Replace (8) | BXB6: 2015 | BXC6: 2016 | BXD6: 2017 | BXE6: 2018 | BXF6: 2019 | BXG6: 2020 | BXH6: 2021 | BXI6: 2022 | BXJ6: 2023 | BXK6: 2024 | BXL6: 2025 | BXM6: 2026 | BXN6: 2027 | BXO6: 2028 | BXP6: 2029 | BXQ6: 2015-2019 | BXR6: 2020-2024 | BXS6: 2025-2029 | BXT6: 2015-2029 | BXU6: Capital | BXV6: Cap Replace (8) | BXW6: 2015 | BXX6: 2016 | BXY6: 2017 | BXZ6: 2018 | BYA6: 2019 | BYB6: 2020 | BYC6: 2021 | BYD6: 2022 | BYE6: 2023 | BYF6: 2024 | BYG6: 2025 | BYH6: 2026 | BYI6: 2027 | BYJ6: 2028 | BYK6: 2029 | BYL6: 2015-2019 | BYM6: 2020-2024 | BYN6: 2025-2029 | BYO6: 2015-2029 | BYP6: Capital | BYQ6: Cap Replace (8) | BYR6: 2015 | BYS6: 2016 | BYT6: 2017 | BYU6: 2018 | BYV6: 2019 | BYW6: 2020 | BYX6: 2021 | BYY6: 2022 | BYZ6: 2023 | BZA6: 2024 | BZB6: 2025 | BZC6: 2026 | BZD6: 2027 | BZE6: 2028 | BZF6: 2029 | BZG6: 2015-2019 | BZH6: 2020-2024 | BZI6: 2025-2029 | BZJ6: 2015-2029 | BZK6: Capital | BZL6: Cap Replace (8) | BZM6: 2015 | BZN6: 2016 | BZO6: 2017 | BZP6: 2018 | BZQ6: 2019 | BZR6: 2020 | BZS6: 2021 | BZT6: 2022 | BZU6: 2023 | BZV6: 2024 | BZW6: 2025 | BZX6: 2026 | BZY6: 2027 | BZZ6: 2028 | CAA6: 2029 | CAB6: 2015-2019 | CAC6: 2020-2024 | CAD6: 2025-2029 | CAE6: 2015-2029 | CAF6: Capital | CAG6: Cap Replace (8) | CAH6: 2015 | CAI6: 2016 | CAJ6: 2017 | CAK6: 2018 | CAL6: 2019 | CAM6: 2020 | CAN6: 2021 | CAO6: 2022 | CAP6: 2023 | CAQ6: 2024 | CAR6: 2025 | CAS6: 2026 | CAT6: 2027 | CAU6: 2028 | CAV6: 2029 | CAW6: 2015-2019 | CAX6: 2020-2024 | CAY6: 2025-2029 | CAZ6: 2015-2029 | CBA6: Capital | CBB6: Cap Replace (8) | CBC6: 2015 | CBD6: 2016 | CBE6: 2017 | CBF6: 2018 | CBG6: 2019 | CBH6: 2020 | CBI6: 2021 | CBJ6: 2022 | CBK6: 2023 | CBL6: 2024 | CBM6: 2025 | CBN6: 2026 | CBO6: 2027 | CBP6: 2028 | CBQ6: 2029 | CBR6: 2015-2019 | CBS6: 2020-2024 | CBT6: 2025-2029 | CBU6: 2015-2029 | CBV6: Capital | CBW6: Cap Replace (8) | CBX6: 2015 | CBY6: 2016 | CBZ6: 2017 | CCA6: 2018 | CCB6: 2019 | CCC6: 2020 | CCD6: 2021 | CCE6: 2022 | CCF6: 2023 | CCG6: 2024 | CCH6: 2025 | CCI6: 2026 | CCJ6: 2027 | CCK6: 2028 | CCL6: 2029 | CCM6: 2015-2019 | CCN6: 2020-2024 | CCO6: 2025-2029 | CCP6: 2015-2029 | CCQ6: Capital | CCR6: Cap Replace (8) | CCS6: 2015 | CCT6: 2016 | CCU6: 2017 | CCV6: 2018 | CCW6: 2019 | CCX6: 2020 | CCY6: 2021 | CCZ6: 2022 | CDA6: 2023 | CDB6: 2024 | CDC6: 2025 | CDD6: 2026 | CDE6: 2027 | CDF6: 2028 | CDG6: 2029 | CDH6: 2015-2019 | CDI6: 2020-2024 | CDJ6: 2025-2029 | CDK6: 2015-2029 | CDL6: Capital | CDM6: Cap Replace (8) | CDN6: 2015 | CDO6: 2016 | CDP6: 2017 | CDQ6: 2018 | CDR6: 2019 | CDS6: 2020 | CDT6: 2021 | CDU6: 2022 | CDV6: 2023 | CDW6: 2024 | CDX6: 2025 | CDY6: 2026 | CDZ6: 2027 | CEA6: 2028 | CEB6: 2029 | CEC6: 2015-2019 | CED6: 2020-2024 | CEE6: 2025-2029 | CEF6: 2015-2029 | CEG6: Capital | CEH6: Cap Replace (8) | CEI6: 2015 | CEJ6: 2016 | CEK6: 2017 | CEL6: 2018 | CEM6: 2019 | CEN6: 2020 | CEO6: 2021 | CEP6: 2022 | CEQ6: 2023 | CER6: 2024 | CES6: 2025 | CET6: 2026 | CEU6: 2027 | CEV6: 2028 | CEW6: 2029 | CEX6: 2015-2019 | CEY6: 2020-2024 | CEZ6: 2025-2029 | CFA6: 2015-2029 | CFB6: Capital | CFC6: Cap Replace (8) | CFD6: 2015 | CFE6: 2016 | CFF6: 2017 | CFG6: 2018 | CFH6: 2019 | CFI6: 2020 | CFJ6: 2021 | CFK6: 2022 | CFL6: 2023 | CFM6: 2024 | CFN6: 2025 | CFO6: 2026 | CFP6: 2027 | CFQ6: 2028 | CFR6: 2029 | CFS6: 2015-2019 | CFT6: 2020-2024 | CFU6: 2025-2029 | CFV6: 2015-2029 | CFW6: Capital | CFX6: Cap Replace (8) | CFY6: 2015 | CFZ6: 2016 | CGA6: 2017 | CGB6: 2018 | CGC6: 2019 | CGD6: 2020 | CGE6: 2021 | CGF6: 2022 | CGG6: 2023 | CGH6: 2024 | CGI6: 2025 | CGJ6: 2026 | CGK6: 2027 | CGL6: 2028 | CGM6: 2029 | CGN6: 2015-2019 | CGO6: 2020-2024 | CGP6: 2025-2029 | CGQ6: 2015-2029 | CGR6: Capital | CGS6: Cap Replace (8) | CGT6: 2015 | CGU6: 2016 | CGV6: 2017 | CGW6: 2018 | CGX6: 2019 | CGY6: 2020 | CGZ6: 2021 | CHA6: 2022 | CHB6: 2023 | CHC6: 2024 | CHD6: 2025 | CHE6: 2026 | CHF6: 2027 | CHG6: 2028 | CHH6: 2029 | CHI6: 2015-2019 | CHJ6: 2020-2024 | CHK6: 2025-2029 | CHL6: 2015-2029 | CHM6: Capital | CHN6: Cap Replace (8) | CHO6: 2015 | CHP6: 2016 | CHQ6: 2017 | CHR6: 2018 | CHS6: 2019 | CHT6: 2020 | CHU6: 2021 | CHV6: 2022 | CHW6: 2023 | CHX6: 2024 | CHY6: 2025 | CHZ6: 2026 | CIA6: 2027 | CIB6: 2028 | CIC6: 2029 | CID6: 2015-2019 | CIE6: 2020-2024 | CIF6: 2025-2029 | CIG6: 2015-2029 | CIH6: Capital | CIJ6: 2015 | CIK6: 2016 | CIL6: 2017 | CIM6: 2018 | CIN6: 2019 | CIO6: 2020 | CIP6: 2021 | CIQ6: 2022 | CIR6: 2023 | CIS6: 2024 | CIT6: 2025 | CIU6: 2026 | CIV6: 2027 | CIW6: 2028 | CIX6: 2029 | CIY6: 2015-2019 | CIZ6: 2020-2024 | CJA6: 2025-2029 | CJB6: 2015-2029 | CJC6: Capital | CJE6: 2015 | CJF6: 2016 | CJG6: 2017 | CJH6: 2018 | CJI6: 2019 | CJJ6: 2020 | CJK6: 2021 | CJL6: 2022 | CJM6: 2023 | CJN6: 2024 | CJO6: 2025 | CJP6: 2026 | CJQ6: 2027 | CJR6: 2028 | CJS6: 2029 | CJT6: 2015-2019 | CJU6: 2020-2024 | CJV6: 2025-2029 | CJW6: 2015-2029 | CJX6: Capital | CJZ6: 2015 | CKA6: 2016 | CKB6: 2017 | CKC6: 2018 | CKD6: 2019 | CKE6: 2020 | CKF6: 2021 | CKG6: 2022 | CKH6: 2023 | CKI6: 2024 | CKJ6: 2025 | CKK6: 2026 | CKL6: 2027 | CKM6: 2028 | CKN6: 2029 | CKO6: 2015-2019 | CKP6: 2020-2024 | CKQ6: 2025-2029 | CKR6: 2015-2029 | CKS6: Capital | CKU6: 2015 | CKV6: 2016 | CKW6: 2017 | CKX6: 2018 | CKY6: 2019 | CKZ6: 2020 | CLA6: 2021 | CLB6: 2022 | CLC6: 2023 | CLD6: 2024 | CLE6: 2025 | CLF6: 2026 | CLG6: 2027 | CLH6: 2028 | CLI6: 2029 | CLJ6: 2015-2019 | CLK6: 2020-2024 | CLL6: 2025-2029 | CLM6: 2015-2029 | CLN6: Capital | CLP6: 2015 | CLQ6: 2016 | CLR6: 2017 | CLS6: 2018 | CLT6: 2019 | CLU6: 2020 | CLV6: 2021 | CLW6: 2022 | CLX6: 2023 | CLY6: 2024 | CLZ6: 2025 | CMA6: 2026 | CMB6: 2027 | CMC6: 2028 | CMD6: 2029 | CME6: 2015-2019 | CMF6: 2020-2024 | CMG6: 2025-2029 | CMH6: 2015-2029 | CMI6: Capital | CMK6: 2015 | CML6: 2016 | CMM6: 2017 | CMN6: 2018 | CMO6: 2019 | CMP6: 2020 | CMQ6: 2021 | CMR6: 2022 | CMS6: 2023 | CMT6: 2024 | CMU6: 2025 | CMV6: 2026 | CMW6: 2027 | CMX6: 2028 | CMY6: 2029 | CMZ6: 2015-2019 | CNA6: 2020-2024 | CNB6: 2025-2029 | CNC6: 2015-2029 | CND6: Capital | CNF6: 2015 | CNG6: 2016 | CNH6: 2017 | CNI6: 2018 | CNJ6: 2019 | CNK6: 2020 | CNL6: 2021 | CNM6: 2022 | CNN6: 2023 | CNO6: 2024 | CNP6: 2025 | CNQ6: 2026 | CNR6: 2027 | CNS6: 2028 | CNT6: 2029 | CNU6: 2015-2019 | CNV6: 2020-2024 | CNW6: 2025-2029 | CNX6: 2015-2029 | CNY6: Capital | COA6: 2015 | COB6: 2016 | COC6: 2017 | COD6: 2018 | COE6: 2019 | COF6: 2020 | COG6: 2021 | COH6: 2022 | COI6: 2023 | COJ6: 2024 | COK6: 2025 | COL6: 2026 | COM6: 2027 | CON6: 2028 | COO6: 2029 | COP6: 2015-2019 | COQ6: 2020-2024 | COR6: 2025-2029 | COS6: 2015-2029 | COT6: Capital | COV6: 2015 | COW6: 2016 | COX6: 2017 | COY6: 2018 | COZ6: 2019 | CPA6: 2020 | CPB6: 2021 | CPC6: 2022 | CPD6: 2023 | CPE6: 2024 | CPF6: 2025 | CPG6: 2026 | CPH6: 2027 | CPI6: 2028 | CPJ6: 2029 | CPK6: 2015-2019 | CPL6: 2020-2024 | CPM6: 2025-2029 | CPN6: 2015-2029 | CPO6: Capital | CPQ6: 2015 | CPR6: 2016 | CPS6: 2017 | CPT6: 2018 | CPU6: 2019 | CPV6: 2020 | CPW6: 2021 | CPX6: 2022 | CPY6: 2023 | CPZ6: 2024 | CQA6: 2025 | CQB6: 2026 | CQC6: 2027 | CQD6: 2028 | CQE6: 2029 | CQF6: 2015-2019 | CQG6: 2020-2024 | CQH6: 2025-2029 | CQI6: 2015-2029 | CQJ6: Capital | CQL6: 2015 | CQM6: 2016 | CQN6: 2017 | CQO6: 2018 | CQP6: 2019 | CQQ6: 2020 | CQR6: 2021 | CQS6: 2022 | CQT6: 2023 | CQU6: 2024 | CQV6: 2025 | CQW6: 2026 | CQX6: 2027 | CQY6: 2028 | CQZ6: 2029 | CRA6: 2015-2019 | CRB6: 2020-2024 | CRC6: 2025-2029 | CRD6: 2015-2029 | CRE6: Capital | CRG6: 2015 | CRH6: 2016 | CRI6: 2017 | CRJ6: 2018 | CRK6: 2019 | CRL6: 2020 | CRM6: 2021 | CRN6: 2022 | CRO6: 2023 | CRP6: 2024 | CRQ6: 2025 | CRR6: 2026 | CRS6: 2027 | CRT6: 2028 | CRU6: 2029 | CRV6: 2015-2019 | CRW6: 2020-2024 | CRX6: 2025-2029 | CRY6: 2015-2029 | CRZ6: Capital | CSB6: 2015 | CSC6: 2016 | CSD6: 2017 | CSE6: 2018 | CSF6: 2019 | CSG6: 2020 | CSH6: 2021 | CSI6: 2022 | CSJ6: 2023 | CSK6: 2024 | CSL6: 2025 | CSM6: 2026 | CSN6: 2027 | CSO6: 2028 | CSP6: 2029 | CSQ6: 2015-2019 | CSR6: 2020-2024 | CSS6: 2025-2029 | CST6: 2015-2029 | CSU6: Capital | CSW6: 2015 | CSX6: 2016 | CSY6: 2017 | CSZ6: 2018 | CTA6: 2019 | CTB6: 2020 | CTC6: 2021 | CTD6: 2022 | CTE6: 2023 | CTF6: 2024 | CTG6: 2025 | CTH6: 2026 | CTI6: 2027 | CTJ6: 2028 | CTK6: 2029 | CTL6: 2015-2019 | CTM6: 2020-2024 | CTN6: 2025-2029 | CTO6: 2015-2029 | CTP6: Capital | CTR6: 2015 | CTS6: 2016 | CTT6: 2017 | CTU6: 2018 | CTV6: 2019 | CTW6: 2020 | CTX6: 2021 | CTY6: 2022 | CTZ6: 2023 | CUA6: 2024 | CUB6: 2025 | CUC6: 2026 | CUD6: 2027 | CUE6: 2028 | CUF6: 2029 | CUG6: 2015-2019 | CUH6: 2020-2024 | CUI6: 2025-2029 | CUJ6: 2015-2029 | CUK6: Capital | CUM6: 2015 | CUN6: 2016 | CUO6: 2017 | CUP6: 2018 | CUQ6: 2019 | CUR6: 2020 | CUS6: 2021 | CUT6: 2022 | CUU6: 2023 | CUV6: 2024 | CUW6: 2025 | CUX6: 2026 | CUY6: 2027 | CUZ6: 2028 | CVA6: 2029 | CVB6: 2015-2019 | CVC6: 2020-2024 | CVD6: 2025-2029 | CVE6: 2015-2029 | CVF6: Capital | CVH6: 2015 | CVI6: 2016 | CVJ6: 2017 | CVK6: 2018 | CVL6: 2019 | CVM6: 2020 | CVN6: 2021 | CVO6: 2022 | CVP6: 2023 | CVQ6: 2024 | CVR6: 2025 | CVS6: 2026 | CVT6: 2027 | CVU6: 2028 | CVV6: 2029 | CVW6: 2015-2019 | CVX6: 2020-2024 | CVY6: 2025-2029 | CVZ6: 2015-2029 | CWA6: Capital | CWC6: 2015 | CWD6: 2016 | CWE6: 2017 | CWF6: 2018 | CWG6: 2019 | CWH6: 2020 | CWI6: 2021 | CWJ6: 2022 | CWK6: 2023 | CWL6: 2024 | CWM6: 2025 | CWN6: 2026 | CWO6: 2027 | CWP6: 2028 | CWQ6: 2029 | CWR6: 2015-2019 | CWS6: 2020-2024 | CWT6: 2025-2029 | CWU6: 2015-2029 | CWV6: Capital | CWX6: 2015 | CWY6: 2016 | CWZ6: 2017 | CXA6: 2018 | CXB6: 2019 | CXC6: 2020 | CXD6: 2021 | CXE6: 2022 | CXF6: 2023 | CXG6: 2024 | CXH6: 2025 | CXI6: 2026 | CXJ6: 2027 | CXK6: 2028 | CXL6: 2029 | CXM6: 2015-2019 | CXN6: 2020-2024 | CXO6: 2025-2029 | CXP6: 2015-2029 | CXQ6: Capital | CXS6: 2015 | CXT6: 2016 | CXU6: 2017 | CXV6: 2018 | CXW6: 2019 | CXX6: 2020 | CXY6: 2021 | CXZ6: 2022 | CYA6: 2023 | CYB6: 2024 | CYC6: 2025 | CYD6: 2026 | CYE6: 2027 | CYF6: 2028 | CYG6: 2029 | CYH6: 2015-2019 | CYI6: 2020-2024 | CYJ6: 2025-2029 | CYK6: 2015-2029 | CYL6: Capital | CYN6: 2015 | CYO6: 2016 | CYP6: 2017 | CYQ6: 2018 | CYR6: 2019 | CYS6: 2020 | CYT6: 2021 | CYU6: 2022 | CYV6: 2023 | CYW6: 2024 | CYX6: 2025 | CYY6: 2026 | CYZ6: 2027 | CZA6: 2028 | CZB6: 2029 | CZC6: 2015-2019 | CZD6: 2020-2024 | CZE6: 2025-2029 | CZF6: 2015-2029 | CZG6: Capital | CZI6: 2015 | CZJ6: 2016 | CZK6: 2017 | CZL6: 2018 | CZM6: 2019 | CZN6: 2020 | CZO6: 2021 | CZP6: 2022 | CZQ6: 2023 | CZR6: 2024 | CZS6: 2025 | CZT6: 2026 | CZU6: 2027 | CZV6: 2028 | CZW6: 2029 | CZX6: 2015-2019 | CZY6: 2020-2024 | CZZ6: 2025-2029 | DAA6: 2015-2029 | DAB6: Capital | DAD6: 2015 | DAE6: 2016 | DAF6: 2017 | DAG6: 2018 | DAH6: 2019 | DAI6: 2020 | DAJ6: 2021 | DAK6: 2022 | DAL6: 2023 | DAM6: 2024 | DAN6: 2025 | DAO6: 2026 | DAP6: 2027 | DAQ6: 2028 | DAR6: 2029 | DAS6: 2015-2019 | DAT6: 2020-2024 | DAU6: 2025-2029 | DAV6: 2015-2029 | DAW6: Capital | DAY6: 2015 | DAZ6: 2016 | DBA6: 2017 | DBB6: 2018 | DBC6: 2019 | DBD6: 2020 | DBE6: 2021 | DBF6: 2022 | DBG6: 2023 | DBH6: 2024 | DBI6: 2025 | DBJ6: 2026 | DBK6: 2027 | DBL6: 2028 | DBM6: 2029 | DBN6: 2015-2019 | DBO6: 2020-2024 | DBP6: 2025-2029 | DBQ6: 2015-2029 | DBR6: Capital | DBT6: 2015 | DBU6: 2016 | DBV6: 2017 | DBW6: 2018 | DBX6: 2019 | DBY6: 2020 | DBZ6: 2021 | DCA6: 2022 | DCB6: 2023 | DCC6: 2024 | DCD6: 2025 | DCE6: 2026 | DCF6: 2027 | DCG6: 2028 | DCH6: 2029 | DCI6: 2015-2019 | DCJ6: 2020-2024 | DCK6: 2025-2029 | DCL6: 2015-2029 | DCM6: Capital | DCO6: 2015 | DCP6: 2016 | DCQ6: 2017 | DCR6: 2018 | DCS6: 2019 | DCT6: 2020 | DCU6: 2021 | DCV6: 2022 | DCW6: 2023 | DCX6: 2024 | DCY6: 2025 | DCZ6: 2026 | DDA6: 2027 | DDB6: 2028 | DDC6: 2029 | DDD6: 2015-2019 | DDE6: 2020-2024 | DDF6: 2025-2029 | DDG6: 2015-2029 | DDH6: Capital | DDJ6: 2015 | DDK6: 2016 | DDL6: 2017 | DDM6: 2018 | DDN6: 2019 | DDO6: 2020 | DDP6: 2021 | DDQ6: 2022 | DDR6: 2023 | DDS6: 2024 | DDT6: 2025 | DDU6: 2026 | DDV6: 2027 | DDW6: 2028 | DDX6: 2029 | DDY6: 2015-2019 | DDZ6: 2020-2024 | DEA6: 2025-2029 | DEB6: 2015-2029 | DEC6: Capital | DEE6: 2015 | DEF6: 2016 | DEG6: 2017 | DEH6: 2018 | DEI6: 2019 | DEJ6: 2020 | DEK6: 2021 | DEL6: 2022 | DEM6: 2023 | DEN6: 2024 | DEO6: 2025 | DEP6: 2026 | DEQ6: 2027 | DER6: 2028 | DES6: 2029 | DET6: 2015-2019 | DEU6: 2020-2024 | DEV6: 2025-2029 | DEW6: 2015-2029 | DEX6: Capital | DEZ6: 2015 | DFA6: 2016 | DFB6: 2017 | DFC6: 2018 | DFD6: 2019 | DFE6: 2020 | DFF6: 2021 | DFG6: 2022 | DFH6: 2023 | DFI6: 2024 | DFJ6: 2025 | DFK6: 2026 | DFL6: 2027 | DFM6: 2028 | DFN6: 2029 | DFO6: 2015-2019 | DFP6: 2020-2024 | DFQ6: 2025-2029 | DFR6: 2015-2029 | DFS6: Capital | DFU6: 2015 | DFV6: 2016 | DFW6: 2017 | DFX6: 2018 | DFY6: 2019 | DFZ6: 2020 | DGA6: 2021 | DGB6: 2022 | DGC6: 2023 | DGD6: 2024 | DGE6: 2025 | DGF6: 2026 | DGG6: 2027 | DGH6: 2028 | DGI6: 2029 | DGJ6: 2015-2019 | DGK6: 2020-2024 | DGL6: 2025-2029 | DGM6: 2015-2029 | DGN6: Capital | DGP6: 2015 | DGQ6: 2016 | DGR6: 2017 | DGS6: 2018 | DGT6: 2019 | DGU6: 2020 | DGV6: 2021 | DGW6: 2022 | DGX6: 2023 | DGY6: 2024 | DGZ6: 2025 | DHA6: 2026 | DHB6: 2027 | DHC6: 2028 | DHD6: 2029 | DHE6: 2015-2019 | DHF6: 2020-2024 | DHG6: 2025-2029 | DHH6: 2015-2029 | DHI6: Capital | DHK6: 2015 | DHL6: 2016 | DHM6: 2017 | DHN6: 2018 | DHO6: 2019 | DHP6: 2020 | DHQ6: 2021 | DHR6: 2022 | DHS6: 2023 | DHT6: 2024 | DHU6: 2025 | DHV6: 2026 | DHW6: 2027 | DHX6: 2028 | DHY6: 2029 | DHZ6: 2015-2019 | DIA6: 2020-2024 | DIB6: 2025-2029 | DIC6: 2015-2029 | DID6: Capital | DIF6: 2015 | DIG6: 2016 | DIH6: 2017 | DII6: 2018 | DIJ6: 2019 | DIK6: 2020 | DIL6: 2021 | DIM6: 2022 | DIN6: 2023 | DIO6: 2024 | DIP6: 2025 | DIQ6: 2026 | DIR6: 2027 | DIS6: 2028 | DIT6: 2029 | DIU6: 2015-2019 | DIV6: 2020-2024 | DIW6: 2025-2029 | DIX6: 2015-2029 | DIY6: Capital | DJA6: 2015 | DJB6: 2016 | DJC6: 2017 | DJD6: 2018 | DJE6: 2019 | DJF6: 2020 | DJG6: 2021 | DJH6: 2022 | DJI6: 2023 | DJJ6: 2024 | DJK6: 2025 | DJL6: 2026 | DJM6: 2027 | DJN6: 2028 | DJO6: 2029 | DJP6: 2015-2019 | DJQ6: 2020-2024 | DJR6: 2025-2029 | DJS6: 2015-2029 | DJT6: Capital | DJV6: 2015 | DJW6: 2016 | DJX6: 2017 | DJY6: 2018 | DJZ6: 2019 | DKA6: 2020 | DKB6: 2021 | DKC6: 2022 | DKD6: 2023 | DKE6: 2024 | DKF6: 2025 | DKG6: 2026 | DKH6: 2027 | DKI6: 2028 | DKJ6: 2029 | DKK6: 2015-2019 | DKL6: 2020-2024 | DKM6: 2025-2029 | DKN6: 2015-2029 | DKO6: Capital | DKQ6: 2015 | DKR6: 2016 | DKS6: 2017 | DKT6: 2018 | DKU6: 2019 | DKV6: 2020 | DKW6: 2021 | DKX6: 2022 | DKY6: 2023 | DKZ6: 2024 | DLA6: 2025 | DLB6: 2026 | DLC6: 2027 | DLD6: 2028 | DLE6: 2029 | DLF6: 2015-2019 | DLG6: 2020-2024 | DLH6: 2025-2029 | DLI6: 2015-2029 | DLJ6: Capital | DLL6: 2015 | DLM6: 2016 | DLN6: 2017 | DLO6: 2018 | DLP6: 2019 | DLQ6: 2020 | DLR6: 2021 | DLS6: 2022 | DLT6: 2023 | DLU6: 2024 | DLV6: 2025 | DLW6: 2026 | DLX6: 2027 | DLY6: 2028 | DLZ6: 2029 | DMA6: 2015-2019 | DMB6: 2020-2024 | DMC6: 2025-2029 | DMD6: 2015-2029 | DME6: Capital | DMG6: 2015 | DMH6: 2016 | DMI6: 2017 | DMJ6: 2018 | DMK6: 2019 | DML6: 2020 | DMM6: 2021 | DMN6: 2022 | DMO6: 2023 | DMP6: 2024 | DMQ6: 2025 | DMR6: 2026 | DMS6: 2027 | DMT6: 2028 | DMU6: 2029 | DMV6: 2015-2019 | DMW6: 2020-2024 | DMX6: 2025-2029 | DMY6: 2015-2029 | DMZ6: Capital | DNB6: 2015 | DNC6: 2016 | DND6: 2017 | DNE6: 2018 | DNF6: 2019 | DNG6: 2020 | DNH6: 2021 | DNI6: 2022 | DNJ6: 2023 | DNK6: 2024 | DNL6: 2025 | DNM6: 2026 | DNN6: 2027 | DNO6: 2028 | DNP6: 2029 | DNQ6: 2015-2019 | DNR6: 2020-2024 | DNS6: 2025-2029 | DNT6: 2015-2029 | DNU6: 2015-2019 | DNV6: 2020-2024 | DNW6: 2025-2029 | DNX6: 2015-2029 | DNY6: Av. Annual | DNZ6: 2015-2019 | DOA6: 2020-2024 | DOB6: 2025-2029 | DOC6: 2015-2029 | DOD6: Av. Annual | DOE6: 2015-2019 | DOF6: 2020-2024 | DOG6: 2025-2029 | DOH6: 2015-2029 | DOI6: Av. Annual | DOJ6: 2015-2019 | DOK6: 2020-2024 | DOL6: 2025-2029 | DOM6: 2015-2029 | DON6: Av. Annual | DOO6: 2015-2019 | DOP6: 2020-2024 | DOQ6: 2025-2029 | DOR6: 2015-2029 | DOS6: Av. Annual | DOT6: 2015-2019 | DOU6: 2020-2024 | DOV6: 2025-2029 | DOW6: 2015-2029 | DOX6: Av. Annual | DOY6: 2015-2019 | DOZ6: 2020-2024 | DPA6: 2025-2029 | DPB6: 2015-2029 | DPC6: Av. Annual | DPD6: 2015-2019 | DPE6: 2020-2024 | DPF6: 2025-2029 | DPG6: 2015-2029 | DPH6: Av. Annual | DPI6: 2015-2019 | DPJ6: 2020-2024 | DPK6: 2025-2029 | DPL6: 2015-2029 | DPM6: Av. Annual | DPN6: 2015-2019 | DPO6: 2020-2024 | DPP6: 2025-2029 | DPQ6: 2015-2029 | DPR6: Av. Annual | DPS6: 2015-2019 | DPT6: 2020-2024 | DPU6: 2025-2029 | DPV6: 2015-2029 | DPW6: Av. Annual | DPX6: 2015-2019 | DPY6: 2020-2024 | DPZ6: 2025-2029 | DQA6: 2015-2029 | DQB6: Av. Annual | DQC6: 2015-2019 | DQD6: 2020-2024 | DQE6: 2025-2029 | DQF6: 2015-2029 | DQG6: Av. Annual | DQH6: 2015-2019 | DQI6: 2020-2024 | DQJ6: 2025-2029 | DQK6: 2015-2029 | DQL6: Av. Annual | DQM6: 2015-2019 | DQN6: 2020-2024 | DQO6: 2025-2029 | DQP6: 2015-2029 | DQQ6: Av. Annual | DQR6: 2015-2019 | DQS6: 2020-2024 | DQT6: 2025-2029 | DQU6: 2015-2029 | DQV6: Av. Annual | DQW6: 2015-2019 | DQX6: 2020-2024 | DQY6: 2025-2029 | DQZ6: 2015-2029 | DRA6: Av. Annual | DRB6: 2015-2019 | DRC6: 2020-2024 | DRD6: 2025-2029 | DRE6: 2015-2029 | DRF6: Av. Annual | DRG6: 2015-2019 | DRH6: 2020-2024 | DRI6: 2025-2029 | DRJ6: 2015-2029 | DRK6: Av. Annual | DRL6: 2015-2019 | DRM6: 2020-2024 | DRN6: 2025-2029 | DRO6: 2015-2029 | DRP6: Av. Annual | DRQ6: 2015-2019 | DRR6: 2020-2024 | DRS6: 2025-2029 | DRT6: 2015-2029 | DRU6: Av. Annual | DRV6: 2015-2019 | DRW6: 2020-2024 | DRX6: 2025-2029 | DRY6: 2015-2029 | DRZ6: Av. Annual | DSA6: 2015-2019 | DSB6: 2020-2024 | DSC6: 2025-2029 | DSD6: 2015-2029 | DSE6: Av. Annual | DSF6: 2015-2019 | DSG6: 2020-2024 | DSH6: 2025-2029 | DSI6: 2015-2029 | DSJ6: Av. Annual | DSK6: 2015-2019 | DSL6: 2020-2024 | DSM6: 2025-2029 | DSN6: 2015-2029 | DSO6: Av. Annual | DSP6: 2015-2019 | DSQ6: 2020-2024 | DSR6: 2025-2029 | DSS6: 2015-2029 | DST6: Av. Annual | DSU6: 2015-2019 | DSV6: 2020-2024 | DSW6: 2025-2029 | DSX6: 2015-2029 | DSY6: Av. Annual | DSZ6: 2015-2019 | DTA6: 2020-2024 | DTB6: 2025-2029 | DTC6: 2015-2029 | DTD6: Av. Annual | DTE6: 2015-2019 | DTF6: 2020-2024 | DTG6: 2025-2029 | DTH6: 2015-2029 | DTI6: Av. Annual | DTJ6: 2015-2019 | DTK6: 2020-2024 | DTL6: 2025-2029 | DTM6: 2015-2029 | DTN6: Av. Annual | DTO6: 2015-2019 | DTP6: 2020-2024 | DTQ6: 2025-2029 | DTR6: 2015-2029 | DTS6: Av. Annual | DTT6: 2015-2019 | DTU6: 2020-2024 | DTV6: 2025-2029 | DTW6: 2015-2029 | DTX6: Av. Annual | DTY6: 2015-2019 | DTZ6: 2020-2024 | DUA6: 2025-2029 | DUB6: 2015-2029 | DUC6: Av. Annual | DUD6: 2015-2019 | DUE6: 2020-2024 | DUF6: 2025-2029 | DUG6: 2015-2029 | DUH6: Av. Annual | DUI6: 2015-2019 | DUJ6: 2020-2024 | DUK6: 2025-2029 | DUL6: 2015-2029 | DUM6: Av. Annual | DUN6: 2015-2019 | DUO6: 2020-2024 | DUP6: 2025-2029 | DUQ6: 2015-2029 | DUR6: Av. Annual | DUS6: 2015-2019 | DUT6: 2020-2024 | DUU6: 2025-2029 | DUV6: 2015-2029 | DUW6: Av. Annual | DUX6: 2015-2019 | DUY6: 2020-2024 | DUZ6: 2025-2029 | DVA6: 2015-2029 | DVB6: Av. Annual | DVC6: 2015-2019 | DVD6: 2020-2024 | DVE6: 2025-2029 | DVF6: 2015-2029 | DVG6: Av. Annual | DVH6: 2015-2019 | DVI6: 2020-2024 | DVJ6: 2025-2029 | DVK6: 2015-2029 | DVL6: Av. Annual | DVM6: 2015-2019 | DVN6: 2020-2024 | DVO6: 2025-2029 | DVP6: 2015-2029 | DVQ6: Av. Annual | DVR6: 2015-2019 | DVS6: 2020-2024 | DVT6: 2025-2029 | DVU6: 2015-2029 | DVV6: Av. Annual | DVW6: 2015-2019 | DVX6: 2020-2024 | DVY6: 2025-2029 | DVZ6: 2015-2029 | DWA6: Av. Annual | DWB6: 2015-2019 | DWC6: 2020-2024 | DWD6: 2025-2029 | DWE6: 2015-2029 | DWF6: Av. Annual | DWG6: 2015-2019 | DWH6: 2020-2024 | DWI6: 2025-2029 | DWJ6: 2015-2029 | DWK6: Av. Annual | DWL6: 2015-2019 | DWM6: 2020-2024 | DWN6: 2025-2029 | DWO6: 2015-2029 | DWP6: Av. Annual | DWQ6: 2015-2019 | DWR6: 2020-2024 | DWS6: 2025-2029 | DWT6: 2015-2029 | DWU6: Av. Annual | DWV6: 2015-2019 | DWW6: 2020-2024 | DWX6: 2025-2029 | DWY6: 2015-2029 | DWZ6: Av. Annual | DXA6: 2015-2019 | DXB6: 2020-2024 | DXC6: 2025-2029 | DXD6: 2015-2029 | DXE6: Av. Annual | DXF6: 2015-2019 | DXG6: 2020-2024 | DXH6: 2025-2029 | DXI6: 2015-2029 | DXJ6: Av. Annual | DXK6: 2015-2019 | DXL6: 2020-2024 | DXM6: 2025-2029 | DXN6: 2015-2029 | DXO6: Av. Annual | DXP6: 2015-2019 | DXQ6: 2020-2024 | DXR6: 2025-2029 | DXS6: 2015-2029 | DXT6: Av. Annual | DXU6: 2015-2019 | DXV6: 2020-2024 | DXW6: 2025-2029 | DXX6: 2015-2029 | DXY6: Av. Annual | DXZ6: 2015-2019 | DYA6: 2020-2024 | DYB6: 2025-2029 | DYC6: 2015-2029 | DYD6: Av. Annual | DYE6: 2015-2019 | DYF6: 2020-2024 | DYG6: 2025-2029 | DYH6: 2015-2029 | DYI6: Av. Annual | DYJ6: 2015-2019 | DYK6: 2020-2024 | DYL6: 2025-2029 | DYM6: 2015-2029 | DYN6: Av. Annual | DYO6: 2015-2019 | DYP6: 2020-2024 | DYQ6: 2025-2029 | DYR6: 2015-2029 | DYS6: Av. Annual | DYT6: 2015-2019 | DYU6: 2020-2024 | DYV6: 2025-2029 | DYW6: 2015-2029 | DYX6: Av. Annual | DYY6: 2015-2019 | DYZ6: 2020-2024 | DZA6: 2025-2029 | DZB6: 2015-2029 | DZC6: Av. Annual | DZD6: 2015-2019 | DZE6: 2020-2024 | DZF6: 2025-2029 | DZG6: 2015-2029 | DZH6: Av. Annual | DZI6: 2015-2019 | DZJ6: 2020-2024 | DZK6: 2025-2029 | DZL6: 2015-2029 | DZM6: Av. Annual | DZN6: 2015-2019 | DZO6: 2020-2024 | DZP6: 2025-2029 | DZQ6: 2015-2029 | DZR6: Av. Annual | DZS6: 2015-2019 | DZT6: 2020-2024 | DZU6: 2025-2029 | DZV6: 2015-2029 | DZW6: Av. Annual | DZX6: 2015-2019 | DZY6: 2020-2024 | DZZ6: 2025-2029 | EAA6: 2015-2029 | EAB6: Av. Annual | EAC6: 2015-2019 | EAD6: 2020-2024 | EAE6: 2025-2029 | EAF6: 2015-2029 | EAG6: Av. Annual | EAH6: 2015-2019 | EAI6: 2020-2024 | EAJ6: 2025-2029 | EAK6: 2015-2029 | EAL6: Av. Annual | EAM6: 2015-2019 | EAN6: 2020-2024 | EAO6: 2025-2029 | EAP6: 2015-2029 | EAQ6: Av. Annual | EAR6: 2015-2019 | EAS6: 2020-2024 | EAT6: 2025-2029 | EAU6: 2015-2029 | EAV6: Av. Annual | EAW6: 2015-2019 | EAX6: 2020-2024 | EAY6: 2025-2029 | EAZ6: 2015-2029 | EBA6: Av. Annual | EBB6: 2015-2019 | EBC6: 2020-2024 | EBD6: 2025-2029 | EBE6: 2015-2029 | EBF6: Av. Annual | EBG6: 2015-2019 | EBH6: 2020-2024 | EBI6: 2025-2029 | EBJ6: 2015-2029 | EBK6: Av. Annual | EBL6: 2015-2019 | EBM6: 2020-2024 | EBN6: 2025-2029 | EBO6: 2015-2029 | EBP6: Av. Annual | EBQ6: 2015-2019 | EBR6: 2020-2024 | EBS6: 2025-2029 | EBT6: 2015-2029 | EBU6: Av. Annual | EBV6: 2015-2019 | EBW6: 2020-2024 | EBX6: 2025-2029 | EBY6: 2015-2029 | EBZ6: Av. Annual | ECA6: 2015-2019 | ECB6: 2020-2024 | ECC6: 2025-2029 | ECD6: 2015-2029 | ECE6: Av. Annual | ECF6: 2015-2019 | ECG6: 2020-2024 | ECH6: 2025-2029 | ECI6: 2015-2029 | ECJ6: Av. Annual | ECK6: 2015-2019 | ECL6: 2020-2024 | ECM6: 2025-2029 | ECN6: 2015-2029 | ECO6: Av. Annual | ECP6: 2015-2019 | ECQ6: 2020-2024 | ECR6: 2025-2029 | ECS6: 2015-2029 | ECT6: Av. Annual | ECU6: 2015-2019 | ECV6: 2020-2024 | ECW6: 2025-2029 | ECX6: 2015-2029 | ECY6: Av. Annual | ECZ6: 2015-2019 | EDA6: 2020-2024 | EDB6: 2025-2029 | EDC6: 2015-2029 | EDD6: Av. Annual | EDE6: 2015-2019 | EDF6: 2020-2024 | EDG6: 2025-2029 | EDH6: 2015-2029 | EDI6: Av. Annual | EDJ6: 2015-2019 | EDK6: 2020-2024 | EDL6: 2025-2029 | EDM6: 2015-2029 | EDN6: Av. Annual | EDO6: 2015-2019 | EDP6: 2020-2024 | EDQ6: 2025-2029 | EDR6: 2015-2029 | EDS6: Av. Annual | EDT6: 2015-2019 | EDU6: 2020-2024 | EDV6: 2025-2029 | EDW6: 2015-2029 | EDX6: Av. Annual | EDY6: 2015-2019 | EDZ6: 2020-2024 | EEA6: 2025-2029 | EEB6: 2015-2029 | EEC6: Av. Annual | EED6: 2015-2019 | EEE6: 2020-2024 | EEF6: 2025-2029 | EEG6: 2015-2029 | EEH6: Av. Annual | EEI6: 2015-2019 | EEJ6: 2020-2024 | EEK6: 2025-2029 | EEL6: 2015-2029 | EEM6: Av. Annual | EEN6: 2015-2019 | EEO6: 2020-2024 | EEP6: 2025-2029 | EEQ6: 2015-2029 | EER6: Av. Annual | EES6: 2015-2019 | EET6: 2020-2024 | EEU6: 2025-2029 | EEV6: 2015-2029 | EEW6: Av. Annual | EEX6: 2015-2019 | EEY6: 2020-2024 | EEZ6: 2025-2029 | EFA6: 2015-2029 | EFB6: Av. Annual | EFC6: 2015-2019 | EFD6: 2020-2024 | EFE6: 2025-2029 | EFF6: 2015-2029 | EFG6: Av. Annual | EFH6: 2015-2019 | EFI6: 2020-2024 | EFJ6: 2025-2029 | EFK6: 2015-2029 | EFL6: Av. Annual | EFM6: 2015-2019 | EFN6: 2020-2024 | EFO6: 2025-2029 | EFP6: 2015-2029 | EFQ6: Av. Annual | EFR6: 2015-2019 | EFS6: 2020-2024 | EFT6: 2025-2029 | EFU6: 2015-2029 | EFV6: Av. Annual | EFW6: 2015-2019 | EFX6: 2020-2024 | EFY6: 2025-2029 | EFZ6: 2015-2029 | EGA6: Av. Annual | EGB6: 2015-2019 | EGC6: 2020-2024 | EGD6: 2025-2029 | EGE6: 2015-2029 | EGF6: Av. Annual | EGG6: 2015-2019 | EGH6: 2020-2024 | EGI6: 2025-2029 | EGJ6: 2015-2029 | EGK6: Av. Annual | EGL6: 2015-2019 | EGM6: 2020-2024 | EGN6: 2025-2029 | EGO6: 2015-2029 | EGP6: Av. Annual | EGQ6: 2015-2019 | EGR6: 2020-2024 | EGS6: 2025-2029 | EGT6: 2015-2029 | EGU6: Av. Annual | EGV6: 2015-2019 | EGW6: 2020-2024 | EGX6: 2025-2029 | EGY6: 2015-2029 | EGZ6: Av. Annual | EHA6: 2015-2019 | EHB6: 2020-2024 | EHC6: 2025-2029 | EHD6: 2015-2029 | EHE6: Av. Annual | EHF6: 2015-2019 | EHG6: 2020-2024 | EHH6: 2025-2029 | EHI6: 2015-2029 | EHJ6: Av. Annual | EHK6: 2015-2019 | EHL6: 2020-2024 | EHM6: 2025-2029 | EHN6: 2015-2029 | EHO6: Av. Annual | EHP6: 2015-2019 | EHQ6: 2020-2024 | EHR6: 2025-2029 | EHS6: 2015-2029 | EHT6: Av. Annual | EHU6: 2015-2019 | EHV6: 2020-2024 | EHW6: 2025-2029 | EHX6: 2015-2029 | EHY6: Av. Annual | EHZ6: 2015-2019 | EIA6: 2020-2024 | EIB6: 2025-2029 | EIC6: 2015-2029 | EID6: Av. Annual | EIE6: 2015-2019 | EIF6: 2020-2024 | EIG6: 2025-2029 | EIH6: 2015-2029 | EII6: Av. Annual | EIJ6: 2015-2019 | EIK6: 2020-2024 | EIL6: 2025-2029 | EIM6: 2015-2029 | EIN6: Av. Annual | EIO6: 2015-2019 | EIP6: 2020-2024 | EIQ6: 2025-2029 | EIR6: 2015-2029 | EIS6: Av. Annual | EIT6: 2015-2019 | EIU6: 2020-2024 | EIV6: 2025-2029 | EIW6: 2015-2029 | EIX6: Av. Annual | EIY6: 2015-2019 | EIZ6: 2020-2024 | EJA6: 2025-2029 | EJB6: 2015-2029 | EJC6: Av. Annual | EJD6: 2015-2019 | EJE6: 2020-2024 | EJF6: 2025-2029 | EJG6: 2015-2029 | EJH6: Av. Annual | EJI6: 2015-2019 | EJJ6: 2020-2024 | EJK6: 2025-2029 | EJL6: 2015-2029 | EJM6: Av. Annual | EJN6: 2015-2019 | EJO6: 2020-2024 | EJP6: 2025-2029 | EJQ6: 2015-2029 | EJR6: Av. Annual | EJS6: 2015-2019 | EJT6: 2020-2024 | EJU6: 2025-2029 | EJV6: 2015-2029 | EJW6: Av. Annual | EJX6: 2015-2019 | EJY6: 2020-2024 | EJZ6: 2025-2029 | EKA6: 2015-2029 | EKB6: Av. Annual | EKC6: 2015-2019 | EKD6: 2020-2024 | EKE6: 2025-2029 | EKF6: 2015-2029 | EKG6: Av. Annual | EKH6: 2015-2019 | EKI6: 2020-2024 | EKJ6: 2025-2029 | EKK6: 2015-2029 | EKL6: Av. Annual | EKM6: 2015-2019 | EKN6: 2020-2024 | EKO6: 2025-2029 | EKP6: 2015-2029 | EKQ6: Av. Annual | EKR6: 2015-2019 | EKS6: 2020-2024 | EKT6: 2025-2029 | EKU6: 2015-2029 | EKV6: Av. Annual | EKW6: 2015-2019 | EKX6: 2020-2024 | EKY6: 2025-2029 | EKZ6: 2015-2029 | ELA6: Av. Annual | ELB6: 2015-2019 | ELC6: 2020-2024 | ELD6: 2025-2029 | ELE6: 2015-2029 | ELF6: Av. Annual | ELG6: 2015-2019 | ELH6: 2020-2024 | ELI6: 2025-2029 | ELJ6: 2015-2029 | ELK6: Av. Annual | ELL6: 2015-2019 | ELM6: 2020-2024 | ELN6: 2025-2029 | ELO6: 2015-2029 | ELP6: Av. Annual | ELQ6: 2015-2019 | ELR6: 2020-2024 | ELS6: 2025-2029 | ELT6: 2015-2029 | ELU6: Av. Annual | ELV6: 2015-2019 | ELW6: 2020-2024 | ELX6: 2025-2029 | ELY6: 2015-2029 | ELZ6: Av. Annual | EMA6: 2015-2019 | EMB6: 2020-2024 | EMC6: 2025-2029 | EMD6: 2015-2029 | EME6: Av. Annual | EMF6: 2015-2019 | EMG6: 2020-2024 | EMH6: 2025-2029 | EMI6: 2015-2029 | EMJ6: Av. Annual | EMK6: 2015-2019 | EML6: 2020-2024 | EMM6: 2025-2029 | EMN6: 2015-2029 | EMO6: Av. Annual | EMP6: 2015-2019 | EMQ6: 2020-2024 | EMR6: 2025-2029 | EMS6: 2015-2029 | EMT6: Av. Annual | EMU6: 2015-2019 | EMV6: 2020-2024 | EMW6: 2025-2029 | EMX6: 2015-2029 | EMY6: Av. Annual | EMZ6: 2015-2019 | ENA6: 2020-2024 | ENB6: 2025-2029 | ENC6: 2015-2029 | END6: Av. Annual | ENE6: 2015-2019 | ENF6: 2020-2024 | ENG6: 2025-2029 | ENH6: 2015-2029 | ENI6: Av. Annual | ENJ6: 2015-2019 | ENK6: 2020-2024 | ENL6: 2025-2029 | ENM6: 2015-2029 | ENN6: Av. Annual | ENO6: 2015-2019 | ENP6: 2020-2024 | ENQ6: 2025-2029 | ENR6: 2015-2029 | ENS6: Av. Annual | ENT6: 2015-2019 | ENU6: 2020-2024 | ENV6: 2025-2029 | ENW6: 2015-2029 | ENX6: Av. Annual | ENY6: 2015-2019 | ENZ6: 2020-2024 | EOA6: 2025-2029 | EOB6: 2015-2029 | EOC6: Av. Annual | EOD6: 2015-2019 | EOE6: 2020-2024 | EOF6: 2025-2029 | EOG6: 2015-2029 | EOH6: Av. Annual | EOI6: 2015-2019 | EOJ6: 2020-2024 | EOK6: 2025-2029 | EOL6: 2015-2029 | EOM6: Av. Annual | EON6: 2015-2019 | EOO6: 2020-2024 | EOP6: 2025-2029 | EOQ6: 2015-2029 | EOR6: Av. Annual | EOS6: 2015-2019 | EOT6: 2020-2024 | EOU6: 2025-2029 | EOV6: 2015-2029 | EOW6: Av. Annual | EOX6: 2015-2019 | EOY6: 2020-2024 | EOZ6: 2025-2029 | EPA6: 2015-2029 | EPB6: Av. Annual | EPC6: 2015-2019 | EPD6: 2020-2024 | EPE6: 2025-2029 | EPF6: 2015-2029 | EPG6: Av. Annual | EPH6: 2015-2019 | EPI6: 2020-2024 | EPJ6: 2025-2029 | EPK6: 2015-2029 | EPL6: Av. Annual | EPM6: 2015-2019 | EPN6: 2020-2024 | EPO6: 2025-2029 | EPP6: 2015-2029 | EPQ6: Av. Annual | EPR6: 2015-2019 | EPS6: 2020-2024 | EPT6: 2025-2029 | EPU6: 2015-2029 | EPV6: Av. Annual | EPW6: 2015-2019 | EPX6: 2020-2024 | EPY6: 2025-2029 | EPZ6: 2015-2029 | EQA6: Av. Annual | EQB6: 2015-2019 | EQC6: 2020-2024 | EQD6: 2025-2029 | EQE6: 2015-2029 | EQF6: Av. Annual | EQG6: 2015-2019 | EQH6: 2020-2024 | EQI6: 2025-2029 | EQJ6: 2015-2029 | EQK6: Av. Annual | EQL6: 2015-2019 | EQM6: 2020-2024 | EQN6: 2025-2029 | EQO6: 2015-2029 | EQP6: Av. Annual | EQQ6: 2015-2019 | EQR6: 2020-2024 | EQS6: 2025-2029 | EQT6: 2015-2029 | EQU6: Av. Annual | EQV6: 2015-2019 | EQW6: 2020-2024 | EQX6: 2025-2029 | EQY6: 2015-2029 | EQZ6: Av. Annual | ERA6: 2015-2019 | ERB6: 2020-2024 | ERC6: 2025-2029 | ERD6: 2015-2029 | ERE6: Av. Annual | ERF6: 2015-2019 | ERG6: 2020-2024 | ERH6: 2025-2029 | ERI6: 2015-2029 | ERJ6: Av. Annual | ERK6: 2015-2019 | ERL6: 2020-2024 | ERM6: 2025-2029 | ERN6: 2015-2029 | ERO6: Av. Annual | ERP6: 2015-2019 | ERQ6: 2020-2024 | ERR6: 2025-2029 | ERS6: 2015-2029 | ERT6: Av. Annual | ERU6: 2015-2019 | ERV6: 2020-2024 | ERW6: 2025-2029 | ERX6: 2015-2029 | ERY6: Av. Annual | ERZ6: 2015-2019 | ESA6: 2020-2024 | ESB6: 2025-2029 | ESC6: 2015-2029 | ESD6: Av. Annual | ESE6: 2015-2019 | ESF6: 2020-2024 | ESG6: 2025-2029 | ESH6: 2015-2029 | ESI6: Av. Annual | ESJ6: 2015-2019 | ESK6: 2020-2024 | ESL6: 2025-2029 | ESM6: 2015-2029 | ESN6: Av. Annual | ESO6: 2015-2019 | ESP6: 2020-2024 | ESQ6: 2025-2029 | ESR6: 2015-2029 | ESS6: Av. Annual | EST6: 2015-2019 | ESU6: 2020-2024 | ESV6: 2025-2029 | ESW6: 2015-2029 | ESX6: Av. Annual | ESY6: 2015-2019 | ESZ6: 2020-2024 | ETA6: 2025-2029 | ETB6: 2015-2029 | ETC6: Av. Annual | ETD6: 2015-2019 | ETE6: 2020-2024 | ETF6: 2025-2029 | ETG6: 2015-2029 | ETH6: Av. Annual | ETI6: 2015-2019 | ETJ6: 2020-2024 | ETK6: 2025-2029 | ETL6: 2015-2029 | ETM6: Av. Annual | ETN6: 2015-2019 | ETO6: 2020-2024 | ETP6: 2025-2029 | ETQ6: 2015-2029 | ETR6: Av. Annual | ETS6: 2015-2019 | ETT6: 2020-2024 | ETU6: 2025-2029 | ETV6: 2015-2029 | ETW6: Av. Annual | ETX6: 2015-2019 | ETY6: 2020-2024 | ETZ6: 2025-2029 | EUA6: 2015-2029 | EUB6: Av. Annual | EUC6: 2015-2019 | EUD6: 2020-2024 | EUE6: 2025-2029 | EUF6: 2015-2029 | EUG6: Av. Annual | EUH6: 2015-2019 | EUI6: 2020-2024 | EUJ6: 2025-2029 | EUK6: 2015-2029 | EUL6: Av. Annual | EUM6: 2015-2019 | EUN6: 2020-2024 | EUO6: 2025-2029 | EUP6: 2015-2029 | EUQ6: Av. Annual | EUR6: 2015-2019 | EUS6: 2020-2024 | EUT6: 2025-2029 | EUU6: 2015-2029 | EUV6: Av. Annual | EUW6: 2015-2019 | EUX6: 2020-2024 | EUY6: 2025-2029 | EUZ6: 2015-2029 | EVA6: Av. Annual | EVB6: 2015-2019 | EVC6: 2020-2024 | EVD6: 2025-2029 | EVE6: 2015-2029 | EVF6: Av. Annual | EVG6: 2015-2019 | EVH6: 2020-2024 | EVI6: 2025-2029 | EVJ6: 2015-2029 | EVK6: Av. Annual | EVL6: 2015-2019 | EVM6: 2020-2024 | EVN6: 2025-2029 | EVO6: 2015-2029 | EVP6: Av. Annual | EVQ6: 2015-2019 | EVR6: 2020-2024 | EVS6: 2025-2029 | EVT6: 2015-2029 | EVU6: Av. Annual | EVV6: 2015-2019 | EVW6: 2020-2024 | EVX6: 2025-2029 | EVY6: 2015-2029 | EVZ6: Av. Annual | EWA6: 2015-2019 | EWB6: 2020-2024 | EWC6: 2025-2029 | EWD6: 2015-2029 | EWE6: Av. Annual | EWF6: 2015-2019 | EWG6: 2020-2024 | EWH6: 2025-2029 | EWI6: 2015-2029 | EWJ6: Av. Annual | EWK6: 2015-2019 | EWL6: 2020-2024 | EWM6: 2025-2029 | EWN6: 2015-2029 | EWO6: Av. Annual | EWP6: 2015-2019 | EWQ6: 2020-2024 | EWR6: 2025-2029 | EWS6: 2015-2029 | EWT6: Av. Annual | EWU6: 2015-2019 | EWV6: 2020-2024 | EWW6: 2025-2029 | EWX6: 2015-2029 | EWY6: Av. Annual | EWZ6: 2015-2019 | EXA6: 2020-2024 | EXB6: 2025-2029 | EXC6: 2015-2029 | EXD6: Av. Annual | EXE6: 2015-2019 | EXF6: 2020-2024 | EXG6: 2025-2029 | EXH6: 2015-2029 | EXI6: Av. Annual | EXJ6: 2015-2019 | EXK6: 2020-2024 | EXL6: 2025-2029 | EXM6: 2015-2029 | EXN6: Av. Annual | EXO6: 2015-2019 | EXP6: 2020-2024 | EXQ6: 2025-2029 | EXR6: 2015-2029 | EXS6: Av. Annual | EXT6: 2015-2019 | EXU6: 2020-2024 | EXV6: 2025-2029 | EXW6: 2015-2029 | EXX6: Av. Annual | EXY6: 2015-2019 | EXZ6: 2020-2024 | EYA6: 2025-2029 | EYB6: 2015-2029 | EYC6: Av. Annual | EYD6: 2015-2019 | EYE6: 2020-2024 | EYF6: 2025-2029 | EYG6: 2015-2029 | EYH6: Av. Annual | EYI6: 2015-2019 | EYJ6: 2020-2024 | EYK6: 2025-2029 | EYL6: 2015-2029 | EYM6: Av. Annual | EYN6: 2015-2019 | EYO6: 2020-2024 | EYP6: 2025-2029 | EYQ6: 2015-2029 | EYR6: Av. Annual | EYS6: 2015-2019 | EYT6: 2020-2024 | EYU6: 2025-2029 | EYV6: 2015-2029 | EYW6: Av. Annual | EYX6: 2015-2019 | EYY6: 2020-2024 | EYZ6: 2025-2029 | EZA6: 2015-2029 | EZB6: Av. Annual | EZC6: 2015-2019 | EZD6: 2020-2024 | EZE6: 2025-2029 | EZF6: 2015-2029 | EZG6: Av. Annual | EZH6: 2015-2019 | EZI6: 2020-2024 | EZJ6: 2025-2029 | EZK6: 2015-2029 | EZL6: Av. Annual | EZM6: 2015-2019 | EZN6: 2020-2024 | EZO6: 2025-2029 | EZP6: 2015-2029 | EZQ6: Av. Annual | EZR6: 2015-2019 | EZS6: 2020-2024 | EZT6: 2025-2029 | EZU6: 2015-2029 | EZV6: Av. Annual | EZW6: 2015 | EZX6: 2016 | EZY6: 2017 | EZZ6: 2018 | FAA6: 2019 | FAB6: 2020 | FAC6: 2021 | FAD6: 2022 | FAE6: 2023 | FAF6: 2024 | FAG6: 2025 | FAH6: 2026 | FAI6: 2027 | FAJ6: 2028 | FAK6: 2029 | FAL6: 2015-2019 | FAM6: 2020-2024 | FAN6: 2025-2029 | FAO6: 2015-2029 | FAP6: 2015 | FAQ6: 2016 | FAR6: 2017 | FAS6: 2018 | FAT6: 2019 | FAU6: 2020 | FAV6: 2021 | FAW6: 2022 | FAX6: 2023 | FAY6: 2024 | FAZ6: 2025 | FBA6: 2026 | FBB6: 2027 | FBC6: 2028 | FBD6: 2029 | FBE6: 2015-2019 | FBF6: 2020-2024 | FBG6: 2025-2029 | FBH6: 2015-2029 | FBI6: 2015 | FBJ6: 2016 | FBK6: 2017 | FBL6: 2018 | FBM6: 2019 | FBN6: 2020 | FBO6: 2021 | FBP6: 2022 | FBQ6: 2023 | FBR6: 2024 | FBS6: 2025 | FBT6: 2026 | FBU6: 2027 | FBV6: 2028 | FBW6: 2029 | FBX6: 2015-2019 | FBY6: 2020-2024 | FBZ6: 2025-2029 | FCA6: 2015-2029 | FCB6: 2015 | FCC6: 2016 | FCD6: 2017 | FCE6: 2018 | FCF6: 2019 | FCG6: 2020 | FCH6: 2021 | FCI6: 2022 | FCJ6: 2023 | FCK6: 2024 | FCL6: 2025 | FCM6: 2026 | FCN6: 2027 | FCO6: 2028 | FCP6: 2029 | FCQ6: 2015-2019 | FCR6: 2020-2024 | FCS6: 2025-2029 | FCT6: 2015-2029 | FCU6: 2015 | FCV6: 2016 | FCW6: 2017 | FCX6: 2018 | FCY6: 2019 | FCZ6: 2020 | FDA6: 2021 | FDB6: 2022 | FDC6: 2023 | FDD6: 2024 | FDE6: 2025 | FDF6: 2026 | FDG6: 2027 | FDH6: 2028 | FDI6: 2029 | FDJ6: 2015-2019 | FDK6: 2020-2024 | FDL6: 2025-2029 | FDM6: 2015-2029 | FDN6: 2015 | FDO6: 2016 | FDP6: 2017 | FDQ6: 2018 | FDR6: 2019 | FDS6: 2020 | FDT6: 2021 | FDU6: 2022 | FDV6: 2023 | FDW6: 2024 | FDX6: 2025 | FDY6: 2026 | FDZ6: 2027 | FEA6: 2028 | FEB6: 2029 | FEC6: 2015-2019 | FED6: 2020-2024 | FEE6: 2025-2029 | FEF6: 2015-2029 | FEG6: 2015 | FEH6: 2016 | FEI6: 2017 | FEJ6: 2018 | FEK6: 2019 | FEL6: 2020 | FEM6: 2021 | FEN6: 2022 | FEO6: 2023 | FEP6: 2024 | FEQ6: 2025 | FER6: 2026 | FES6: 2027 | FET6: 2028 | FEU6: 2029 | FEV6: 2015-2019 | FEW6: 2020-2024 | FEX6: 2025-2029 | FEY6: 2015-2029 | FEZ6: 2015 | FFA6: 2016 | FFB6: 2017 | FFC6: 2018 | FFD6: 2019 | FFE6: 2020 | FFF6: 2021 | FFG6: 2022 | FFH6: 2023 | FFI6: 2024 | FFJ6: 2025 | FFK6: 2026 | FFL6: 2027 | FFM6: 2028 | FFN6: 2029 | FFO6: 2015-2019 | FFP6: 2020-2024 | FFQ6: 2025-2029 | FFR6: 2015-2029 | FFS6: 2015 | FFT6: 2016 | FFU6: 2017 | FFV6: 2018 | FFW6: 2019 | FFX6: 2020 | FFY6: 2021 | FFZ6: 2022 | FGA6: 2023 | FGB6: 2024 | FGC6: 2025 | FGD6: 2026 | FGE6: 2027 | FGF6: 2028 | FGG6: 2029 | FGH6: 2015-2019 | FGI6: 2020-2024 | FGJ6: 2025-2029 | FGK6: 2015-2029 | FGL6: 2015 | FGM6: 2016 | FGN6: 2017 | FGO6: 2018 | FGP6: 2019 | FGQ6: 2020 | FGR6: 2021 | FGS6: 2022 | FGT6: 2023 | FGU6: 2024 | FGV6: 2025 | FGW6: 2026 | FGX6: 2027 | FGY6: 2028 | FGZ6: 2029 | FHA6: 2015-2019 | FHB6: 2020-2024 | FHC6: 2025-2029 | FHD6: 2015-2029 | FHE6: 2015 | FHF6: 2016 | FHG6: 2017 | FHH6: 2018 | FHI6: 2019 | FHJ6: 2020 | FHK6: 2021 | FHL6: 2022 | FHM6: 2023 | FHN6: 2024 | FHO6: 2025 | FHP6: 2026 | FHQ6: 2027 | FHR6: 2028 | FHS6: 2029 | FHT6: 2015-2019 | FHU6: 2020-2024 | FHV6: 2025-2029 | FHW6: 2015-2029 | FHX6: 2015 | FHY6: 2016 | FHZ6: 2017 | FIA6: 2018 | FIB6: 2019 | FIC6: 2020 | FID6: 2021 | FIE6: 2022 | FIF6: 2023 | FIG6: 2024 | FIH6: 2025 | FII6: 2026 | FIJ6: 2027 | FIK6: 2028 | FIL6: 2029 | FIM6: 2015-2019 | FIN6: 2020-2024 | FIO6: 2025-2029 | FIP6: 2015-2029 | FIQ6: 2015 | FIR6: 2016 | FIS6: 2017 | FIT6: 2018 | FIU6: 2019 | FIV6: 2020 | FIW6: 2021 | FIX6: 2022 | FIY6: 2023 | FIZ6: 2024 | FJA6: 2025 | FJB6: 2026 | FJC6: 2027 | FJD6: 2028 | FJE6: 2029 | FJF6: 2015-2019 | FJG6: 2020-2024 | FJH6: 2025-2029 | FJI6: 2015-2029 | FJJ6: 2015 | FJK6: 2016 | FJL6: 2017 | FJM6: 2018 | FJN6: 2019 | FJO6: 2020 | FJP6: 2021 | FJQ6: 2022 | FJR6: 2023 | FJS6: 2024 | FJT6: 2025 | FJU6: 2026 | FJV6: 2027 | FJW6: 2028 | FJX6: 2029 | FJY6: 2015-2019 | FJZ6: 2020-2024 | FKA6: 2025-2029 | FKB6: 2015-2029 | FKC6: 2015 | FKD6: 2016 | FKE6: 2017 | FKF6: 2018 | FKG6: 2019 | FKH6: 2020 | FKI6: 2021 | FKJ6: 2022 | FKK6: 2023 | FKL6: 2024 | FKM6: 2025 | FKN6: 2026 | FKO6: 2027 | FKP6: 2028 | FKQ6: 2029 | FKR6: 2015-2019 | FKS6: 2020-2024 | FKT6: 2025-2029 | FKU6: 2015-2029 | FKV6: 2015 | FKW6: 2016 | FKX6: 2017 | FKY6: 2018 | FKZ6: 2019 | FLA6: 2020 | FLB6: 2021 | FLC6: 2022 | FLD6: 2023 | FLE6: 2024 | FLF6: 2025 | FLG6: 2026 | FLH6: 2027 | FLI6: 2028 | FLJ6: 2029 | FLK6: 2015-2019 | FLL6: 2020-2024 | FLM6: 2025-2029 | FLN6: 2015-2029 | FLO6: 2015 | FLP6: 2016 | FLQ6: 2017 | FLR6: 2018 | FLS6: 2019 | FLT6: 2020 | FLU6: 2021 | FLV6: 2022 | FLW6: 2023 | FLX6: 2024 | FLY6: 2025 | FLZ6: 2026 | FMA6: 2027 | FMB6: 2028 | FMC6: 2029 | FMD6: 2015-2019 | FME6: 2020-2024 | FMF6: 2025-2029 | FMG6: 2015-2029 | FMH6: 2015 | FMI6: 2016 | FMJ6: 2017 | FMK6: 2018 | FML6: 2019 | FMM6: 2020 | FMN6: 2021 | FMO6: 2022 | FMP6: 2023 | FMQ6: 2024 | FMR6: 2025 | FMS6: 2026 | FMT6: 2027 | FMU6: 2028 | FMV6: 2029 | FMW6: 2015-2019 | FMX6: 2020-2024 | FMY6: 2025-2029 | FMZ6: 2015-2029 | FNA6: 2015 | FNB6: 2016 | FNC6: 2017 | FND6: 2018 | FNE6: 2019 | FNF6: 2020 | FNG6: 2021 | FNH6: 2022 | FNI6: 2023 | FNJ6: 2024 | FNK6: 2025 | FNL6: 2026 | FNM6: 2027 | FNN6: 2028 | FNO6: 2029 | FNP6: 2015-2019 | FNQ6: 2020-2024 | FNR6: 2025-2029 | FNS6: 2015-2029 | FNT6: 2015 | FNU6: 2016 | FNV6: 2017 | FNW6: 2018 | FNX6: 2019 | FNY6: 2020 | FNZ6: 2021 | FOA6: 2022 | FOB6: 2023 | FOC6: 2024 | FOD6: 2025 | FOE6: 2026 | FOF6: 2027 | FOG6: 2028 | FOH6: 2029 | FOI6: 2015-2019 | FOJ6: 2020-2024 | FOK6: 2025-2029 | FOL6: 2015-2029 | FOM6: 2015 | FON6: 2016 | FOO6: 2017 | FOP6: 2018 | FOQ6: 2019 | FOR6: 2020 | FOS6: 2021 | FOT6: 2022 | FOU6: 2023 | FOV6: 2024 | FOW6: 2025 | FOX6: 2026 | FOY6: 2027 | FOZ6: 2028 | FPA6: 2029 | FPB6: 2015-2019 | FPC6: 2020-2024 | FPD6: 2025-2029 | FPE6: 2015-2029 | FPF6: 2015 | FPG6: 2016 | FPH6: 2017 | FPI6: 2018 | FPJ6: 2019 | FPK6: 2020 | FPL6: 2021 | FPM6: 2022 | FPN6: 2023 | FPO6: 2024 | FPP6: 2025 | FPQ6: 2026 | FPR6: 2027 | FPS6: 2028 | FPT6: 2029 | FPU6: 2015-2019 | FPV6: 2020-2024 | FPW6: 2025-2029 | FPX6: 2015-2029 | FPY6: 2015 | FPZ6: 2016 | FQA6: 2017 | FQB6: 2018 | FQC6: 2019 | FQD6: 2020 | FQE6: 2021 | FQF6: 2022 | FQG6: 2023 | FQH6: 2024 | FQI6: 2025 | FQJ6: 2026 | FQK6: 2027 | FQL6: 2028 | FQM6: 2029 | FQN6: 2015-2019 | FQO6: 2020-2024 | FQP6: 2025-2029 | FQQ6: 2015-2029 | FQR6: 2015 | FQS6: 2016 | FQT6: 2017 | FQU6: 2018 | FQV6: 2019 | FQW6: 2020 | FQX6: 2021 | FQY6: 2022 | FQZ6: 2023 | FRA6: 2024 | FRB6: 2025 | FRC6: 2026 | FRD6: 2027 | FRE6: 2028 | FRF6: 2029 | FRG6: 2015-2019 | FRH6: 2020-2024 | FRI6: 2025-2029 | FRJ6: 2015-2029 | FRK6: 2015 | FRL6: 2016 | FRM6: 2017 | FRN6: 2018 | FRO6: 2019 | FRP6: 2020 | FRQ6: 2021 | FRR6: 2022 | FRS6: 2023 | FRT6: 2024 | FRU6: 2025 | FRV6: 2026 | FRW6: 2027 | FRX6: 2028 | FRY6: 2029 | FRZ6: 2015-2019 | FSA6: 2020-2024 | FSB6: 2025-2029 | FSC6: 2015-2029 | FSD6: 2015 | FSE6: 2016 | FSF6: 2017 | FSG6: 2018 | FSH6: 2019 | FSI6: 2020 | FSJ6: 2021 | FSK6: 2022 | FSL6: 2023 | FSM6: 2024 | FSN6: 2025 | FSO6: 2026 | FSP6: 2027 | FSQ6: 2028 | FSR6: 2029 | FSS6: 2015-2019 | FST6: 2020-2024 | FSU6: 2025-2029 | FSV6: 2015-2029 | FSW6: 2015 | FSX6: 2016 | FSY6: 2017 | FSZ6: 2018 | FTA6: 2019 | FTB6: 2020 | FTC6: 2021 | FTD6: 2022 | FTE6: 2023 | FTF6: 2024 | FTG6: 2025 | FTH6: 2026 | FTI6: 2027 | FTJ6: 2028 | FTK6: 2029 | FTL6: 2015-2019 | FTM6: 2020-2024 | FTN6: 2025-2029 | FTO6: 2015-2029 | FTP6: 2015 | FTQ6: 2016 | FTR6: 2017 | FTS6: 2018 | FTT6: 2019 | FTU6: 2020 | FTV6: 2021 | FTW6: 2022 | FTX6: 2023 | FTY6: 2024 | FTZ6: 2025 | FUA6: 2026 | FUB6: 2027 | FUC6: 2028 | FUD6: 2029 | FUE6: 2015-2019 | FUF6: 2020-2024 | FUG6: 2025-2029 | FUH6: 2015-2029 | FUI6: 2015 | FUJ6: 2016 | FUK6: 2017 | FUL6: 2018 | FUM6: 2019 | FUN6: 2020 | FUO6: 2021 | FUP6: 2022 | FUQ6: 2023 | FUR6: 2024 | FUS6: 2025 | FUT6: 2026 | FUU6: 2027 | FUV6: 2028 | FUW6: 2029 | FUX6: 2015-2019 | FUY6: 2020-2024 | FUZ6: 2025-2029 | FVA6: 2015-2029 | FVB6: 2015 | FVC6: 2016 | FVD6: 2017 | FVE6: 2018 | FVF6: 2019 | FVG6: 2020 | FVH6: 2021 | FVI6: 2022 | FVJ6: 2023 | FVK6: 2024 | FVL6: 2025 | FVM6: 2026 | FVN6: 2027 | FVO6: 2028 | FVP6: 2029 | FVQ6: 2015-2019 | FVR6: 2020-2024 | FVS6: 2025-2029 | FVT6: 2015-2029 | FVU6: 2015 | FVV6: 2016 | FVW6: 2017 | FVX6: 2018 | FVY6: 2019 | FVZ6: 2020 | FWA6: 2021 | FWB6: 2022 | FWC6: 2023 | FWD6: 2024 | FWE6: 2025 | FWF6: 2026 | FWG6: 2027 | FWH6: 2028 | FWI6: 2029 | FWJ6: 2015-2019 | FWK6: 2020-2024 | FWL6: 2025-2029 | FWM6: 2015-2029 | FWN6: 2015 | FWO6: 2016 | FWP6: 2017 | FWQ6: 2018 | FWR6: 2019 | FWS6: 2020 | FWT6: 2021 | FWU6: 2022 | FWV6: 2023 | FWW6: 2024 | FWX6: 2025 | FWY6: 2026 | FWZ6: 2027 | FXA6: 2028 | FXB6: 2029 | FXC6: 2015-2019 | FXD6: 2020-2024 | FXE6: 2025-2029 | FXF6: 2015-2029 | FXG6: 2015 | FXH6: 2016 | FXI6: 2017 | FXJ6: 2018 | FXK6: 2019 | FXL6: 2020 | FXM6: 2021 | FXN6: 2022 | FXO6: 2023 | FXP6: 2024 | FXQ6: 2025 | FXR6: 2026 | FXS6: 2027 | FXT6: 2028 | FXU6: 2029 | FXV6: 2015-2019 | FXW6: 2020-2024 | FXX6: 2025-2029 | FXY6: 2015-2029 | FXZ6: 2015 | FYA6: 2016 | FYB6: 2017 | FYC6: 2018 | FYD6: 2019 | FYE6: 2020 | FYF6: 2021 | FYG6: 2022 | FYH6: 2023 | FYI6: 2024 | FYJ6: 2025 | FYK6: 2026 | FYL6: 2027 | FYM6: 2028 | FYN6: 2029 | FYO6: 2015-2019 | FYP6: 2020-2024 | FYQ6: 2025-2029 | FYR6: 2015-2029 | FYS6: 2015 | FYT6: 2016 | FYU6: 2017 | FYV6: 2018 | FYW6: 2019 | FYX6: 2020 | FYY6: 2021 | FYZ6: 2022 | FZA6: 2023 | FZB6: 2024 | FZC6: 2025 | FZD6: 2026 | FZE6: 2027 | FZF6: 2028 | FZG6: 2029 | FZH6: 2015-2019 | FZI6: 2020-2024 | FZJ6: 2025-2029 | FZK6: 2015-2029 | FZL6: 2015 | FZM6: 2016 | FZN6: 2017 | FZO6: 2018 | FZP6: 2019 | FZQ6: 2020 | FZR6: 2021 | FZS6: 2022 | FZT6: 2023 | FZU6: 2024 | FZV6: 2025 | FZW6: 2026 | FZX6: 2027 | FZY6: 2028 | FZZ6: 2029 | GAA6: 2015-2019 | GAB6: 2020-2024 | GAC6: 2025-2029 | GAD6: 2015-2029 | GAE6: 2015 | GAF6: 2016 | GAG6: 2017 | GAH6: 2018 | GAI6: 2019 | GAJ6: 2020 | GAK6: 2021 | GAL6: 2022 | GAM6: 2023 | GAN6: 2024 | GAO6: 2025 | GAP6: 2026 | GAQ6: 2027 | GAR6: 2028 | GAS6: 2029 | GAT6: 2015-2019 | GAU6: 2020-2024 | GAV6: 2025-2029 | GAW6: 2015-2029 | GAX6: 2015 | GAY6: 2016 | GAZ6: 2017 | GBA6: 2018 | GBB6: 2019 | GBC6: 2020 | GBD6: 2021 | GBE6: 2022 | GBF6: 2023 | GBG6: 2024 | GBH6: 2025 | GBI6: 2026 | GBJ6: 2027 | GBK6: 2028 | GBL6: 2029 | GBM6: 2015-2019 | GBN6: 2020-2024 | GBO6: 2025-2029 | GBP6: 2015-2029 | GBQ6: 2015 | GBR6: 2016 | GBS6: 2017 | GBT6: 2018 | GBU6: 2019 | GBV6: 2020 | GBW6: 2021 | GBX6: 2022 | GBY6: 2023 | GBZ6: 2024 | GCA6: 2025 | GCB6: 2026 | GCC6: 2027 | GCD6: 2028 | GCE6: 2029 | GCF6: 2015-2019 | GCG6: 2020-2024 | GCH6: 2025-2029 | GCI6: 2015-2029 | GCJ6: 2015 | GCK6: 2016 | GCL6: 2017 | GCM6: 2018 | GCN6: 2019 | GCO6: 2020 | GCP6: 2021 | GCQ6: 2022 | GCR6: 2023 | GCS6: 2024 | GCT6: 2025 | GCU6: 2026 | GCV6: 2027 | GCW6: 2028 | GCX6: 2029 | GCY6: 2015-2019 | GCZ6: 2020-2024 | GDA6: 2025-2029 | GDB6: 2015-2029 | GDC6: 2015 | GDD6: 2016 | GDE6: 2017 | GDF6: 2018 | GDG6: 2019 | GDH6: 2020 | GDI6: 2021 | GDJ6: 2022 | GDK6: 2023 | GDL6: 2024 | GDM6: 2025 | GDN6: 2026 | GDO6: 2027 | GDP6: 2028 | GDQ6: 2029 | GDR6: 2015-2019 | GDS6: 2020-2024 | GDT6: 2025-2029 | GDU6: 2015-2029 | GDV6: 2015 | GDW6: 2016 | GDX6: 2017 | GDY6: 2018 | GDZ6: 2019 | GEA6: 2020 | GEB6: 2021 | GEC6: 2022 | GED6: 2023 | GEE6: 2024 | GEF6: 2025 | GEG6: 2026 | GEH6: 2027 | GEI6: 2028 | GEJ6: 2029 | GEK6: 2015-2019 | GEL6: 2020-2024 | GEM6: 2025-2029 | GEN6: 2015-2029 | GEO6: 2015 | GEP6: 2016 | GEQ6: 2017 | GER6: 2018 | GES6: 2019 | GET6: 2020 | GEU6: 2021 | GEV6: 2022 | GEW6: 2023 | GEX6: 2024 | GEY6: 2025 | GEZ6: 2026 | GFA6: 2027 | GFB6: 2028 | GFC6: 2029 | GFD6: 2015-2019 | GFE6: 2020-2024 | GFF6: 2025-2029 | GFG6: 2015-2029 | GFH6: 2015 | GFI6: 2016 | GFJ6: 2017 | GFK6: 2018 | GFL6: 2019 | GFM6: 2020 | GFN6: 2021 | GFO6: 2022 | GFP6: 2023 | GFQ6: 2024 | GFR6: 2025 | GFS6: 2026 | GFT6: 2027 | GFU6: 2028 | GFV6: 2029 | GFW6: 2015-2019 | GFX6: 2020-2024 | GFY6: 2025-2029 | GFZ6: 2015-2029 | GGA6: 2015 | GGB6: 2016 | GGC6: 2017 | GGD6: 2018 | GGE6: 2019 | GGF6: 2020 | GGG6: 2021 | GGH6: 2022 | GGI6: 2023 | GGJ6: 2024 | GGK6: 2025 | GGL6: 2026 | GGM6: 2027 | GGN6: 2028 | GGO6: 2029 | GGP6: 2015-2019 | GGQ6: 2020-2024 | GGR6: 2025-2029 | GGS6: 2015-2029 | GGT6: 2015 | GGU6: 2016 | GGV6: 2017 | GGW6: 2018 | GGX6: 2019 | GGY6: 2020 | GGZ6: 2021 | GHA6: 2022 | GHB6: 2023 | GHC6: 2024 | GHD6: 2025 | GHE6: 2026 | GHF6: 2027 | GHG6: 2028 | GHH6: 2029 | GHI6: 2015-2019 | GHJ6: 2020-2024 | GHK6: 2025-2029 | GHL6: 2015-2029 | GHM6: 2015 | GHN6: 2016 | GHO6: 2017 | GHP6: 2018 | GHQ6: 2019 | GHR6: 2020 | GHS6: 2021 | GHT6: 2022 | GHU6: 2023 | GHV6: 2024 | GHW6: 2025 | GHX6: 2026 | GHY6: 2027 | GHZ6: 2028 | GIA6: 2029 | GIB6: 2015-2019 | GIC6: 2020-2024 | GID6: 2025-2029 | GIE6: 2015-2029 | GIF6: 2015 | GIG6: 2016 | GIH6: 2017 | GII6: 2018 | GIJ6: 2019 | GIK6: 2020 | GIL6: 2021 | GIM6: 2022 | GIN6: 2023 | GIO6: 2024 | GIP6: 2025 | GIQ6: 2026 | GIR6: 2027 | GIS6: 2028 | GIT6: 2029 | GIU6: 2015-2019 | GIV6: 2020-2024 | GIW6: 2025-2029 | GIX6: 2015-2029 | GIY6: 2015 | GIZ6: 2016 | GJA6: 2017 | GJB6: 2018 | GJC6: 2019 | GJD6: 2020 | GJE6: 2021 | GJF6: 2022 | GJG6: 2023 | GJH6: 2024 | GJI6: 2025 | GJJ6: 2026 | GJK6: 2027 | GJL6: 2028 | GJM6: 2029 | GJN6: 2015-2019 | GJO6: 2020-2024 | GJP6: 2025-2029 | GJQ6: 2015-2029 | GJR6: 2015 | GJS6: 2016 | GJT6: 2017 | GJU6: 2018 | GJV6: 2019 | GJW6: 2020 | GJX6: 2021 | GJY6: 2022 | GJZ6: 2023 | GKA6: 2024 | GKB6: 2025 | GKC6: 2026 | GKD6: 2027 | GKE6: 2028 | GKF6: 2029 | GKG6: 2015-2019 | GKH6: 2020-2024 | GKI6: 2025-2029 | GKJ6: 2015-2029 | GKK6: 2015 | GKL6: 2016 | GKM6: 2017 | GKN6: 2018 | GKO6: 2019 | GKP6: 2020 | GKQ6: 2021 | GKR6: 2022 | GKS6: 2023 | GKT6: 2024 | GKU6: 2025 | GKV6: 2026 | GKW6: 2027 | GKX6: 2028 | GKY6: 2029 | GKZ6: 2015-2019 | GLA6: 2020-2024 | GLB6: 2025-2029 | GLC6: 2015-2029 | GLD6: 2015 | GLE6: 2016 | GLF6: 2017 | GLG6: 2018 | GLH6: 2019 | GLI6: 2020 | GLJ6: 2021 | GLK6: 2022 | GLL6: 2023 | GLM6: 2024 | GLN6: 2025 | GLO6: 2026 | GLP6: 2027 | GLQ6: 2028 | GLR6: 2029 | GLS6: 2015-2019 | GLT6: 2020-2024 | GLU6: 2025-2029 | GLV6: 2015-2029 | GLW6: 2015 | GLX6: 2016 | GLY6: 2017 | GLZ6: 2018 | GMA6: 2019 | GMB6: 2020 | GMC6: 2021 | GMD6: 2022 | GME6: 2023 | GMF6: 2024 | GMG6: 2025 | GMH6: 2026 | GMI6: 2027 | GMJ6: 2028 | GMK6: 2029 | GML6: 2015-2019 | GMM6: 2020-2024 | GMN6: 2025-2029 | GMO6: 2015-2029 | GMP6: 2015 | GMQ6: 2016 | GMR6: 2017 | GMS6: 2018 | GMT6: 2019 | GMU6: 2020 | GMV6: 2021 | GMW6: 2022 | GMX6: 2023 | GMY6: 2024 | GMZ6: 2025 | GNA6: 2026 | GNB6: 2027 | GNC6: 2028 | GND6: 2029 | GNE6: 2015-2019 | GNF6: 2020-2024 | GNG6: 2025-2029 | GNH6: 2015-2029 | GNI6: 2015 | GNJ6: 2016 | GNK6: 2017 | GNL6: 2018 | GNM6: 2019 | GNN6: 2020 | GNO6: 2021 | GNP6: 2022 | GNQ6: 2023 | GNR6: 2024 | GNS6: 2025 | GNT6: 2026 | GNU6: 2027 | GNV6: 2028 | GNW6: 2029 | GNX6: 2015-2019 | GNY6: 2020-2024 | GNZ6: 2025-2029 | GOA6: 2015-2029 | GOB6: 2015 | GOC6: 2016 | GOD6: 2017 | GOE6: 2018 | GOF6: 2019 | GOG6: 2020 | GOH6: 2021 | GOI6: 2022 | GOJ6: 2023 | GOK6: 2024 | GOL6: 2025 | GOM6: 2026 | GON6: 2027 | GOO6: 2028 | GOP6: 2029 | GOQ6: 2015-2019 | GOR6: 2020-2024 | GOS6: 2025-2029 | GOT6: 2015-2029 | GOU6: 2015 | GOV6: 2016 | GOW6: 2017 | GOX6: 2018 | GOY6: 2019 | GOZ6: 2020 | GPA6: 2021 | GPB6: 2022 | GPC6: 2023 | GPD6: 2024 | GPE6: 2025 | GPF6: 2026 | GPG6: 2027 | GPH6: 2028 | GPI6: 2029 | GPJ6: 2015-2019 | GPK6: 2020-2024 | GPL6: 2025-2029 | GPM6: 2015-2029 | GPN6: 2015 | GPO6: 2016 | GPP6: 2017 | GPQ6: 2018 | GPR6: 2019 | GPS6: 2020 | GPT6: 2021 | GPU6: 2022 | GPV6: 2023 | GPW6: 2024 | GPX6: 2025 | GPY6: 2026 | GPZ6: 2027 | GQA6: 2028 | GQB6: 2029 | GQC6: 2015-2019 | GQD6: 2020-2024 | GQE6: 2025-2029 | GQF6: 2015-2029 | GQG6: 2015 | GQH6: 2016 | GQI6: 2017 | GQJ6: 2018 | GQK6: 2019 | GQL6: 2020 | GQM6: 2021 | GQN6: 2022 | GQO6: 2023 | GQP6: 2024 | GQQ6: 2025 | GQR6: 2026 | GQS6: 2027 | GQT6: 2028 | GQU6: 2029 | GQV6: 2015-2019 | GQW6: 2020-2024 | GQX6: 2025-2029 | GQY6: 2015-2029 | GQZ6: 2015 | GRA6: 2016 | GRB6: 2017 | GRC6: 2018 | GRD6: 2019 | GRE6: 2020 | GRF6: 2021 | GRG6: 2022 | GRH6: 2023 | GRI6: 2024 | GRJ6: 2025 | GRK6: 2026 | GRL6: 2027 | GRM6: 2028 | GRN6: 2029 | GRO6: 2015-2019 | GRP6: 2020-2024 | GRQ6: 2025-2029 | GRR6: 2015-2029 | GRS6: 2015 | GRT6: 2016 | GRU6: 2017 | GRV6: 2018 | GRW6: 2019 | GRX6: 2020 | GRY6: 2021 | GRZ6: 2022 | GSA6: 2023 | GSB6: 2024 | GSC6: 2025 | GSD6: 2026 | GSE6: 2027 | GSF6: 2028 | GSG6: 2029 | GSH6: 2015-2019 | GSI6: 2020-2024 | GSJ6: 2025-2029 | GSK6: 2015-2029 | GSL6: 2015 | GSM6: 2016 | GSN6: 2017 | GSO6: 2018 | GSP6: 2019 | GSQ6: 2020 | GSR6: 2021 | GSS6: 2022 | GST6: 2023 | GSU6: 2024 | GSV6: 2025 | GSW6: 2026 | GSX6: 2027 | GSY6: 2028 | GSZ6: 2029 | GTA6: 2015-2019 | GTB6: 2020-2024 | GTC6: 2025-2029 | GTD6: 2015-2029 | GTE6: 2015 | GTF6: 2016 | GTG6: 2017 | GTH6: 2018 | GTI6: 2019 | GTJ6: 2020 | GTK6: 2021 | GTL6: 2022 | GTM6: 2023 | GTN6: 2024 | GTO6: 2025 | GTP6: 2026 | GTQ6: 2027 | GTR6: 2028 | GTS6: 2029 | GTT6: 2015-2019 | GTU6: 2020-2024 | GTV6: 2025-2029 | GTW6: 2015-2029 | GTX6: 2015 | GTY6: 2016 | GTZ6: 2017 | GUA6: 2018 | GUB6: 2019 | GUC6: 2020 | GUD6: 2021 | GUE6: 2022 | GUF6: 2023 | GUG6: 2024 | GUH6: 2025 | GUI6: 2026 | GUJ6: 2027 | GUK6: 2028 | GUL6: 2029 | GUM6: 2015-2019 | GUN6: 2020-2024 | GUO6: 2025-2029 | GUP6: 2015-2029 | GUQ6: 2015 | GUR6: 2016 | GUS6: 2017 | GUT6: 2018 | GUU6: 2019 | GUV6: 2020 | GUW6: 2021 | GUX6: 2022 | GUY6: 2023 | GUZ6: 2024 | GVA6: 2025 | GVB6: 2026 | GVC6: 2027 | GVD6: 2028 | GVE6: 2029 | GVF6: 2015-2019 | GVG6: 2020-2024 | GVH6: 2025-2029 | GVI6: 2015-2029 | GVJ6: 2015 | GVK6: 2016 | GVL6: 2017 | GVM6: 2018 | GVN6: 2019 | GVO6: 2020 | GVP6: 2021 | GVQ6: 2022 | GVR6: 2023 | GVS6: 2024 | GVT6: 2025 | GVU6: 2026 | GVV6: 2027 | GVW6: 2028 | GVX6: 2029 | GVY6: 2015-2019 | GVZ6: 2020-2024 | GWA6: 2025-2029 | GWB6: 2015-2029 | GWC6: 2015 | GWD6: 2016 | GWE6: 2017 | GWF6: 2018 | GWG6: 2019 | GWH6: 2020 | GWI6: 2021 | GWJ6: 2022 | GWK6: 2023 | GWL6: 2024 | GWM6: 2025 | GWN6: 2026 | GWO6: 2027 | GWP6: 2028 | GWQ6: 2029 | GWR6: 2015-2019 | GWS6: 2020-2024 | GWT6: 2025-2029 | GWU6: 2015-2029 | GWV6: 2015 | GWW6: 2016 | GWX6: 2017 | GWY6: 2018 | GWZ6: 2019 | GXA6: 2020 | GXB6: 2021 | GXC6: 2022 | GXD6: 2023 | GXE6: 2024 | GXF6: 2025 | GXG6: 2026 | GXH6: 2027 | GXI6: 2028 | GXJ6: 2029 | GXK6: 2015-2019 | GXL6: 2020-2024 | GXM6: 2025-2029 | GXN6: 2015-2029 | GXO6: 2015 | GXP6: 2016 | GXQ6: 2017 | GXR6: 2018 | GXS6: 2019 | GXT6: 2020 | GXU6: 2021 | GXV6: 2022 | GXW6: 2023 | GXX6: 2024 | GXY6: 2025 | GXZ6: 2026 | GYA6: 2027 | GYB6: 2028 | GYC6: 2029 | GYD6: 2015-2019 | GYE6: 2020-2024 | GYF6: 2025-2029 | GYG6: 2015-2029 | GYH6: 2015 | GYI6: 2016 | GYJ6: 2017 | GYK6: 2018 | GYL6: 2019 | GYM6: 2020 | GYN6: 2021 | GYO6: 2022 | GYP6: 2023 | GYQ6: 2024 | GYR6: 2025 | GYS6: 2026 | GYT6: 2027 | GYU6: 2028 | GYV6: 2029 | GYW6: 2015-2019 | GYX6: 2020-2024 | GYY6: 2025-2029 | GYZ6: 2015-2029 | GZA6: 2015 | GZB6: 2016 | GZC6: 2017 | GZD6: 2018 | GZE6: 2019 | GZF6: 2020 | GZG6: 2021 | GZH6: 2022 | GZI6: 2023 | GZJ6: 2024 | GZK6: 2025 | GZL6: 2026 | GZM6: 2027 | GZN6: 2028 | GZO6: 2029 | GZP6: 2015-2019 | GZQ6: 2020-2024 | GZR6: 2025-2029 | GZS6: 2015-2029 | GZT6: 2015 | GZU6: 2016 | GZV6: 2017 | GZW6: 2018 | GZX6: 2019 | GZY6: 2020 | GZZ6: 2021 | HAA6: 2022 | HAB6: 2023 | HAC6: 2024 | HAD6: 2025 | HAE6: 2026 | HAF6: 2027 | HAG6: 2028 | HAH6: 2029 | HAI6: 2015-2019 | HAJ6: 2020-2024 | HAK6: 2025-2029 | HAL6: 2015-2029 | HAM6: 2015 | HAN6: 2016 | HAO6: 2017 | HAP6: 2018 | HAQ6: 2019 | HAR6: 2020 | HAS6: 2021 | HAT6: 2022 | HAU6: 2023 | HAV6: 2024 | HAW6: 2025 | HAX6: 2026 | HAY6: 2027 | HAZ6: 2028 | HBA6: 2029 | HBB6: 2015-2019 | HBC6: 2020-2024 | HBD6: 2025-2029 | HBE6: 2015-2029 | HBF6: 2015 | HBG6: 2016 | HBH6: 2017 | HBI6: 2018 | HBJ6: 2019 | HBK6: 2020 | HBL6: 2021 | HBM6: 2022 | HBN6: 2023 | HBO6: 2024 | HBP6: 2025 | HBQ6: 2026 | HBR6: 2027 | HBS6: 2028 | HBT6: 2029 | HBU6: 2015-2019 | HBV6: 2020-2024 | HBW6: 2025-2029 | HBX6: 2015-2029 | HBY6: 2015 | HBZ6: 2016 | HCA6: 2017 | HCB6: 2018 | HCC6: 2019 | HCD6: 2020 | HCE6: 2021 | HCF6: 2022 | HCG6: 2023 | HCH6: 2024 | HCI6: 2025 | HCJ6: 2026 | HCK6: 2027 | HCL6: 2028 | HCM6: 2029 | HCN6: 2015-2019 | HCO6: 2020-2024 | HCP6: 2025-2029 | HCQ6: 2015-2029 | HCR6: 2015 | HCS6: 2016 | HCT6: 2017 | HCU6: 2018 | HCV6: 2019 | HCW6: 2020 | HCX6: 2021 | HCY6: 2022 | HCZ6: 2023 | HDA6: 2024 | HDB6: 2025 | HDC6: 2026 | HDD6: 2027 | HDE6: 2028 | HDF6: 2029 | HDG6: 2015-2019 | HDH6: 2020-2024 | HDI6: 2025-2029 | HDJ6: 2015-2029 | HDK6: 2015 | HDL6: 2016 | HDM6: 2017 | HDN6: 2018 | HDO6: 2019 | HDP6: 2020 | HDQ6: 2021 | HDR6: 2022 | HDS6: 2023 | HDT6: 2024 | HDU6: 2025 | HDV6: 2026 | HDW6: 2027 | HDX6: 2028 | HDY6: 2029 | HDZ6: 2015-2019 | HEA6: 2020-2024 | HEB6: 2025-2029 | HEC6: 2015-2029 | HED6: 2015 | HEE6: 2016 | HEF6: 2017 | HEG6: 2018 | HEH6: 2019 | HEI6: 2020 | HEJ6: 2021 | HEK6: 2022 | HEL6: 2023 | HEM6: 2024 | HEN6: 2025 | HEO6: 2026 | HEP6: 2027 | HEQ6: 2028 | HER6: 2029 | HES6: 2015-2019 | HET6: 2020-2024 | HEU6: 2025-2029 | HEV6: 2015-2029 | HEW6: 2015 | HEX6: 2016 | HEY6: 2017 | HEZ6: 2018 | HFA6: 2019 | HFB6: 2020 | HFC6: 2021 | HFD6: 2022 | HFE6: 2023 | HFF6: 2024 | HFG6: 2025 | HFH6: 2026 | HFI6: 2027 | HFJ6: 2028 | HFK6: 2029 | HFL6: 2015-2019 | HFM6: 2020-2024 | HFN6: 2025-2029 | HFO6: 2015-2029 | HFP6: 2015 | HFQ6: 2016 | HFR6: 2017 | HFS6: 2018 | HFT6: 2019 | HFU6: 2020 | HFV6: 2021 | HFW6: 2022 | HFX6: 2023 | HFY6: 2024 | HFZ6: 2025 | HGA6: 2026 | HGB6: 2027 | HGC6: 2028 | HGD6: 2029 | HGE6: 2015-2019 | HGF6: 2020-2024 | HGG6: 2025-2029 | HGH6: 2015-2029 | HGI6: 2015 | HGJ6: 2016 | HGK6: 2017 | HGL6: 2018 | HGM6: 2019 | HGN6: 2020 | HGO6: 2021 | HGP6: 2022 | HGQ6: 2023 | HGR6: 2024 | HGS6: 2025 | HGT6: 2026 | HGU6: 2027 | HGV6: 2028 | HGW6: 2029 | HGX6: 2015-2019 | HGY6: 2020-2024 | HGZ6: 2025-2029 | HHA6: 2015-2029 | HHB6: 2015 | HHC6: 2016 | HHD6: 2017 | HHE6: 2018 | HHF6: 2019 | HHG6: 2020 | HHH6: 2021 | HHI6: 2022 | HHJ6: 2023 | HHK6: 2024 | HHL6: 2025 | HHM6: 2026 | HHN6: 2027 | HHO6: 2028 | HHP6: 2029 | HHQ6: 2015-2019 | HHR6: 2020-2024 | HHS6: 2025-2029 | HHT6: 2015-2029 | HHU6: 2015 | HHV6: 2016 | HHW6: 2017 | HHX6: 2018 | HHY6: 2019 | HHZ6: 2020 | HIA6: 2021 | HIB6: 2022 | HIC6: 2023 | HID6: 2024 | HIE6: 2025 | HIF6: 2026 | HIG6: 2027 | HIH6: 2028 | HII6: 2029 | HIJ6: 2015-2019 | HIK6: 2020-2024 | HIL6: 2025-2029 | HIM6: 2015-2029 | HIN6: 2015 | HIO6: 2016 | HIP6: 2017 | HIQ6: 2018 | HIR6: 2019 | HIS6: 2020 | HIT6: 2021 | HIU6: 2022 | HIV6: 2023 | HIW6: 2024 | HIX6: 2025 | HIY6: 2026 | HIZ6: 2027 | HJA6: 2028 | HJB6: 2029 | HJC6: 2015-2019 | HJD6: 2020-2024 | HJE6: 2025-2029 | HJF6: 2015-2029 | HJG6: 2015 | HJH6: 2016 | HJI6: 2017 | HJJ6: 2018 | HJK6: 2019 | HJL6: 2020 | HJM6: 2021 | HJN6: 2022 | HJO6: 2023 | HJP6: 2024 | HJQ6: 2025 | HJR6: 2026 | HJS6: 2027 | HJT6: 2028 | HJU6: 2029 | HJV6: 2015-2019 | HJW6: 2020-2024 | HJX6: 2025-2029 | HJY6: 2015-2029 | HJZ6: 2015 | HKA6: 2016 | HKB6: 2017 | HKC6: 2018 | HKD6: 2019 | HKE6: 2020 | HKF6: 2021 | HKG6: 2022 | HKH6: 2023 | HKI6: 2024 | HKJ6: 2025 | HKK6: 2026 | HKL6: 2027 | HKM6: 2028 | HKN6: 2029 | HKO6: 2015-2019 | HKP6: 2020-2024 | HKQ6: 2025-2029 | HKR6: 2015-2029 | HKS6: 2015 | HKT6: 2016 | HKU6: 2017 | HKV6: 2018 | HKW6: 2019 | HKX6: 2020 | HKY6: 2021 | HKZ6: 2022 | HLA6: 2023 | HLB6: 2024 | HLC6: 2025 | HLD6: 2026 | HLE6: 2027 | HLF6: 2028 | HLG6: 2029 | HLH6: 2015-2019 | HLI6: 2020-2024 | HLJ6: 2025-2029 | HLK6: 2015-2029 | HLL6: 2015 | HLM6: 2016 | HLN6: 2017 | HLO6: 2018 | HLP6: 2019 | HLQ6: 2020 | HLR6: 2021 | HLS6: 2022 | HLT6: 2023 | HLU6: 2024 | HLV6: 2025 | HLW6: 2026 | HLX6: 2027 | HLY6: 2028 | HLZ6: 2029 | HMA6: 2015-2019 | HMB6: 2020-2024 | HMC6: 2025-2029 | HMD6: 2015-2029 | HME6: 2015 | HMF6: 2016 | HMG6: 2017 | HMH6: 2018 | HMI6: 2019 | HMJ6: 2020 | HMK6: 2021 | HML6: 2022 | HMM6: 2023 | HMN6: 2024 | HMO6: 2025 | HMP6: 2026 | HMQ6: 2027 | HMR6: 2028 | HMS6: 2029 | HMT6: 2015-2019 | HMU6: 2020-2024 | HMV6: 2025-2029 | HMW6: 2015-2029 | HMX6: 2015 | HMY6: 2016 | HMZ6: 2017 | HNA6: 2018 | HNB6: 2019 | HNC6: 2020 | HND6: 2021 | HNE6: 2022 | HNF6: 2023 | HNG6: 2024 | HNH6: 2025 | HNI6: 2026 | HNJ6: 2027 | HNK6: 2028 | HNL6: 2029 | HNM6: 2015-2019 | HNN6: 2020-2024 | HNO6: 2025-2029 | HNP6: 2015-2029 | HNQ6: 2015-2019 | HNR6: 2020-2024 | HNS6: 2025-2029 | HNT6: 2015-2019 | HNU6: Av. Annual | HNV6: 2015-2019 | HNW6: 2020-2024 | HNX6: 2025-2029 | HNY6: 2015-2019 | HNZ6: Av. Annual | HOA6: 2015-2019 | HOB6: 2020-2024 | HOC6: 2025-2029 | HOD6: 2015-2029 | HOE6: Av. Annual | HOF6: 2015-2019 | HOG6: 2020-2024 | HOH6: 2025-2029 | HOI6: 2015-2029 | HOJ6: Av. Annual | HOK6: 2015-2019 | HOL6: 2020-2024 | HOM6: 2025-2029 | HON6: 2015-2029 | HOO6: Av. Annual | HOP6: 2015-2019 | HOQ6: 2020-2024 | HOR6: 2025-2029 | HOS6: 2015-2029 | HOT6: Av. Annual | HOU6: 2015-2019 | HOV6: 2020-2024 | HOW6: 2025-2029 | HOX6: 2015-2029 | HOY6: Av. Annual | HOZ6: 2015-2019 | HPA6: 2020-2024 | HPB6: 2025-2029 | HPC6: 2015-2029 | HPD6: Av. Annual | HPE6: 2015-2019 | HPF6: 2020-2024 | HPG6: 2025-2029 | HPH6: 2015-2029 | HPI6: Av. Annual | HPJ6: 2015-2019 | HPK6: 2020-2024 | HPL6: 2025-2029 | HPM6: 2015-2029 | HPN6: Av. Annual | HPO6: 2015-2019 | HPP6: 2020-2024 | HPQ6: 2025-2029 | HPR6: 2015-2029 | HPS6: Av. Annual | HPT6: 2015-2019 | HPU6: 2020-2024 | HPV6: 2025-2029 | HPW6: 2015-2029 | HPX6: Av. Annual | HPY6: 2015-2019 | HPZ6: 2020-2024 | HQA6: 2025-2029 | HQB6: 2015-2029 | HQC6: Av. Annual | HQD6: 2015-2019 | HQE6: 2020-2024 | HQF6: 2025-2029 | HQG6: 2015-2029 | HQH6: Av. Annual | HQI6: 2015-2019 | HQJ6: 2020-2024 | HQK6: 2025-2029 | HQL6: 2015-2029 | HQM6: Av. Annual | HQN6: 2015-2019 | HQO6: 2020-2024 | HQP6: 2025-2029 | HQQ6: 2015-2029 | HQR6: Av. Annual | HQS6: 2015-2019 | HQT6: 2020-2024 | HQU6: 2025-2029 | HQV6: 2015-2029 | HQW6: Av. Annual | HQX6: 2015-2019 | HQY6: 2020-2024 | HQZ6: 2025-2029 | HRA6: 2015-2029 | HRB6: Av. Annual | HRC6: 2015-2019 | HRD6: 2020-2024 | HRE6: 2025-2029 | HRF6: 2015-2029 | HRG6: Av. Annual | HRH6: 2015-2019 | HRI6: 2020-2024 | HRJ6: 2025-2029 | HRK6: 2015-2029 | HRL6: Av. Annual | HRM6: 2015-2019 | HRN6: 2020-2024 | HRO6: 2025-2029 | HRP6: 2015-2029 | HRQ6: Av. Annual | HRR6: 2015-2019 | HRS6: 2020-2024 | HRT6: 2025-2029 | HRU6: 2015-2029 | HRV6: Av. Annual | HRW6: 2015-2019 | HRX6: 2020-2024 | HRY6: 2025-2029 | HRZ6: 2015-2029 | HSA6: Av. Annual | HSB6: 2015-2019 | HSC6: 2020-2024 | HSD6: 2025-2029 | HSE6: 2015-2029 | HSF6: Av. Annual | HSG6: 2015-2019 | HSH6: 2020-2024 | HSI6: 2025-2029 | HSJ6: 2015-2029 | HSK6: Av. Annual | HSL6: 2015-2019 | HSM6: 2020-2024 | HSN6: 2025-2029 | HSO6: 2015-2029 | HSP6: Av. Annual | HSQ6: 2015-2019 | HSR6: 2020-2024 | HSS6: 2025-2029 | HST6: 2015-2029 | HSU6: Av. Annual | IEV6: 2015-2019 | IEW6: 2020-2024 | IEX6: 2025-2029 | IEY6: 2015-2029 | IEZ6: Av. Annual | IFA6: 2015-2019 | IFB6: 2020-2024 | IFC6: 2025-2029 | IFD6: 2015-2029 | IFE6: Av. Annual | IFF6: 2015-2019 | IFG6: 2020-2024 | IFH6: 2025-2029 | IFI6: 2015-2029 | IFJ6: Av. Annual | IFK6: 2015-2019 | IFL6: 2020-2024 | IFM6: 2025-2029 | IFN6: 2015-2029 | IFO6: Av. Annual | IFP6: 2015-2019 | IFQ6: 2020-2024 | IFR6: 2025-2029 | IFS6: 2015-2029 | IFT6: Av. Annual | IFU6: 2015-2019 | IFV6: 2020-2024 | IFW6: 2025-2029 | IFX6: 2015-2029 | IFY6: Av. Annual | IFZ6: 2015-2019 | IGA6: 2020-2024 | IGB6: 2025-2029 | IGC6: 2015-2029 | IGD6: Av. Annual | IGE6: 2015-2019 | IGF6: 2020-2024 | IGG6: 2025-2029 | IGH6: 2015-2029 | IGI6: Av. Annual | IGJ6: 2015-2019 | IGK6: 2020-2024 | IGL6: 2025-2029 | IGM6: 2015-2029 | IGN6: Av. Annual | IGO6: 2015-2019 | IGP6: 2020-2024 | IGQ6: 2025-2029 | IGR6: 2015-2029 | IGS6: Av. Annual | IGT6: 2015-2019 | IGU6: 2020-2024 | IGV6: 2025-2029 | IGW6: 2015-2029 | IGX6: Av. Annual | IGY6: 2015-2019 | IGZ6: 2020-2024 | IHA6: 2025-2029 | IHB6: 2015-2029 | IHC6: Av. Annual | IHD6: 2015-2019 | IHE6: 2020-2024 | IHF6: 2025-2029 | IHG6: 2015-2029 | IHH6: Av. Annual | IHI6: 2015-2019 | IHJ6: 2020-2024 | IHK6: 2025-2029 | IHL6: 2015-2029 | IHM6: Av. Annual | IHN6: 2015-2019 | IHO6: 2020-2024 | IHP6: 2025-2029 | IHQ6: 2015-2029 | IHR6: Av. Annual | IHS6: 2015-2019 | IHT6: 2020-2024 | IHU6: 2025-2029 | IHV6: 2015-2029 | IHW6: Av. Annual | IHX6: 2015-2019 | IHY6: 2020-2024 | IHZ6: 2025-2029 | IIA6: 2015-2029 | IIB6: Av. Annual | IIC6: 2015-2019 | IID6: 2020-2024 | IIE6: 2025-2029 | IIF6: 2015-2029 | IIG6: Av. Annual | IIH6: Year 2015 | III6: Ending OD | IIJ6: Water | IIK6: Sanitation | IIL6: Hygiene | IIM6: WASH | IIN6: Water | IIO6: Sanitation | IIP6: WatSan | IIQ6: Targets 6.1 + 6.2 | IIR6: Ending OD | IIS6: Water | IIT6: Sanitation | IIU6: Hygiene | IIV6: WASH | IIW6: Water | IIX6: Sanitation | IIY6: WatSan | IIZ6: Targets 6.1 + 6.2 | IJA6: Capital | IJB6: Capital maintenance | IJC6: Operations | IJD6: Capital | IJE6: Capital maintenance | IJF6: Operations | IJG6: Capital | IJH6: Capital maintenance | IJI6: Operations | IJJ6: Capital | IJK6: Capital maintenance | IJL6: Operations | IJM6: Capital | IJN6: Capital maintenance | IJO6: Operations | IJP6: Capital | IJQ6: Capital maintenance | IJR6: Operations | IJS6: Capital | IJT6: Capital maintenance | IJU6: Operations | IJV6: Capital | IJW6: Capital maintenance | IJX6: Operations | IJY6: Capital | IJZ6: Capital maintenance | IKA6: Operations | IKB6: Capital | IKC6: Capital maintenance | IKD6: Operations | IKE6: Capital | IKF6: Capital maintenance | IKG6: Operations | IKH6: Capital / SW | IKI6: O&M | IKJ6: Total | IKK6: Capital / SW | IKL6: O&M | IKM6: Total | IKN6: Capital / SW | IKO6: O&M | IKP6: Total | IKQ6: Capital / SW | IKR6: O&M | IKS6: Total | IKT6: Capital / SW | IKU6: O&M | IKV6: Total | IKW6: Capital / SW | IKX6: O&M | IKY6: Total | IKZ6: Capital / SW | ILA6: O&M | ILB6: Total | ILC6: Capital / SW | ILD6: O&M | ILE6: Total | ILF6: Capital / SW | ILG6: O&M | ILH6: Total | ILI6: Capital / SW | ILJ6: O&M | ILK6: Total | ILL6: Capital / SW | ILM6: O&M | ILN6: Total | ILO6: Capital / SW | ILP6: O&M | ILQ6: Total | ILR6: Capital / SW | ILS6: O&M | ILT6: Total | ILU6: Capital / SW | ILV6: O&M | ILW6: Total | ILX6: Capital / SW | ILY6: O&M | ILZ6: Total | IMA6: Capital / SW | IMB6: O&M | IMC6: Total | IMD6: ="GDP (US$ m) - " & IMD5 -> GDP (US$ m) - 2018 | IME6: ="GDP Growth Rate (%) - " & IMD5 -> GDP Growth Rate (%) - 2018
